Workbook

Sheet home
C5: 计划书
C7: 尊敬的 | D7: （ ） | E7: 先生/女士，您的利益演示如下：
C8: 投保年龄 | E8: 性 别 | J8: 年交保费 | K8: 交费方式 | L8: 基本保额 | M8: 累计保费 | S8: 是
C9: 0 | E9: 男 | J9: 400000 | K9: B-5年交 | L9: =bv -> 1588400 | M9: =sv*ppp -> 2000000 | S9: 否
C12: 保单 年度 | D12: 年龄 | E12: 年交保费 | F12: 累计保费 | G12: 减保前 有效保额 | H12: 减保前身故或全残保险金 | I12: 减保前高铁、航空意外身故或全残保险金 | J12: 减保前 现金价值 | K12: 减保领取现金价值 | L12: 累计减保领取现金价值 | M12: 减保后 有效保额 | N12: 减保后身故或全残保险金 | O12: 减保后高铁、航空意外身故或全残保险金 | P12: 减保后现金价值 | Q12: 年化单利 | R12: IRR
C13: =IF(base!B4="","",base!B4) -> 1 | D13: =IF(base!C4="","",base!C4+1) -> 1 | E13: =IF(base!D4="","",base!D4) -> 400000 | F13: =IF(C13="","",E13+IFERROR(F12+0,0)) -> 400000 | G13: =ROUND(base!F4,0) -> 1588400 | H13: =ROUND(base!G4,0) -> 400000 | I13: =ROUND(base!H4,0) -> 1588400 | J13: =ROUND(base!I4,0) -> 45812 | K13: 0 | L13: =SUM($K$13:K13) -> 0 | M13: =ROUND(base!O4,0) -> 1588400 | N13: =ROUND(base!P4,0) -> 400000 | O13: =ROUND(base!Q4,0) -> 1588400 | P13: =ROUND(base!R4,0) -> 45812
C14: =IF(base!B5="","",base!B5) -> 2 | D14: =IF(base!C5="","",base!C5+1) -> 2 | E14: =IF(base!D5="","",base!D5) -> 400000 | F14: =IF(C14="","",E14+IFERROR(F13+0,0)) -> 800000 | G14: =ROUND(base!F5,0) -> 1643994 | H14: =ROUND(base!G5,0) -> 800000 | I14: =ROUND(base!H5,0) -> 1643994 | J14: =ROUND(base!I5,0) -> 119212 | K14: 0 | L14: =SUM($K$13:K14) -> 0 | M14: =ROUND(base!O5,0) -> 1643994 | N14: =ROUND(base!P5,0) -> 800000 | O14: =ROUND(base!Q5,0) -> 1643994 | P14: =ROUND(base!R5,0) -> 119212
C15: =IF(base!B6="","",base!B6) -> 3 | D15: =IF(base!C6="","",base!C6+1) -> 3 | E15: =IF(base!D6="","",base!D6) -> 400000 | F15: 1200000 | G15: =ROUND(base!F6,0) -> 1701534 | H15: =ROUND(base!G6,0) -> 1200000 | I15: =ROUND(base!H6,0) -> 1701534 | J15: =ROUND(base!I6,0) -> 224804 | K15: 0 | L15: =SUM($K$13:K15) -> 0 | M15: =ROUND(base!O6,0) -> 1701534 | N15: =ROUND(base!P6,0) -> 1200000 | O15: =ROUND(base!Q6,0) -> 1701534 | P15: =ROUND(base!R6,0) -> 224804
C16: =IF(base!B7="","",base!B7) -> 4 | D16: =IF(base!C7="","",base!C7+1) -> 4 | E16: =IF(base!D7="","",base!D7) -> 400000 | F16: 1600000 | G16: =ROUND(base!F7,0) -> 1761087 | H16: =ROUND(base!G7,0) -> 1600000 | I16: =ROUND(base!H7,0) -> 1761087 | J16: =ROUND(base!I7,0) -> 382488 | K16: 0 | L16: =SUM($K$13:K16) -> 0 | M16: =ROUND(base!O7,0) -> 1761087 | N16: =ROUND(base!P7,0) -> 1600000 | O16: =ROUND(base!Q7,0) -> 1761087 | P16: =ROUND(base!R7,0) -> 382488
C17: =IF(base!B8="","",base!B8) -> 5 | D17: =IF(base!C8="","",base!C8+1) -> 5 | E17: =IF(base!D8="","",base!D8) -> 400000 | F17: 2000000 | G17: =ROUND(base!F8,0) -> 1822726 | H17: =ROUND(base!G8,0) -> 2000000 | I17: =ROUND(base!H8,0) -> 1822726 | J17: =ROUND(base!I8,0) -> 560980 | K17: 0 | L17: =SUM($K$13:K17) -> 0 | M17: =ROUND(base!O8,0) -> 1822726 | N17: =ROUND(base!P8,0) -> 2000000 | O17: =ROUND(base!Q8,0) -> 1822726 | P17: =ROUND(base!R8,0) -> 560980
C18: =IF(base!B9="","",base!B9) -> 6 | D18: =IF(base!C9="","",base!C9+1) -> 6 | E18: =IF(base!D9="","",base!D9) -> 0 | F18: 2000000 | G18: =ROUND(base!F9,0) -> 1886521 | H18: =ROUND(base!G9,0) -> 2191132 | I18: =ROUND(base!H9,0) -> 1886521 | J18: =ROUND(base!I9,0) -> 2191132 | K18: 0 | L18: =SUM($K$13:K18) -> 0 | M18: =ROUND(base!O9,0) -> 1886521 | N18: =ROUND(base!P9,0) -> 2191132 | O18: =ROUND(base!Q9,0) -> 1886521 | P18: =ROUND(base!R9,0) -> 2191132
C19: =IF(base!B10="","",base!B10) -> 7 | D19: =IF(base!C10="","",base!C10+1) -> 7 | E19: =IF(base!D10="","",base!D10) -> 0 | F19: 2000000 | G19: =ROUND(base!F10,0) -> 1952549 | H19: =ROUND(base!G10,0) -> 2267788 | I19: =ROUND(base!H10,0) -> 1952549 | J19: =ROUND(base!I10,0) -> 2267788 | K19: 0 | L19: =SUM($K$13:K19) -> 0 | M19: =ROUND(base!O10,0) -> 1952549 | N19: =ROUND(base!P10,0) -> 2267788 | O19: =ROUND(base!Q10,0) -> 1952549 | P19: =ROUND(base!R10,0) -> 2267788
C20: =IF(base!B11="","",base!B11) -> 8 | D20: =IF(base!C11="","",base!C11+1) -> 8 | E20: =IF(base!D11="","",base!D11) -> 0 | F20: 2000000 | G20: =ROUND(base!F11,0) -> 2020888 | H20: =ROUND(base!G11,0) -> 2347128 | I20: =ROUND(base!H11,0) -> 2020888 | J20: =ROUND(base!I11,0) -> 2347128 | K20: 0 | L20: =SUM($K$13:K20) -> 0 | M20: =ROUND(base!O11,0) -> 2020888 | N20: =ROUND(base!P11,0) -> 2347128 | O20: =ROUND(base!Q11,0) -> 2020888 | P20: =ROUND(base!R11,0) -> 2347128
C21: =IF(base!B12="","",base!B12) -> 9 | D21: =IF(base!C12="","",base!C12+1) -> 9 | E21: =IF(base!D12="","",base!D12) -> 0 | F21: 2000000 | G21: =ROUND(base!F12,0) -> 2091619 | H21: =ROUND(base!G12,0) -> 2429240 | I21: =ROUND(base!H12,0) -> 2091619 | J21: =ROUND(base!I12,0) -> 2429240 | K21: 0 | L21: =SUM($K$13:K21) -> 0 | M21: =ROUND(base!O12,0) -> 2091619 | N21: =ROUND(base!P12,0) -> 2429240 | O21: =ROUND(base!Q12,0) -> 2091619 | P21: =ROUND(base!R12,0) -> 2429240
C22: =IF(base!B13="","",base!B13) -> 10 | D22: =IF(base!C13="","",base!C13+1) -> 10 | E22: =IF(base!D13="","",base!D13) -> 0 | F22: 2000000 | G22: =ROUND(base!F13,0) -> 2164826 | H22: =ROUND(base!G13,0) -> 2514228 | I22: =ROUND(base!H13,0) -> 2164826 | J22: =ROUND(base!I13,0) -> 2514228 | K22: 0 | L22: =SUM($K$13:K22) -> 0 | M22: =ROUND(base!O13,0) -> 2164826 | N22: =ROUND(base!P13,0) -> 2514228 | O22: =ROUND(base!Q13,0) -> 2164826 | P22: =ROUND(base!R13,0) -> 2514228
C23: =IF(base!B14="","",base!B14) -> 11 | D23: =IF(base!C14="","",base!C14+1) -> 11 | E23: =IF(base!D14="","",base!D14) -> 0 | F23: 2000000 | G23: =ROUND(base!F14,0) -> 2240595 | H23: =ROUND(base!G14,0) -> 2602184 | I23: =ROUND(base!H14,0) -> 2240595 | J23: =ROUND(base!I14,0) -> 2602184 | K23: 0 | L23: =SUM($K$13:K23) -> 0 | M23: =ROUND(base!O14,0) -> 2240595 | N23: =ROUND(base!P14,0) -> 2602184 | O23: =ROUND(base!Q14,0) -> 2240595 | P23: =ROUND(base!R14,0) -> 2602184
C24: =IF(base!B15="","",base!B15) -> 12 | D24: =IF(base!C15="","",base!C15+1) -> 12 | E24: =IF(base!D15="","",base!D15) -> 0 | F24: 2000000 | G24: =ROUND(base!F15,0) -> 2319016 | H24: =ROUND(base!G15,0) -> 2693220 | I24: =ROUND(base!H15,0) -> 2319016 | J24: =ROUND(base!I15,0) -> 2693220 | K24: 0 | L24: =SUM($K$13:K24) -> 0 | M24: =ROUND(base!O15,0) -> 2319016 | N24: =ROUND(base!P15,0) -> 2693220 | O24: =ROUND(base!Q15,0) -> 2319016 | P24: =ROUND(base!R15,0) -> 2693220
C25: =IF(base!B16="","",base!B16) -> 13 | D25: =IF(base!C16="","",base!C16+1) -> 13 | E25: =IF(base!D16="","",base!D16) -> 0 | F25: 2000000 | G25: =ROUND(base!F16,0) -> 2400181 | H25: =ROUND(base!G16,0) -> 2787440 | I25: =ROUND(base!H16,0) -> 2400181 | J25: =ROUND(base!I16,0) -> 2787440 | K25: 0 | L25: =SUM($K$13:K25) -> 0 | M25: =ROUND(base!O16,0) -> 2400181 | N25: =ROUND(base!P16,0) -> 2787440 | O25: =ROUND(base!Q16,0) -> 2400181 | P25: =ROUND(base!R16,0) -> 2787440
C26: =IF(base!B17="","",base!B17) -> 14 | D26: =IF(base!C17="","",base!C17+1) -> 14 | E26: =IF(base!D17="","",base!D17) -> 0 | F26: 2000000 | G26: =ROUND(base!F17,0) -> 2484188 | H26: =ROUND(base!G17,0) -> 2884952 | I26: =ROUND(base!H17,0) -> 2484188 | J26: =ROUND(base!I17,0) -> 2884952 | K26: 0 | L26: =SUM($K$13:K26) -> 0 | M26: =ROUND(base!O17,0) -> 2484188 | N26: =ROUND(base!P17,0) -> 2884952 | O26: =ROUND(base!Q17,0) -> 2484188 | P26: =ROUND(base!R17,0) -> 2884952
C27: =IF(base!B18="","",base!B18) -> 15 | D27: =IF(base!C18="","",base!C18+1) -> 15 | E27: =IF(base!D18="","",base!D18) -> 0 | F27: 2000000 | G27: =ROUND(base!F18,0) -> 2571134 | H27: =ROUND(base!G18,0) -> 2985872 | I27: =ROUND(base!H18,0) -> 2571134 | J27: =ROUND(base!I18,0) -> 2985872 | K27: 200000 | L27: =SUM($K$13:K27) -> 200000 | M27: =ROUND(base!O18,0) -> 2398914 | N27: =ROUND(base!P18,0) -> 2785872 | O27: =ROUND(base!Q18,0) -> 2398914 | P27: =ROUND(base!R18,0) -> 2785872
C28: =IF(base!B19="","",base!B19) -> 16 | D28: =IF(base!C19="","",base!C19+1) -> 16 | E28: =IF(base!D19="","",base!D19) -> 0 | F28: 2000000 | G28: =ROUND(base!F19,0) -> 2661124 | H28: =ROUND(base!G19,0) -> 3090324 | I28: =ROUND(base!H19,0) -> 2661124 | J28: =ROUND(base!I19,0) -> 3090324 | K28: 200000 | L28: =SUM($K$13:K28) -> 400000 | M28: =ROUND(base!O19,0) -> 2310653 | N28: =ROUND(base!P19,0) -> 2683328 | O28: =ROUND(base!Q19,0) -> 2310653 | P28: =ROUND(base!R19,0) -> 2683328
C29: =IF(base!B20="","",base!B20) -> 17 | D29: =IF(base!C20="","",base!C20+1) -> 17 | E29: =IF(base!D20="","",base!D20) -> 0 | F29: 2000000 | G29: =ROUND(base!F20,0) -> 2754263 | H29: =ROUND(base!G20,0) -> 3198428 | I29: =ROUND(base!H20,0) -> 2754263 | J29: =ROUND(base!I20,0) -> 3198428 | K29: 200000 | L29: =SUM($K$13:K29) -> 600000 | M29: =ROUND(base!O20,0) -> 2219300 | N29: =ROUND(base!P20,0) -> 2577194 | O29: =ROUND(base!Q20,0) -> 2219300 | P29: =ROUND(base!R20,0) -> 2577194
C30: =IF(base!B21="","",base!B21) -> 18 | D30: =IF(base!C21="","",base!C21+1) -> 18 | E30: =IF(base!D21="","",base!D21) -> 0 | F30: 2000000 | G30: =ROUND(base!F21,0) -> 2850663 | H30: =ROUND(base!G21,0) -> 3310312 | I30: =ROUND(base!H21,0) -> 2850663 | J30: =ROUND(base!I21,0) -> 3310312 | K30: 200000 | L30: =SUM($K$13:K30) -> 800000 | M30: =ROUND(base!O21,0) -> 2124747 | N30: =ROUND(base!P21,0) -> 2467347 | O30: =ROUND(base!Q21,0) -> 2124747 | P30: =ROUND(base!R21,0) -> 2467347
C31: =IF(base!B22="","",base!B22) -> 19 | D31: =IF(base!C22="","",base!C22+1) -> 19 | E31: =IF(base!D22="","",base!D22) -> 0 | F31: 2000000 | G31: =ROUND(base!F22,0) -> 2950436 | H31: =ROUND(base!G22,0) -> 3426112 | I31: =ROUND(base!H22,0) -> 2950436 | J31: =ROUND(base!I22,0) -> 3426112 | K31: 200000 | L31: =SUM($K$13:K31) -> 1000000 | M31: =ROUND(base!O22,0) -> 2026880 | N31: =ROUND(base!P22,0) -> 2353659 | O31: =ROUND(base!Q22,0) -> 2026880 | P31: =ROUND(base!R22,0) -> 2353659
C32: =IF(base!B23="","",base!B23) -> 20 | D32: =IF(base!C23="","",base!C23+1) -> 20 | E32: =IF(base!D23="","",base!D23) -> 0 | F32: 2000000 | G32: =ROUND(base!F23,0) -> 3053701 | H32: =ROUND(base!G23,0) -> 3545956 | I32: =ROUND(base!H23,0) -> 3053701 | J32: =ROUND(base!I23,0) -> 3545956 | K32: 200000 | L32: =SUM($K$13:K32) -> 1200000 | M32: =ROUND(base!O23,0) -> 1925585 | N32: =ROUND(base!P23,0) -> 2235989 | O32: =ROUND(base!Q23,0) -> 1925585 | P32: =ROUND(base!R23,0) -> 2235989
C33: =IF(base!B24="","",base!B24) -> 21 | D33: =IF(base!C24="","",base!C24+1) -> 21 | E33: =IF(base!D24="","",base!D24) -> 0 | F33: 2000000 | G33: =ROUND(base!F24,0) -> 3160581 | H33: =ROUND(base!G24,0) -> 3669996 | I33: =ROUND(base!H24,0) -> 3160581 | J33: =ROUND(base!I24,0) -> 3669996 | K33: 200000 | L33: =SUM($K$13:K33) -> 1400000 | M33: =ROUND(base!O24,0) -> 1820742 | N33: =ROUND(base!P24,0) -> 2114205 | O33: =ROUND(base!Q24,0) -> 1820742 | P33: =ROUND(base!R24,0) -> 2114205
C34: =IF(base!B25="","",base!B25) -> 22 | D34: =IF(base!C25="","",base!C25+1) -> 22 | E34: =IF(base!D25="","",base!D25) -> 0 | F34: 2000000 | G34: =ROUND(base!F25,0) -> 3271201 | H34: =ROUND(base!G25,0) -> 3798368 | I34: =ROUND(base!H25,0) -> 3271201 | J34: =ROUND(base!I25,0) -> 3798368 | K34: 500000 | L34: =SUM($K$13:K34) -> 1900000 | M34: =ROUND(base!O25,0) -> 1453862 | N34: =ROUND(base!P25,0) -> 1688157 | O34: =ROUND(base!Q25,0) -> 1453862 | P34: =ROUND(base!R25,0) -> 1688157
C35: =IF(base!B26="","",base!B26) -> 23 | D35: =IF(base!C26="","",base!C26+1) -> 23 | E35: =IF(base!D26="","",base!D26) -> 0 | F35: 2000000 | G35: =ROUND(base!F26,0) -> 3385693 | H35: =ROUND(base!G26,0) -> 3931236 | I35: =ROUND(base!H26,0) -> 3385693 | J35: =ROUND(base!I26,0) -> 3931236 | K35: 500000 | L35: =SUM($K$13:K35) -> 2400000 | M35: =ROUND(base!O26,0) -> 1074133 | N35: =ROUND(base!P26,0) -> 1247210 | O35: =ROUND(base!Q26,0) -> 1074133 | P35: =ROUND(base!R26,0) -> 1247210
C36: =IF(base!B27="","",base!B27) -> 24 | D36: =IF(base!C27="","",base!C27+1) -> 24 | E36: =IF(base!D27="","",base!D27) -> 0 | F36: 2000000 | G36: =ROUND(base!F27,0) -> 3504192 | H36: =ROUND(base!G27,0) -> 4068744 | I36: =ROUND(base!H27,0) -> 3504192 | J36: =ROUND(base!I27,0) -> 4068744 | K36: 500000 | L36: =SUM($K$13:K36) -> 2900000 | M36: =ROUND(base!O27,0) -> 681104 | N36: =ROUND(base!P27,0) -> 790835 | O36: =ROUND(base!Q27,0) -> 681104 | P36: =ROUND(base!R27,0) -> 790835
C37: =IF(base!B28="","",base!B28) -> 25 | D37: =IF(base!C28="","",base!C28+1) -> 25 | E37: =IF(base!D28="","",base!D28) -> 0 | F37: 2000000 | G37: =ROUND(base!F28,0) -> 3626839 | H37: =ROUND(base!G28,0) -> 4211064 | I37: =ROUND(base!H28,0) -> 3626839 | J37: =ROUND(base!I28,0) -> 4211064 | K37: 0 | L37: =SUM($K$13:K37) -> 2900000 | M37: =ROUND(base!O28,0) -> 704943 | N37: =ROUND(base!P28,0) -> 818497 | O37: =ROUND(base!Q28,0) -> 704943 | P37: =ROUND(base!R28,0) -> 818497
C38: =IF(base!B29="","",base!B29) -> 26 | D38: =IF(base!C29="","",base!C29+1) -> 26 | E38: =IF(base!D29="","",base!D29) -> 0 | F38: 2000000 | G38: =ROUND(base!F29,0) -> 3753778 | H38: =ROUND(base!G29,0) -> 4358360 | I38: =ROUND(base!H29,0) -> 3753778 | J38: =ROUND(base!I29,0) -> 4358360 | K38: 0 | L38: =SUM($K$13:K38) -> 2900000 | M38: =ROUND(base!O29,0) -> 729616 | N38: =ROUND(base!P29,0) -> 847127 | O38: =ROUND(base!Q29,0) -> 729616 | P38: =ROUND(base!R29,0) -> 847127
C39: =IF(base!B30="","",base!B30) -> 27 | D39: =IF(base!C30="","",base!C30+1) -> 27 | E39: =IF(base!D30="","",base!D30) -> 0 | F39: 2000000 | G39: =ROUND(base!F30,0) -> 3885161 | H39: =ROUND(base!G30,0) -> 4510804 | I39: =ROUND(base!H30,0) -> 3885161 | J39: =ROUND(base!I30,0) -> 4510804 | K39: 0 | L39: =SUM($K$13:K39) -> 2900000 | M39: =ROUND(base!O30,0) -> 755152 | N39: =ROUND(base!P30,0) -> 876757 | O39: =ROUND(base!Q30,0) -> 755152 | P39: =ROUND(base!R30,0) -> 876757
C40: =IF(base!B31="","",base!B31) -> 28 | D40: =IF(base!C31="","",base!C31+1) -> 28 | E40: =IF(base!D31="","",base!D31) -> 0 | F40: 2000000 | G40: =ROUND(base!F31,0) -> 4021141 | H40: =ROUND(base!G31,0) -> 4668576 | I40: =ROUND(base!H31,0) -> 4021141 | J40: =ROUND(base!I31,0) -> 4668576 | K40: 0 | L40: =SUM($K$13:K40) -> 2900000 | M40: =ROUND(base!O31,0) -> 781582 | N40: =ROUND(base!P31,0) -> 907423 | O40: =ROUND(base!Q31,0) -> 781582 | P40: =ROUND(base!R31,0) -> 907423
C41: =IF(base!B32="","",base!B32) -> 29 | D41: =IF(base!C32="","",base!C32+1) -> 29 | E41: =IF(base!D32="","",base!D32) -> 0 | F41: 2000000 | G41: =ROUND(base!F32,0) -> 4161881 | H41: =ROUND(base!G32,0) -> 4831868 | I41: =ROUND(base!H32,0) -> 4161881 | J41: =ROUND(base!I32,0) -> 4831868 | K41: 0 | L41: =SUM($K$13:K41) -> 2900000 | M41: =ROUND(base!O32,0) -> 808938 | N41: =ROUND(base!P32,0) -> 939162 | O41: =ROUND(base!Q32,0) -> 808938 | P41: =ROUND(base!R32,0) -> 939162
C42: =IF(base!B33="","",base!B33) -> 30 | D42: =IF(base!C33="","",base!C33+1) -> 30 | E42: =IF(base!D33="","",base!D33) -> 0 | F42: 2000000 | G42: =ROUND(base!F33,0) -> 4307547 | H42: =ROUND(base!G33,0) -> 5000864 | I42: =ROUND(base!H33,0) -> 4307547 | J42: =ROUND(base!I33,0) -> 5000864 | L42: =SUM($K$13:K42) -> 2900000 | M42: =ROUND(base!O33,0) -> 837251 | N42: =ROUND(base!P33,0) -> 972010 | O42: =ROUND(base!Q33,0) -> 837251 | P42: =ROUND(base!R33,0) -> 972010
C43: =IF(base!B34="","",base!B34) -> 31 | D43: =IF(base!C34="","",base!C34+1) -> 31 | E43: =IF(base!D34="","",base!D34) -> 0 | F43: 2000000 | G43: =ROUND(base!F34,0) -> 4458311 | H43: =ROUND(base!G34,0) -> 5175768 | I43: =ROUND(base!H34,0) -> 4458311 | J43: =ROUND(base!I34,0) -> 5175768 | K43: 0 | L43: =SUM($K$13:K43) -> 2900000 | M43: =ROUND(base!O34,0) -> 866554 | N43: =ROUND(base!P34,0) -> 1006005 | O43: =ROUND(base!Q34,0) -> 866554 | P43: =ROUND(base!R34,0) -> 1006005
C44: =IF(base!B35="","",base!B35) -> 32 | D44: =IF(base!C35="","",base!C35+1) -> 32 | E44: =IF(base!D35="","",base!D35) -> 0 | F44: 2000000 | G44: =ROUND(base!F35,0) -> 4614352 | H44: =ROUND(base!G35,0) -> 5356784 | I44: =ROUND(base!H35,0) -> 4614352 | J44: =ROUND(base!I35,0) -> 5356784 | K44: 0 | L44: =SUM($K$13:K44) -> 2900000 | M44: =ROUND(base!O35,0) -> 896884 | N44: =ROUND(base!P35,0) -> 1041189 | O44: =ROUND(base!Q35,0) -> 896884 | P44: =ROUND(base!R35,0) -> 1041189
C45: =IF(base!B36="","",base!B36) -> 33 | D45: =IF(base!C36="","",base!C36+1) -> 33 | E45: =IF(base!D36="","",base!D36) -> 0 | F45: 2000000 | G45: =ROUND(base!F36,0) -> 4775854 | H45: =ROUND(base!G36,0) -> 5544128 | I45: =ROUND(base!H36,0) -> 4775854 | J45: =ROUND(base!I36,0) -> 5544128 | K45: 0 | L45: =SUM($K$13:K45) -> 2900000 | M45: =ROUND(base!O36,0) -> 928275 | N45: =ROUND(base!P36,0) -> 1077603 | O45: =ROUND(base!Q36,0) -> 928275 | P45: =ROUND(base!R36,0) -> 1077603
C46: =IF(base!B37="","",base!B37) -> 34 | D46: =IF(base!C37="","",base!C37+1) -> 34 | E46: =IF(base!D37="","",base!D37) -> 0 | F46: 2000000 | G46: =ROUND(base!F37,0) -> 4943009 | H46: =ROUND(base!G37,0) -> 5738016 | I46: =ROUND(base!H37,0) -> 4943009 | J46: =ROUND(base!I37,0) -> 5738016 | K46: 0 | L46: =SUM($K$13:K46) -> 2900000 | M46: =ROUND(base!O37,0) -> 960764 | N46: =ROUND(base!P37,0) -> 1115289 | O46: =ROUND(base!Q37,0) -> 960764 | P46: =ROUND(base!R37,0) -> 1115289
C47: =IF(base!B38="","",base!B38) -> 35 | D47: =IF(base!C38="","",base!C38+1) -> 35 | E47: =IF(base!D38="","",base!D38) -> 0 | F47: 2000000 | G47: =ROUND(base!F38,0) -> 5116015 | H47: =ROUND(base!G38,0) -> 5938676 | I47: =ROUND(base!H38,0) -> 5116015 | J47: =ROUND(base!I38,0) -> 5938676 | K47: 0 | L47: =SUM($K$13:K47) -> 2900000 | M47: =ROUND(base!O38,0) -> 994391 | N47: =ROUND(base!P38,0) -> 1154291 | O47: =ROUND(base!Q38,0) -> 994391 | P47: =ROUND(base!R38,0) -> 1154291
C48: =IF(base!B39="","",base!B39) -> 36 | D48: =IF(base!C39="","",base!C39+1) -> 36 | E48: =IF(base!D39="","",base!D39) -> 0 | F48: 2000000 | G48: =ROUND(base!F39,0) -> 5295075 | H48: =ROUND(base!G39,0) -> 6146348 | I48: =ROUND(base!H39,0) -> 5295075 | J48: =ROUND(base!I39,0) -> 6146348 | K48: 0 | L48: =SUM($K$13:K48) -> 2900000 | M48: =ROUND(base!O39,0) -> 1029195 | N48: =ROUND(base!P39,0) -> 1194655 | O48: =ROUND(base!Q39,0) -> 1029195 | P48: =ROUND(base!R39,0) -> 1194655
C49: =IF(base!B40="","",base!B40) -> 37 | D49: =IF(base!C40="","",base!C40+1) -> 37 | E49: =IF(base!D40="","",base!D40) -> 0 | F49: 2000000 | G49: =ROUND(base!F40,0) -> 5480403 | H49: =ROUND(base!G40,0) -> 6361272 | I49: =ROUND(base!H40,0) -> 5480403 | J49: =ROUND(base!I40,0) -> 6361272 | K49: 0 | L49: =SUM($K$13:K49) -> 2900000 | M49: =ROUND(base!O40,0) -> 1065217 | N49: =ROUND(base!P40,0) -> 1236430 | O49: =ROUND(base!Q40,0) -> 1065217 | P49: =ROUND(base!R40,0) -> 1236430
C50: =IF(base!B41="","",base!B41) -> 38 | D50: =IF(base!C41="","",base!C41+1) -> 38 | E50: =IF(base!D41="","",base!D41) -> 0 | F50: 2000000 | G50: =ROUND(base!F41,0) -> 5672217 | H50: =ROUND(base!G41,0) -> 6583700 | I50: =ROUND(base!H41,0) -> 5672217 | J50: =ROUND(base!I41,0) -> 6583700 | K50: 0 | L50: =SUM($K$13:K50) -> 2900000 | M50: =ROUND(base!O41,0) -> 1102499 | N50: =ROUND(base!P41,0) -> 1279663 | O50: =ROUND(base!Q41,0) -> 1102499 | P50: =ROUND(base!R41,0) -> 1279663
C51: =IF(base!B42="","",base!B42) -> 39 | D51: =IF(base!C42="","",base!C42+1) -> 39 | E51: =IF(base!D42="","",base!D42) -> 0 | F51: 2000000 | G51: =ROUND(base!F42,0) -> 5870744 | H51: =ROUND(base!G42,0) -> 6813892 | I51: =ROUND(base!H42,0) -> 5870744 | J51: =ROUND(base!I42,0) -> 6813892 | K51: 0 | L51: =SUM($K$13:K51) -> 2900000 | M51: =ROUND(base!O42,0) -> 1141087 | N51: =ROUND(base!P42,0) -> 1324405 | O51: =ROUND(base!Q42,0) -> 1141087 | P51: =ROUND(base!R42,0) -> 1324405
C52: =IF(base!B43="","",base!B43) -> 40 | D52: =IF(base!C43="","",base!C43+1) -> 40 | E52: =IF(base!D43="","",base!D43) -> 0 | F52: 2000000 | G52: =ROUND(base!F43,0) -> 6076220 | H52: =ROUND(base!G43,0) -> 7052120 | I52: =ROUND(base!H43,0) -> 6076220 | J52: =ROUND(base!I43,0) -> 7052120 | K52: 0 | L52: =SUM($K$13:K52) -> 2900000 | M52: =ROUND(base!O43,0) -> 1181025 | N52: =ROUND(base!P43,0) -> 1370709 | O52: =ROUND(base!Q43,0) -> 1181025 | P52: =ROUND(base!R43,0) -> 1370709
C53: =IF(base!B44="","",base!B44) -> 41 | D53: =IF(base!C44="","",base!C44+1) -> 41 | E53: =IF(base!D44="","",base!D44) -> 0 | F53: 2000000 | G53: =ROUND(base!F44,0) -> 6288888 | H53: =ROUND(base!G44,0) -> 7298656 | I53: =ROUND(base!H44,0) -> 6288888 | J53: =ROUND(base!I44,0) -> 7298656 | K53: 0 | L53: =SUM($K$13:K53) -> 2900000 | M53: =ROUND(base!O44,0) -> 1222361 | N53: =ROUND(base!P44,0) -> 1418628 | O53: =ROUND(base!Q44,0) -> 1222361 | P53: =ROUND(base!R44,0) -> 1418628
C54: =IF(base!B45="","",base!B45) -> 42 | D54: =IF(base!C45="","",base!C45+1) -> 42 | E54: =IF(base!D45="","",base!D45) -> 0 | F54: 2000000 | G54: =ROUND(base!F45,0) -> 6508999 | H54: =ROUND(base!G45,0) -> 7553796 | I54: =ROUND(base!H45,0) -> 6508999 | J54: =ROUND(base!I45,0) -> 7553796 | K54: 0 | L54: =SUM($K$13:K54) -> 2900000 | M54: =ROUND(base!O45,0) -> 1265143 | N54: =ROUND(base!P45,0) -> 1468219 | O54: =ROUND(base!Q45,0) -> 1265143 | P54: =ROUND(base!R45,0) -> 1468219
C55: =IF(base!B46="","",base!B46) -> 43 | D55: =IF(base!C46="","",base!C46+1) -> 43 | E55: =IF(base!D46="","",base!D46) -> 0 | F55: 2000000 | G55: =ROUND(base!F46,0) -> 6736814 | H55: =ROUND(base!G46,0) -> 7817828 | I55: =ROUND(base!H46,0) -> 6736814 | J55: =ROUND(base!I46,0) -> 7817828 | K55: 0 | L55: =SUM($K$13:K55) -> 2900000 | M55: =ROUND(base!O46,0) -> 1309423 | N55: =ROUND(base!P46,0) -> 1519538 | O55: =ROUND(base!Q46,0) -> 1309423 | P55: =ROUND(base!R46,0) -> 1519538
C56: =IF(base!B47="","",base!B47) -> 44 | D56: =IF(base!C47="","",base!C47+1) -> 44 | E56: =IF(base!D47="","",base!D47) -> 0 | F56: 2000000 | G56: =ROUND(base!F47,0) -> 6972603 | H56: =ROUND(base!G47,0) -> 8091060 | I56: =ROUND(base!H47,0) -> 6972603 | J56: =ROUND(base!I47,0) -> 8091060 | K56: 0 | L56: =SUM($K$13:K56) -> 2900000 | M56: =ROUND(base!O47,0) -> 1355253 | N56: =ROUND(base!P47,0) -> 1572646 | O56: =ROUND(base!Q47,0) -> 1355253 | P56: =ROUND(base!R47,0) -> 1572646
C57: =IF(base!B48="","",base!B48) -> 45 | D57: =IF(base!C48="","",base!C48+1) -> 45 | E57: =IF(base!D48="","",base!D48) -> 0 | F57: 2000000 | G57: =ROUND(base!F48,0) -> 7216644 | H57: =ROUND(base!G48,0) -> 8373812 | I57: =ROUND(base!H48,0) -> 7216644 | J57: =ROUND(base!I48,0) -> 8373812 | K57: 0 | L57: =SUM($K$13:K57) -> 2900000 | M57: =ROUND(base!O48,0) -> 1402687 | N57: =ROUND(base!P48,0) -> 1627604 | O57: =ROUND(base!Q48,0) -> 1402687 | P57: =ROUND(base!R48,0) -> 1627604
C58: =IF(base!B49="","",base!B49) -> 46 | D58: =IF(base!C49="","",base!C49+1) -> 46 | E58: =IF(base!D49="","",base!D49) -> 0 | F58: 2000000 | G58: =ROUND(base!F49,0) -> 7469226 | H58: =ROUND(base!G49,0) -> 8666408 | I58: =ROUND(base!H49,0) -> 7469226 | J58: =ROUND(base!I49,0) -> 8666408 | K58: 0 | L58: =SUM($K$13:K58) -> 2900000 | M58: =ROUND(base!O49,0) -> 1451781 | N58: =ROUND(base!P49,0) -> 1684475 | O58: =ROUND(base!Q49,0) -> 1451781 | P58: =ROUND(base!R49,0) -> 1684475
C59: =IF(base!B50="","",base!B50) -> 47 | D59: =IF(base!C50="","",base!C50+1) -> 47 | E59: =IF(base!D50="","",base!D50) -> 0 | F59: 2000000 | G59: =ROUND(base!F50,0) -> 7730649 | H59: =ROUND(base!G50,0) -> 8969184 | I59: =ROUND(base!H50,0) -> 7730649 | J59: =ROUND(base!I50,0) -> 8969184 | K59: 0 | L59: =SUM($K$13:K59) -> 2900000 | M59: =ROUND(base!O50,0) -> 1502593 | N59: =ROUND(base!P50,0) -> 1743325 | O59: =ROUND(base!Q50,0) -> 1502593 | P59: =ROUND(base!R50,0) -> 1743325
C60: =IF(base!B51="","",base!B51) -> 48 | D60: =IF(base!C51="","",base!C51+1) -> 48 | E60: =IF(base!D51="","",base!D51) -> 0 | F60: 2000000 | G60: =ROUND(base!F51,0) -> 8001222 | H60: =ROUND(base!G51,0) -> 9282488 | I60: =ROUND(base!H51,0) -> 8001222 | J60: =ROUND(base!I51,0) -> 9282488 | K60: 0 | L60: =SUM($K$13:K60) -> 2900000 | M60: =ROUND(base!O51,0) -> 1555184 | N60: =ROUND(base!P51,0) -> 1804222 | O60: =ROUND(base!Q51,0) -> 1555184 | P60: =ROUND(base!R51,0) -> 1804222
C61: =IF(base!B52="","",base!B52) -> 49 | D61: =IF(base!C52="","",base!C52+1) -> 49 | E61: =IF(base!D52="","",base!D52) -> 0 | F61: 2000000 | G61: =ROUND(base!F52,0) -> 8281265 | H61: =ROUND(base!G52,0) -> 9606688 | I61: =ROUND(base!H52,0) -> 8281265 | J61: =ROUND(base!I52,0) -> 9606688 | K61: 0 | L61: =SUM($K$13:K61) -> 2900000 | M61: =ROUND(base!O52,0) -> 1609616 | N61: =ROUND(base!P52,0) -> 1867236 | O61: =ROUND(base!Q52,0) -> 1609616 | P61: =ROUND(base!R52,0) -> 1867236
C62: =IF(base!B53="","",base!B53) -> 50 | D62: =IF(base!C53="","",base!C53+1) -> 50 | E62: =IF(base!D53="","",base!D53) -> 0 | F62: 2000000 | G62: =ROUND(base!F53,0) -> 8571109 | H62: =ROUND(base!G53,0) -> 9942144 | I62: =ROUND(base!H53,0) -> 8571109 | J62: =ROUND(base!I53,0) -> 9942144 | K62: 0 | L62: =SUM($K$13:K62) -> 2900000 | M62: =ROUND(base!O53,0) -> 1665952 | N62: =ROUND(base!P53,0) -> 1932438 | O62: =ROUND(base!Q53,0) -> 1665952 | P62: =ROUND(base!R53,0) -> 1932438
C63: =IF(base!B54="","",base!B54) -> 51 | D63: =IF(base!C54="","",base!C54+1) -> 51 | E63: =IF(base!D54="","",base!D54) -> 0 | F63: 2000000 | G63: =ROUND(base!F54,0) -> 8871098 | H63: =ROUND(base!G54,0) -> 10289256 | I63: =ROUND(base!H54,0) -> 8871098 | J63: =ROUND(base!I54,0) -> 10289256 | K63: 0 | L63: =SUM($K$13:K63) -> 2900000 | M63: =ROUND(base!O54,0) -> 1724260 | N63: =ROUND(base!P54,0) -> 1999905 | O63: =ROUND(base!Q54,0) -> 1724260 | P63: =ROUND(base!R54,0) -> 1999905
C64: =IF(base!B55="","",base!B55) -> 52 | D64: =IF(base!C55="","",base!C55+1) -> 52 | E64: =IF(base!D55="","",base!D55) -> 0 | F64: 2000000 | G64: =ROUND(base!F55,0) -> 9181586 | H64: =ROUND(base!G55,0) -> 10648408 | I64: =ROUND(base!H55,0) -> 9181586 | J64: =ROUND(base!I55,0) -> 10648408 | K64: 0 | L64: =SUM($K$13:K64) -> 2900000 | M64: =ROUND(base!O55,0) -> 1784610 | N64: =ROUND(base!P55,0) -> 2069713 | O64: =ROUND(base!Q55,0) -> 1784610 | P64: =ROUND(base!R55,0) -> 2069713
C65: =IF(base!B56="","",base!B56) -> 53 | D65: =IF(base!C56="","",base!C56+1) -> 53 | E65: =IF(base!D56="","",base!D56) -> 0 | F65: 2000000 | G65: =ROUND(base!F56,0) -> 9502942 | H65: =ROUND(base!G56,0) -> 11020028 | I65: =ROUND(base!H56,0) -> 9502942 | J65: =ROUND(base!I56,0) -> 11020028 | K65: 0 | L65: =SUM($K$13:K65) -> 2900000 | M65: =ROUND(base!O56,0) -> 1847071 | N65: =ROUND(base!P56,0) -> 2141944 | O65: =ROUND(base!Q56,0) -> 1847071 | P65: =ROUND(base!R56,0) -> 2141944
C66: =IF(base!B57="","",base!B57) -> 54 | D66: =IF(base!C57="","",base!C57+1) -> 54 | E66: =IF(base!D57="","",base!D57) -> 0 | F66: 2000000 | G66: =ROUND(base!F57,0) -> 9835545 | H66: =ROUND(base!G57,0) -> 11404528 | I66: =ROUND(base!H57,0) -> 9835545 | J66: =ROUND(base!I57,0) -> 11404528 | K66: 0 | L66: =SUM($K$13:K66) -> 2900000 | M66: =ROUND(base!O57,0) -> 1911718 | N66: =ROUND(base!P57,0) -> 2216679 | O66: =ROUND(base!Q57,0) -> 1911718 | P66: =ROUND(base!R57,0) -> 2216679
C67: =IF(base!B58="","",base!B58) -> 55 | D67: =IF(base!C58="","",base!C58+1) -> 55 | E67: =IF(base!D58="","",base!D58) -> 0 | F67: 2000000 | G67: =ROUND(base!F58,0) -> 10179789 | H67: =ROUND(base!G58,0) -> 11802364 | I67: =ROUND(base!H58,0) -> 10179789 | J67: =ROUND(base!I58,0) -> 11802364 | K67: 0 | L67: =SUM($K$13:K67) -> 2900000 | M67: =ROUND(base!O58,0) -> 1978629 | N67: =ROUND(base!P58,0) -> 2294006 | O67: =ROUND(base!Q58,0) -> 1978629 | P67: =ROUND(base!R58,0) -> 2294006
C68: =IF(base!B59="","",base!B59) -> 56 | D68: =IF(base!C59="","",base!C59+1) -> 56 | E68: =IF(base!D59="","",base!D59) -> 0 | F68: 2000000 | G68: =ROUND(base!F59,0) -> 10536081 | H68: =ROUND(base!G59,0) -> 12213980 | I68: =ROUND(base!H59,0) -> 10536081 | J68: =ROUND(base!I59,0) -> 12213980 | K68: 0 | L68: =SUM($K$13:K68) -> 2900000 | M68: =ROUND(base!O59,0) -> 2047880 | N68: =ROUND(base!P59,0) -> 2374011 | O68: =ROUND(base!Q59,0) -> 2047880 | P68: =ROUND(base!R59,0) -> 2374011
C69: =IF(base!B60="","",base!B60) -> 57 | D69: =IF(base!C60="","",base!C60+1) -> 57 | E69: =IF(base!D60="","",base!D60) -> 0 | F69: 2000000 | G69: =ROUND(base!F60,0) -> 10904844 | H69: =ROUND(base!G60,0) -> 12639856 | I69: =ROUND(base!H60,0) -> 10904844 | J69: =ROUND(base!I60,0) -> 12639856 | K69: 0 | L69: =SUM($K$13:K69) -> 2900000 | M69: =ROUND(base!O60,0) -> 2119556 | N69: =ROUND(base!P60,0) -> 2456788 | O69: =ROUND(base!Q60,0) -> 2119556 | P69: =ROUND(base!R60,0) -> 2456788
C70: =IF(base!B61="","",base!B61) -> 58 | D70: =IF(base!C61="","",base!C61+1) -> 58 | E70: =IF(base!D61="","",base!D61) -> 0 | F70: 2000000 | G70: =ROUND(base!F61,0) -> 11286514 | H70: =ROUND(base!G61,0) -> 13080476 | I70: =ROUND(base!H61,0) -> 11286514 | J70: =ROUND(base!I61,0) -> 13080476 | K70: 0 | L70: =SUM($K$13:K70) -> 2900000 | M70: =ROUND(base!O61,0) -> 2193741 | N70: =ROUND(base!P61,0) -> 2542430 | O70: =ROUND(base!Q61,0) -> 2193741 | P70: =ROUND(base!R61,0) -> 2542430
C71: =IF(base!B62="","",base!B62) -> 59 | D71: =IF(base!C62="","",base!C62+1) -> 59 | E71: =IF(base!D62="","",base!D62) -> 0 | F71: 2000000 | G71: =ROUND(base!F62,0) -> 11681542 | H71: =ROUND(base!G62,0) -> 13536324 | I71: =ROUND(base!H62,0) -> 11681542 | J71: =ROUND(base!I62,0) -> 13536324 | K71: 0 | L71: =SUM($K$13:K71) -> 2900000 | M71: =ROUND(base!O62,0) -> 2270522 | N71: =ROUND(base!P62,0) -> 2631033 | O71: =ROUND(base!Q62,0) -> 2270522 | P71: =ROUND(base!R62,0) -> 2631033
C72: =IF(base!B63="","",base!B63) -> 60 | D72: =IF(base!C63="","",base!C63+1) -> 60 | E72: =IF(base!D63="","",base!D63) -> 0 | F72: 2000000 | G72: =ROUND(base!F63,0) -> 12090396 | H72: =ROUND(base!G63,0) -> 14007904 | I72: =ROUND(base!H63,0) -> 12090396 | J72: =ROUND(base!I63,0) -> 14007904 | K72: 0 | L72: =SUM($K$13:K72) -> 2900000 | M72: =ROUND(base!O63,0) -> 2349990 | N72: =ROUND(base!P63,0) -> 2722693 | O72: =ROUND(base!Q63,0) -> 2349990 | P72: =ROUND(base!R63,0) -> 2722693
C73: =IF(base!B64="","",base!B64) -> 61 | D73: =IF(base!C64="","",base!C64+1) -> 61 | E73: =IF(base!D64="","",base!D64) -> 0 | F73: 2000000 | G73: =ROUND(base!F64,0) -> 12513560 | H73: =ROUND(base!G64,0) -> 14495724 | I73: =ROUND(base!H64,0) -> 12513560 | J73: =ROUND(base!I64,0) -> 14495724 | K73: 0 | L73: =SUM($K$13:K73) -> 2900000 | M73: =ROUND(base!O64,0) -> 2432240 | N73: =ROUND(base!P64,0) -> 2817510 | O73: =ROUND(base!Q64,0) -> 2432240 | P73: =ROUND(base!R64,0) -> 2817510
C74: =IF(base!B65="","",base!B65) -> 62 | D74: =IF(base!C65="","",base!C65+1) -> 62 | E74: =IF(base!D65="","",base!D65) -> 0 | F74: 2000000 | G74: =ROUND(base!F65,0) -> 12951534 | H74: =ROUND(base!G65,0) -> 15000300 | I74: =ROUND(base!H65,0) -> 12951534 | J74: =ROUND(base!I65,0) -> 15000300 | K74: 0 | L74: =SUM($K$13:K74) -> 2900000 | M74: =ROUND(base!O65,0) -> 2517368 | N74: =ROUND(base!P65,0) -> 2915583 | O74: =ROUND(base!Q65,0) -> 2517368 | P74: =ROUND(base!R65,0) -> 2915583
C75: =IF(base!B66="","",base!B66) -> 63 | D75: =IF(base!C66="","",base!C66+1) -> 63 | E75: =IF(base!D66="","",base!D66) -> 0 | F75: 2000000 | G75: =ROUND(base!F66,0) -> 13404838 | H75: =ROUND(base!G66,0) -> 15522148 | I75: =ROUND(base!H66,0) -> 13404838 | J75: =ROUND(base!I66,0) -> 15522148 | K75: 0 | L75: =SUM($K$13:K75) -> 2900000 | M75: =ROUND(base!O66,0) -> 2605476 | N75: =ROUND(base!P66,0) -> 3017014 | O75: =ROUND(base!Q66,0) -> 2605476 | P75: =ROUND(base!R66,0) -> 3017014
C76: =IF(base!B67="","",base!B67) -> 64 | D76: =IF(base!C67="","",base!C67+1) -> 64 | E76: =IF(base!D67="","",base!D67) -> 0 | F76: 2000000 | G76: =ROUND(base!F67,0) -> 13874007 | H76: =ROUND(base!G67,0) -> 16061808 | I76: =ROUND(base!H67,0) -> 13874007 | J76: =ROUND(base!I67,0) -> 16061808 | K76: 0 | L76: =SUM($K$13:K76) -> 2900000 | M76: =ROUND(base!O67,0) -> 2696668 | N76: =ROUND(base!P67,0) -> 3121907 | O76: =ROUND(base!Q67,0) -> 2696668 | P76: =ROUND(base!R67,0) -> 3121907
C77: =IF(base!B68="","",base!B68) -> 65 | D77: =IF(base!C68="","",base!C68+1) -> 65 | E77: =IF(base!D68="","",base!D68) -> 0 | F77: 2000000 | G77: =ROUND(base!F68,0) -> 14359597 | H77: =ROUND(base!G68,0) -> 16619828 | I77: =ROUND(base!H68,0) -> 14359597 | J77: =ROUND(base!I68,0) -> 16619828 | K77: 0 | L77: =SUM($K$13:K77) -> 2900000 | M77: =ROUND(base!O68,0) -> 2791051 | N77: =ROUND(base!P68,0) -> 3230368 | O77: =ROUND(base!Q68,0) -> 2791051 | P77: =ROUND(base!R68,0) -> 3230368
C78: =IF(base!B69="","",base!B69) -> 66 | D78: =IF(base!C69="","",base!C69+1) -> 66 | E78: =IF(base!D69="","",base!D69) -> 0 | F78: =IF(C78="","",E78+IFERROR(F77+0,0)) -> 2000000 | G78: =ROUND(base!F69,0) -> 14862183 | H78: =ROUND(base!G69,0) -> 17196752 | I78: =ROUND(base!H69,0) -> 14862183 | J78: =ROUND(base!I69,0) -> 17196752 | K78: 0 | L78: =SUM($K$13:K78) -> 2900000 | M78: =ROUND(base!O69,0) -> 2888738 | N78: =ROUND(base!P69,0) -> 3342504 | O78: =ROUND(base!Q69,0) -> 2888738 | P78: =ROUND(base!R69,0) -> 3342504
C79: =IF(base!B70="","",base!B70) -> 67 | D79: =IF(base!C70="","",base!C70+1) -> 67 | E79: =IF(base!D70="","",base!D70) -> 0 | F79: 2000000 | G79: =ROUND(base!F70,0) -> 15382360 | H79: =ROUND(base!G70,0) -> 17793136 | I79: =ROUND(base!H70,0) -> 15382360 | J79: =ROUND(base!I70,0) -> 17793136 | K79: 0 | L79: =SUM($K$13:K79) -> 2900000 | M79: =ROUND(base!O70,0) -> 2989844 | N79: =ROUND(base!P70,0) -> 3458422 | O79: =ROUND(base!Q70,0) -> 2989844 | P79: =ROUND(base!R70,0) -> 3458422
C80: =IF(base!B71="","",base!B71) -> 68 | D80: =IF(base!C71="","",base!C71+1) -> 68 | E80: =IF(base!D71="","",base!D71) -> 0 | F80: 2000000 | G80: =ROUND(base!F71,0) -> 15920742 | H80: =ROUND(base!G71,0) -> 18409536 | I80: =ROUND(base!H71,0) -> 15920742 | J80: =ROUND(base!I71,0) -> 18409536 | K80: 0 | L80: =SUM($K$13:K80) -> 2900000 | M80: =ROUND(base!O71,0) -> 3094488 | N80: =ROUND(base!P71,0) -> 3578231 | O80: =ROUND(base!Q71,0) -> 3094488 | P80: =ROUND(base!R71,0) -> 3578231
C81: =IF(base!B72="","",base!B72) -> 69 | D81: =IF(base!C72="","",base!C72+1) -> 69 | E81: =IF(base!D72="","",base!D72) -> 0 | F81: 2000000 | G81: =ROUND(base!F72,0) -> 16477968 | H81: =ROUND(base!G72,0) -> 19046500 | I81: =ROUND(base!H72,0) -> 16477968 | J81: =ROUND(base!I72,0) -> 19046500 | K81: 0 | L81: =SUM($K$13:K81) -> 2900000 | M81: =ROUND(base!O72,0) -> 3202795 | N81: =ROUND(base!P72,0) -> 3702036 | O81: =ROUND(base!Q72,0) -> 3202795 | P81: =ROUND(base!R72,0) -> 3702036
C82: =IF(base!B73="","",base!B73) -> 70 | D82: =IF(base!C73="","",base!C73+1) -> 70 | E82: =IF(base!D73="","",base!D73) -> 0 | F82: 2000000 | G82: =ROUND(base!F73,0) -> 17054697 | H82: =ROUND(base!G73,0) -> 19704576 | I82: =ROUND(base!H73,0) -> 17054697 | J82: =ROUND(base!I73,0) -> 19704576 | K82: 0 | L82: =SUM($K$13:K82) -> 2900000 | M82: =ROUND(base!O73,0) -> 3314893 | N82: =ROUND(base!P73,0) -> 3829945 | O82: =ROUND(base!Q73,0) -> 3314893 | P82: =ROUND(base!R73,0) -> 3829945
C83: =IF(base!B74="","",base!B74) -> 71 | D83: =IF(base!C74="","",base!C74+1) -> 71 | E83: =IF(base!D74="","",base!D74) -> 0 | F83: 2000000 | G83: =ROUND(base!F74,0) -> 17651612 | H83: =ROUND(base!G74,0) -> 20384296 | I83: =ROUND(base!H74,0) -> 17651612 | J83: =ROUND(base!I74,0) -> 20384296 | K83: 0 | L83: =SUM($K$13:K83) -> 2900000 | M83: =ROUND(base!O74,0) -> 3430914 | N83: =ROUND(base!P74,0) -> 3962061 | O83: =ROUND(base!Q74,0) -> 3430914 | P83: =ROUND(base!R74,0) -> 3962061
C84: =IF(base!B75="","",base!B75) -> 72 | D84: =IF(base!C75="","",base!C75+1) -> 72 | E84: =IF(base!D75="","",base!D75) -> 0 | F84: 2000000 | G84: =ROUND(base!F75,0) -> 18269418 | H84: =ROUND(base!G75,0) -> 21086196 | I84: =ROUND(base!H75,0) -> 18269418 | J84: =ROUND(base!I75,0) -> 21086196 | K84: 0 | L84: =SUM($K$13:K84) -> 2900000 | M84: =ROUND(base!O75,0) -> 3550996 | N84: =ROUND(base!P75,0) -> 4098489 | O84: =ROUND(base!Q75,0) -> 3550996 | P84: =ROUND(base!R75,0) -> 4098489
C85: =IF(base!B76="","",base!B76) -> 73 | D85: =IF(base!C76="","",base!C76+1) -> 73 | E85: =IF(base!D76="","",base!D76) -> 0 | F85: 2000000 | G85: =ROUND(base!F76,0) -> 18908848 | H85: =ROUND(base!G76,0) -> 21810800 | I85: =ROUND(base!H76,0) -> 18908848 | J85: =ROUND(base!I76,0) -> 21810800 | K85: 0 | L85: =SUM($K$13:K85) -> 2900000 | M85: =ROUND(base!O76,0) -> 3675281 | N85: =ROUND(base!P76,0) -> 4239329 | O85: =ROUND(base!Q76,0) -> 3675281 | P85: =ROUND(base!R76,0) -> 4239329
C86: =IF(base!B77="","",base!B77) -> 74 | D86: =IF(base!C77="","",base!C77+1) -> 74 | E86: =IF(base!D77="","",base!D77) -> 0 | F86: 2000000 | G86: =ROUND(base!F77,0) -> 19570657 | H86: =ROUND(base!G77,0) -> 22558636 | I86: =ROUND(base!H77,0) -> 19570657 | J86: =ROUND(base!I77,0) -> 22558636 | K86: 0 | L86: =SUM($K$13:K86) -> 2900000 | M86: =ROUND(base!O77,0) -> 3803916 | N86: =ROUND(base!P77,0) -> 4384684 | O86: =ROUND(base!Q77,0) -> 3803916 | P86: =ROUND(base!R77,0) -> 4384684
C87: =IF(base!B78="","",base!B78) -> 75 | D87: =IF(base!C78="","",base!C78+1) -> 75 | E87: =IF(base!D78="","",base!D78) -> 0 | F87: 2000000 | G87: =ROUND(base!F78,0) -> 20255630 | H87: =ROUND(base!G78,0) -> 23330212 | I87: =ROUND(base!H78,0) -> 20000000 | J87: =ROUND(base!I78,0) -> 23330212 | K87: 0 | L87: =SUM($K$13:K87) -> 2900000 | M87: =ROUND(base!O78,0) -> 3937053 | N87: =ROUND(base!P78,0) -> 4534654 | O87: =ROUND(base!Q78,0) -> 3937053 | P87: =ROUND(base!R78,0) -> 4534654
C88: =IF(base!B79="","",base!B79) -> 76 | D88: =IF(base!C79="","",base!C79+1) -> 76 | E88: =IF(base!D79="","",base!D79) -> 0 | F88: 2000000 | G88: =ROUND(base!F79,0) -> 20964577 | H88: =ROUND(base!G79,0) -> 24126036 | I88: =ROUND(base!H79,0) -> 20000000 | J88: =ROUND(base!I79,0) -> 24126036 | K88: 0 | L88: =SUM($K$13:K88) -> 2900000 | M88: =ROUND(base!O79,0) -> 4074850 | N88: =ROUND(base!P79,0) -> 4689337 | O88: =ROUND(base!Q79,0) -> 4074850 | P88: =ROUND(base!R79,0) -> 4689337
C89: =IF(base!B80="","",base!B80) -> 77 | D89: =IF(base!C80="","",base!C80+1) -> 77 | E89: =IF(base!D80="","",base!D80) -> 0 | F89: 2000000 | G89: =ROUND(base!F80,0) -> 21698338 | H89: =ROUND(base!G80,0) -> 24946592 | I89: =ROUND(base!H80,0) -> 20000000 | J89: =ROUND(base!I80,0) -> 24946592 | K89: 0 | L89: =SUM($K$13:K89) -> 2900000 | M89: =ROUND(base!O80,0) -> 4217470 | N89: =ROUND(base!P80,0) -> 4848827 | O89: =ROUND(base!Q80,0) -> 4217470 | P89: =ROUND(base!R80,0) -> 4848827
C90: =IF(base!B81="","",base!B81) -> 78 | D90: =IF(base!C81="","",base!C81+1) -> 78 | E90: =IF(base!D81="","",base!D81) -> 0 | F90: 2000000 | G90: =ROUND(base!F81,0) -> 22457779 | H90: =ROUND(base!G81,0) -> 25792336 | I90: =ROUND(base!H81,0) -> 20000000 | J90: =ROUND(base!I81,0) -> 25792336 | K90: 0 | L90: =SUM($K$13:K90) -> 2900000 | M90: =ROUND(base!O81,0) -> 4365081 | N90: =ROUND(base!P81,0) -> 5013213 | O90: =ROUND(base!Q81,0) -> 4365081 | P90: =ROUND(base!R81,0) -> 5013213
C91: =IF(base!B82="","",base!B82) -> 79 | D91: =IF(base!C82="","",base!C82+1) -> 79 | E91: =IF(base!D82="","",base!D82) -> 0 | F91: 2000000 | G91: =ROUND(base!F82,0) -> 23243802 | H91: =ROUND(base!G82,0) -> 26663700 | I91: =ROUND(base!H82,0) -> 20000000 | J91: =ROUND(base!I82,0) -> 26663700 | K91: 0 | L91: =SUM($K$13:K91) -> 2900000 | M91: =ROUND(base!O82,0) -> 4517859 | N91: =ROUND(base!P82,0) -> 5182579 | O91: =ROUND(base!Q82,0) -> 4517859 | P91: =ROUND(base!R82,0) -> 5182579
C92: =IF(base!B83="","",base!B83) -> 80 | D92: =IF(base!C83="","",base!C83+1) -> 80 | E92: =IF(base!D83="","",base!D83) -> 0 | F92: 2000000 | G92: =ROUND(base!F83,0) -> 24057335 | H92: =ROUND(base!G83,0) -> 27561056 | I92: =ROUND(base!H83,0) -> 20000000 | J92: =ROUND(base!I83,0) -> 27561056 | K92: 0 | L92: =SUM($K$13:K92) -> 2900000 | M92: =ROUND(base!O83,0) -> 4675984 | N92: =ROUND(base!P83,0) -> 5356996 | O92: =ROUND(base!Q83,0) -> 4675984 | P92: =ROUND(base!R83,0) -> 5356996
C93: =IF(base!B84="","",base!B84) -> 81 | D93: =IF(base!C84="","",base!C84+1) -> 81 | E93: =IF(base!D84="","",base!D84) -> 0 | F93: 2000000 | G93: =ROUND(base!F84,0) -> 24899342 | H93: =ROUND(base!G84,0) -> 28484760 | I93: =ROUND(base!H84,0) -> 20000000 | J93: =ROUND(base!I84,0) -> 28484760 | K93: 0 | L93: =SUM($K$13:K93) -> 2900000 | M93: =ROUND(base!O84,0) -> 4839643 | N93: =ROUND(base!P84,0) -> 5536535 | O93: =ROUND(base!Q84,0) -> 4839643 | P93: =ROUND(base!R84,0) -> 5536535
C94: =IF(base!B85="","",base!B85) -> 82 | D94: =IF(base!C85="","",base!C85+1) -> 82 | E94: =IF(base!D85="","",base!D85) -> 0 | F94: 2000000 | G94: =ROUND(base!F85,0) -> 25770818 | H94: =ROUND(base!G85,0) -> 29435092 | I94: =ROUND(base!H85,0) -> 20000000 | J94: =ROUND(base!I85,0) -> 29435092 | K94: 0 | L94: =SUM($K$13:K94) -> 2900000 | M94: =ROUND(base!O85,0) -> 5009031 | N94: =ROUND(base!P85,0) -> 5721250 | O94: =ROUND(base!Q85,0) -> 5009031 | P94: =ROUND(base!R85,0) -> 5721250
C95: =IF(base!B86="","",base!B86) -> 83 | D95: =IF(base!C86="","",base!C86+1) -> 83 | E95: =IF(base!D86="","",base!D86) -> 0 | F95: 2000000 | G95: =ROUND(base!F86,0) -> 26672797 | H95: =ROUND(base!G86,0) -> 30412300 | I95: =ROUND(base!H86,0) -> 20000000 | J95: =ROUND(base!I86,0) -> 30412300 | K95: 0 | L95: =SUM($K$13:K95) -> 2900000 | M95: =ROUND(base!O86,0) -> 5184347 | N95: =ROUND(base!P86,0) -> 5911188 | O95: =ROUND(base!Q86,0) -> 5184347 | P95: =ROUND(base!R86,0) -> 5911188
C96: =IF(base!B87="","",base!B87) -> 84 | D96: =IF(base!C87="","",base!C87+1) -> 84 | E96: =IF(base!D87="","",base!D87) -> 0 | F96: 2000000 | G96: =ROUND(base!F87,0) -> 27606345 | H96: =ROUND(base!G87,0) -> 31416572 | I96: =ROUND(base!H87,0) -> 20000000 | J96: =ROUND(base!I87,0) -> 31416572 | K96: 0 | L96: =SUM($K$13:K96) -> 2900000 | M96: =ROUND(base!O87,0) -> 5365799 | N96: =ROUND(base!P87,0) -> 6106387 | O96: =ROUND(base!Q87,0) -> 5365799 | P96: =ROUND(base!R87,0) -> 6106387
C97: =IF(base!B88="","",base!B88) -> 85 | D97: =IF(base!C88="","",base!C88+1) -> 85 | E97: =IF(base!D88="","",base!D88) -> 0 | F97: 2000000 | G97: =ROUND(base!F88,0) -> 28572567 | H97: =ROUND(base!G88,0) -> 32448028 | I97: =ROUND(base!H88,0) -> 20000000 | J97: =ROUND(base!I88,0) -> 32448028 | K97: 0 | L97: =SUM($K$13:K97) -> 2900000 | M97: =ROUND(base!O88,0) -> 5553602 | N97: =ROUND(base!P88,0) -> 6306869 | O97: =ROUND(base!Q88,0) -> 5553602 | P97: =ROUND(base!R88,0) -> 6306869
C98: =IF(base!B89="","",base!B89) -> 86 | D98: =IF(base!C89="","",base!C89+1) -> 86 | E98: =IF(base!D89="","",base!D89) -> 0 | F98: 2000000 | G98: =ROUND(base!F89,0) -> 29572607 | H98: =ROUND(base!G89,0) -> 33506720 | I98: =ROUND(base!H89,0) -> 20000000 | J98: =ROUND(base!I89,0) -> 33506720 | K98: 0 | L98: =SUM($K$13:K98) -> 2900000 | M98: =ROUND(base!O89,0) -> 5747978 | N98: =ROUND(base!P89,0) -> 6512645 | O98: =ROUND(base!Q89,0) -> 5747978 | P98: =ROUND(base!R89,0) -> 6512645
C99: =IF(base!B90="","",base!B90) -> 87 | D99: =IF(base!C90="","",base!C90+1) -> 87 | E99: =IF(base!D90="","",base!D90) -> 0 | F99: 2000000 | G99: =ROUND(base!F90,0) -> 30607648 | H99: =ROUND(base!G90,0) -> 34592596 | I99: =ROUND(base!H90,0) -> 20000000 | J99: =ROUND(base!I90,0) -> 34592596 | K99: 0 | L99: =SUM($K$13:K99) -> 2900000 | M99: =ROUND(base!O90,0) -> 5949157 | N99: =ROUND(base!P90,0) -> 6723705 | O99: =ROUND(base!Q90,0) -> 5949157 | P99: =ROUND(base!R90,0) -> 6723705
C100: =IF(base!B91="","",base!B91) -> 88 | D100: =IF(base!C91="","",base!C91+1) -> 88 | E100: =IF(base!D91="","",base!D91) -> 0 | F100: 2000000 | G100: =ROUND(base!F91,0) -> 31678916 | H100: =ROUND(base!G91,0) -> 35705484 | I100: =ROUND(base!H91,0) -> 20000000 | J100: =ROUND(base!I91,0) -> 35705484 | K100: 0 | L100: =SUM($K$13:K100) -> 2900000 | M100: =ROUND(base!O91,0) -> 6157378 | N100: =ROUND(base!P91,0) -> 6940015 | O100: =ROUND(base!Q91,0) -> 6157378 | P100: =ROUND(base!R91,0) -> 6940015
C101: =IF(base!B92="","",base!B92) -> 89 | D101: =IF(base!C92="","",base!C92+1) -> 89 | E101: =IF(base!D92="","",base!D92) -> 0 | F101: 2000000 | G101: =ROUND(base!F92,0) -> 32787678 | H101: =ROUND(base!G92,0) -> 36845076 | I101: =ROUND(base!H92,0) -> 20000000 | J101: =ROUND(base!I92,0) -> 36845076 | K101: 0 | L101: =SUM($K$13:K101) -> 2900000 | M101: =ROUND(base!O92,0) -> 6372886 | N101: =ROUND(base!P92,0) -> 7161516 | O101: =ROUND(base!Q92,0) -> 6372886 | P101: =ROUND(base!R92,0) -> 7161516
C102: =IF(base!B93="","",base!B93) -> 90 | D102: =IF(base!C93="","",base!C93+1) -> 90 | E102: =IF(base!D93="","",base!D93) -> 0 | F102: 2000000 | G102: =ROUND(base!F93,0) -> 33935247 | H102: =ROUND(base!G93,0) -> 38010888 | I102: =ROUND(base!H93,0) -> 20000000 | J102: =ROUND(base!I93,0) -> 38010888 | K102: 0 | L102: =SUM($K$13:K102) -> 2900000 | M102: =ROUND(base!O93,0) -> 6595937 | N102: =ROUND(base!P93,0) -> 7388113 | O102: =ROUND(base!Q93,0) -> 6595937 | P102: =ROUND(base!R93,0) -> 7388113
C103: =IF(base!B94="","",base!B94) -> 91 | D103: =IF(base!C94="","",base!C94+1) -> 91 | E103: =IF(base!D94="","",base!D94) -> 0 | F103: 2000000 | G103: =ROUND(base!F94,0) -> 35122980 | H103: =ROUND(base!G94,0) -> 39202252 | I103: =ROUND(base!H94,0) -> 20000000 | J103: =ROUND(base!I94,0) -> 39202252 | K103: 0 | L103: =SUM($K$13:K103) -> 2900000 | M103: =ROUND(base!O94,0) -> 6826795 | N103: =ROUND(base!P94,0) -> 7619676 | O103: =ROUND(base!Q94,0) -> 6826795 | P103: =ROUND(base!R94,0) -> 7619676
C104: =IF(base!B95="","",base!B95) -> 92 | D104: =IF(base!C95="","",base!C95+1) -> 92 | E104: =IF(base!D95="","",base!D95) -> 0 | F104: 2000000 | G104: =ROUND(base!F95,0) -> 36352285 | H104: =ROUND(base!G95,0) -> 40418304 | I104: =ROUND(base!H95,0) -> 20000000 | J104: =ROUND(base!I95,0) -> 40418304 | K104: 0 | L104: =SUM($K$13:K104) -> 2900000 | M104: =ROUND(base!O95,0) -> 7065733 | N104: =ROUND(base!P95,0) -> 7856038 | O104: =ROUND(base!Q95,0) -> 7065733 | P104: =ROUND(base!R95,0) -> 7856038
C105: =IF(base!B96="","",base!B96) -> 93 | D105: =IF(base!C96="","",base!C96+1) -> 93 | E105: =IF(base!D96="","",base!D96) -> 0 | F105: 2000000 | G105: =ROUND(base!F96,0) -> 37624615 | H105: =ROUND(base!G96,0) -> 41657976 | I105: =ROUND(base!H96,0) -> 20000000 | J105: =ROUND(base!I96,0) -> 41657976 | K105: 0 | L105: =SUM($K$13:K105) -> 2900000 | M105: =ROUND(base!O96,0) -> 7313033 | N105: =ROUND(base!P96,0) -> 8096991 | O105: =ROUND(base!Q96,0) -> 7313033 | P105: =ROUND(base!R96,0) -> 8096991
C106: =IF(base!B97="","",base!B97) -> 94 | D106: =IF(base!C97="","",base!C97+1) -> 94 | E106: =IF(base!D97="","",base!D97) -> 0 | F106: 2000000 | G106: =ROUND(base!F97,0) -> 38941476 | H106: =ROUND(base!G97,0) -> 42920032 | I106: =ROUND(base!H97,0) -> 20000000 | J106: =ROUND(base!I97,0) -> 42920032 | K106: 0 | L106: =SUM($K$13:K106) -> 2900000 | M106: =ROUND(base!O97,0) -> 7568990 | N106: =ROUND(base!P97,0) -> 8342295 | O106: =ROUND(base!Q97,0) -> 7568990 | P106: =ROUND(base!R97,0) -> 8342295
C107: =IF(base!B98="","",base!B98) -> 95 | D107: =IF(base!C98="","",base!C98+1) -> 95 | E107: =IF(base!D98="","",base!D98) -> 0 | F107: 2000000 | G107: =ROUND(base!F98,0) -> 40304428 | H107: =ROUND(base!G98,0) -> 44203076 | I107: =ROUND(base!H98,0) -> 20000000 | J107: =ROUND(base!I98,0) -> 44203076 | K107: 0 | L107: =SUM($K$13:K107) -> 2900000 | M107: =ROUND(base!O98,0) -> 7833904 | N107: =ROUND(base!P98,0) -> 8591678 | O107: =ROUND(base!Q98,0) -> 7833904 | P107: =ROUND(base!R98,0) -> 8591678
C108: =IF(base!B99="","",base!B99) -> 96 | D108: =IF(base!C99="","",base!C99+1) -> 96 | E108: =IF(base!D99="","",base!D99) -> 0 | F108: 2000000 | G108: =ROUND(base!F99,0) -> 41715083 | H108: =ROUND(base!G99,0) -> 45505592 | I108: =ROUND(base!H99,0) -> 20000000 | J108: =ROUND(base!I99,0) -> 45505592 | K108: 0 | L108: =SUM($K$13:K108) -> 2900000 | M108: =ROUND(base!O99,0) -> 8108091 | N108: =ROUND(base!P99,0) -> 8844846 | O108: =ROUND(base!Q99,0) -> 8108091 | P108: =ROUND(base!R99,0) -> 8844846
C109: =IF(base!B100="","",base!B100) -> 97 | D109: =IF(base!C100="","",base!C100+1) -> 97 | E109: =IF(base!D100="","",base!D100) -> 0 | F109: 2000000 | G109: =ROUND(base!F100,0) -> 43175111 | H109: =ROUND(base!G100,0) -> 46825988 | I109: =ROUND(base!H100,0) -> 20000000 | J109: =ROUND(base!I100,0) -> 46825988 | K109: 0 | L109: =SUM($K$13:K109) -> 2900000 | M109: =ROUND(base!O100,0) -> 8391874 | N109: =ROUND(base!P100,0) -> 9101489 | O109: =ROUND(base!Q100,0) -> 8391874 | P109: =ROUND(base!R100,0) -> 9101489
C110: =IF(base!B101="","",base!B101) -> 98 | D110: =IF(base!C101="","",base!C101+1) -> 98 | E110: =IF(base!D101="","",base!D101) -> 0 | F110: 2000000 | G110: =ROUND(base!F101,0) -> 44686239 | H110: =ROUND(base!G101,0) -> 48162616 | I110: =ROUND(base!H101,0) -> 20000000 | J110: =ROUND(base!I101,0) -> 48162616 | K110: 0 | L110: =SUM($K$13:K110) -> 2900000 | M110: =ROUND(base!O101,0) -> 8685589 | N110: =ROUND(base!P101,0) -> 9361287 | O110: =ROUND(base!Q101,0) -> 8685589 | P110: =ROUND(base!R101,0) -> 9361287
C111: =IF(base!B102="","",base!B102) -> 99 | D111: =IF(base!C102="","",base!C102+1) -> 99 | E111: =IF(base!D102="","",base!D102) -> 0 | F111: 2000000 | G111: =ROUND(base!F102,0) -> 46250258 | H111: =ROUND(base!G102,0) -> 49513812 | I111: =ROUND(base!H102,0) -> 20000000 | J111: =ROUND(base!I102,0) -> 49513812 | K111: 0 | L111: =SUM($K$13:K111) -> 2900000 | M111: =ROUND(base!O102,0) -> 8989585 | N111: =ROUND(base!P102,0) -> 9623917 | O111: =ROUND(base!Q102,0) -> 8989585 | P111: =ROUND(base!R102,0) -> 9623917
C112: =IF(base!B103="","",base!B103) -> 100 | D112: =IF(base!C103="","",base!C103+1) -> 100 | E112: =IF(base!D103="","",base!D103) -> 0 | F112: 2000000 | G112: =ROUND(base!F103,0) -> 47869017 | H112: =ROUND(base!G103,0) -> 50877896 | I112: =ROUND(base!H103,0) -> 20000000 | J112: =ROUND(base!I103,0) -> 50877896 | K112: 0 | L112: =SUM($K$13:K112) -> 2900000 | M112: =ROUND(base!O103,0) -> 9304221 | N112: =ROUND(base!P103,0) -> 9889051 | O112: =ROUND(base!Q103,0) -> 9304221 | P112: =ROUND(base!R103,0) -> 9889051
C113: =IF(base!B104="","",base!B104) -> 101 | D113: =IF(base!C104="","",base!C104+1) -> 101 | E113: =IF(base!D104="","",base!D104) -> 0 | F113: 2000000 | G113: =ROUND(base!F104,0) -> 49544432 | H113: =ROUND(base!G104,0) -> 52253196 | I113: =ROUND(base!H104,0) -> 20000000 | J113: =ROUND(base!I104,0) -> 52253196 | K113: 0 | L113: =SUM($K$13:K113) -> 2900000 | M113: =ROUND(base!O104,0) -> 9629868 | N113: =ROUND(base!P104,0) -> 10156366 | O113: =ROUND(base!Q104,0) -> 9629868 | P113: =ROUND(base!R104,0) -> 10156366
C114: =IF(base!B105="","",base!B105) -> 102 | D114: =IF(base!C105="","",base!C105+1) -> 102 | E114: =IF(base!D105="","",base!D105) -> 0 | F114: 2000000 | G114: =ROUND(base!F105,0) -> 51278488 | H114: =ROUND(base!G105,0) -> 53638052 | I114: =ROUND(base!H105,0) -> 20000000 | J114: =ROUND(base!I105,0) -> 53638052 | K114: 0 | L114: =SUM($K$13:K114) -> 2900000 | M114: =ROUND(base!O105,0) -> 9966914 | N114: =ROUND(base!P105,0) -> 10425538 | O114: =ROUND(base!Q105,0) -> 9966914 | P114: =ROUND(base!R105,0) -> 10425538
C115: =IF(base!B106="","",base!B106) -> 103 | D115: =IF(base!C106="","",base!C106+1) -> 103 | E115: =IF(base!D106="","",base!D106) -> 0 | F115: 2000000 | G115: =ROUND(base!F106,0) -> 53073235 | H115: =ROUND(base!G106,0) -> 55030836 | I115: =ROUND(base!H106,0) -> 20000000 | J115: =ROUND(base!I106,0) -> 55030836 | K115: 0 | L115: =SUM($K$13:K115) -> 2900000 | M115: =ROUND(base!O106,0) -> 10315756 | N115: =ROUND(base!P106,0) -> 10696251 | O115: =ROUND(base!Q106,0) -> 10315756 | P115: =ROUND(base!R106,0) -> 10696251
C116: =IF(base!B107="","",base!B107) -> 104 | D116: =IF(base!C107="","",base!C107+1) -> 104 | E116: =IF(base!D107="","",base!D107) -> 0 | F116: 2000000 | G116: =ROUND(base!F107,0) -> 54930798 | H116: =ROUND(base!G107,0) -> 56429960 | I116: =ROUND(base!H107,0) -> 20000000 | J116: =ROUND(base!I107,0) -> 56429960 | K116: 0 | L116: =SUM($K$13:K116) -> 2900000 | M116: =ROUND(base!O107,0) -> 10676807 | N116: =ROUND(base!P107,0) -> 10968197 | O116: =ROUND(base!Q107,0) -> 10676807 | P116: =ROUND(base!R107,0) -> 10968197
C117: =IF(base!B108="","",base!B108) -> 105 | D117: =IF(base!C108="","",base!C108+1) -> 105 | E117: =IF(base!D108="","",base!D108) -> 0 | F117: 2000000 | G117: =ROUND(base!F108,0) -> 56853376 | H117: =ROUND(base!G108,0) -> 57833892 | I117: =ROUND(base!H108,0) -> 20000000 | J117: =ROUND(base!I108,0) -> 57833892 | K117: 0 | L117: =SUM($K$13:K117) -> 2900000 | M117: =ROUND(base!O108,0) -> 11050496 | N117: =ROUND(base!P108,0) -> 11241077 | O117: =ROUND(base!Q108,0) -> 11050496 | P117: =ROUND(base!R108,0) -> 11241077
C118: =IF(base!B109="","",base!B109) -> 106 | D118: =IF(base!C109="","",base!C109+1) -> 106 | E118: =IF(base!D109="","",base!D109) -> 0 | F118: 2000000 | G118: =ROUND(base!F109,0) -> 58843244 | H118: =ROUND(base!G109,0) -> 58843244 | I118: =ROUND(base!H109,0) -> 20000000 | J118: =ROUND(base!I109,0) -> 58836572 | K118: 0 | L118: =SUM($K$13:K118) -> 2900000 | M118: =ROUND(base!O109,0) -> 11437263 | N118: =ROUND(base!P109,0) -> 11437263 | O118: =ROUND(base!Q109,0) -> 11437263 | P118: =ROUND(base!R109,0) -> 11435966
C119: 说明：1、演示数据显示到整数位；2、年交保费、累计保费为保单年度初的值，其它为保单年度末的值。

Sheet base (hidden)
B2: 未发生减保 | K2: 发生减保
B3: 保单年度 | C3: 年龄 | D3: 年度保险费 | E3: 基本保险金额 | F3: 有效保险金额 | G3: 身故保险金 | H3: 高铁、航空意外身故或全残保险金 | I3: 现金价值 | K3: 保单年度 | L3: 年龄 | M3: 年度保险费 | N3: 基本保险金额 | O3: 有效保险金额 | P3: 身故保险金 | Q3: 高铁、航空意外身故或全残保险金 | R3: 现金价值 | S3: 减保金额 | T3: 减保领取比列 | U3: 1
A4: 1 | B4: =IF(C4<>"",A4,"") -> 1 | C4: =fun!$B$1 -> 0 | D4: =IF(B4="","",IF(B4>ppp,0,home!$J$9)) -> 400000 | E4: =IF($B4<>"",home!$L$9,"") -> 1588400 | F4: =IF($B4<>"",ROUND(home!$L$9*1.035^(B4-1),0),"") -> 1588400 | G4: =IF($B4<>"",IF(C4<18,MAX(sv*MIN(B4,ppp),I4),IF(B4<=ppp,MAX(sv*MIN(B4,ppp)*IF(C4<41,160%,IF(C4<61,140%,120%)),I4),MAX(sv*MIN(B4,ppp)*IF(C4<41,160%,IF(C4<61,140%,120%)),I4,F4))),"") -> 400000 | H4: =IF(B4="","",MIN(F4,20000000)) -> 1588400 | I4: =IF(C4<>"",ROUND(VLOOKUP(id&"L"&B4,现金价值表!$A$7:$K$43716,8,FALSE)*tbfs,2),"") -> 45812 | K4: =B4 -> 1 | L4: =C4 -> 0 | M4: =D4 -> 400000 | N4: =IF(C4<>"",ROUND(E4*PRODUCT($U$3:$U4),2),"") -> 1588400 | O4: =IF(C4<>"",ROUND(F4*PRODUCT($U$3:$U4),2),"") -> 1588400 | P4: =IF(C4<>"",ROUND(G4*PRODUCT($U$3:$U4),2),"") -> 400000 | Q4: =IF(C4<>"",ROUND(MIN(F4*PRODUCT($U$3:$U4),20000000),2),"") -> 1588400 | R4: =IF(C4<>"",ROUND(I4*PRODUCT($U$3:$U4),2),"") -> 45812 | S4: =home!K13 -> 0 | T4: =IF(C4<>"",S4/(I4*PRODUCT($U$3:U3)),"") -> 0 | U4: =IF(C4<>"",1-T4,"") -> 1
A5: 2 | B5: =IF(C5<>"",A5,"") -> 2 | C5: =IF(C$4+A5-1>105,"",C$4+A5-1) -> 1 | D5: =IF(B5="","",IF(B5>ppp,0,home!$J$9)) -> 400000 | E5: =IF($B5<>"",home!$L$9,"") -> 1588400 | F5: =IF($B5<>"",ROUND(home!$L$9*1.035^(B5-1),0),"") -> 1643994 | G5: 800000 | H5: =IF(B5="","",MIN(F5,20000000)) -> 1643994 | I5: =IF(C5<>"",ROUND(VLOOKUP(id&"L"&B5,现金价值表!$A$7:$K$43716,8,FALSE)*tbfs,2),"") -> 119212 | K5: =B5 -> 2 | L5: =C5 -> 1 | M5: =D5 -> 400000 | N5: =IF(C5<>"",ROUND(E5*PRODUCT($U$3:$U5),2),"") -> 1588400 | O5: =IF(C5<>"",ROUND(F5*PRODUCT($U$3:$U5),2),"") -> 1643994 | P5: =IF(C5<>"",ROUND(G5*PRODUCT($U$3:$U5),2),"") -> 800000 | Q5: =IF(C5<>"",ROUND(MIN(F5*PRODUCT($U$3:$U5),20000000),2),"") -> 1643994 | R5: =IF(C5<>"",ROUND(I5*PRODUCT($U$3:$U5),2),"") -> 119212 | S5: =home!K14 -> 0 | T5: =IF(C5<>"",S5/(I5*PRODUCT($U$3:U4)),"") -> 0 | U5: =IF(C5<>"",1-T5,"") -> 1
A6: 3 | B6: =IF(C6<>"",A6,"") -> 3 | C6: =IF(C$4+A6-1>105,"",C$4+A6-1) -> 2 | D6: =IF(B6="","",IF(B6>ppp,0,home!$J$9)) -> 400000 | E6: =IF($B6<>"",home!$L$9,"") -> 1588400 | F6: =IF($B6<>"",ROUND(home!$L$9*1.035^(B6-1),0),"") -> 1701534 | G6: 1200000 | H6: 1701534 | I6: =IF(C6<>"",ROUND(VLOOKUP(id&"L"&B6,现金价值表!$A$7:$K$43716,8,FALSE)*tbfs,2),"") -> 224804 | K6: 3 | L6: 2 | M6: 400000 | N6: =IF(C6<>"",ROUND(E6*PRODUCT($U$3:$U6),2),"") -> 1588400 | O6: =IF(C6<>"",ROUND(F6*PRODUCT($U$3:$U6),2),"") -> 1701534 | P6: =IF(C6<>"",ROUND(G6*PRODUCT($U$3:$U6),2),"") -> 1200000 | Q6: =IF(C6<>"",ROUND(MIN(F6*PRODUCT($U$3:$U6),20000000),2),"") -> 1701534 | R6: =IF(C6<>"",ROUND(I6*PRODUCT($U$3:$U6),2),"") -> 224804 | S6: =home!K15 -> 0 | T6: =IF(C6<>"",S6/(I6*PRODUCT($U$3:U5)),"") -> 0 | U6: 1
A7: 4 | B7: =IF(C7<>"",A7,"") -> 4 | C7: 3 | D7: =IF(B7="","",IF(B7>ppp,0,home!$J$9)) -> 400000 | E7: =IF($B7<>"",home!$L$9,"") -> 1588400 | F7: =IF($B7<>"",ROUND(home!$L$9*1.035^(B7-1),0),"") -> 1761087 | G7: 1600000 | H7: 1761087 | I7: =IF(C7<>"",ROUND(VLOOKUP(id&"L"&B7,现金价值表!$A$7:$K$43716,8,FALSE)*tbfs,2),"") -> 382488 | K7: 4 | L7: 3 | M7: 400000 | N7: =IF(C7<>"",ROUND(E7*PRODUCT($U$3:$U7),2),"") -> 1588400 | O7: =IF(C7<>"",ROUND(F7*PRODUCT($U$3:$U7),2),"") -> 1761087 | P7: =IF(C7<>"",ROUND(G7*PRODUCT($U$3:$U7),2),"") -> 1600000 | Q7: =IF(C7<>"",ROUND(MIN(F7*PRODUCT($U$3:$U7),20000000),2),"") -> 1761087 | R7: =IF(C7<>"",ROUND(I7*PRODUCT($U$3:$U7),2),"") -> 382488 | S7: =home!K16 -> 0 | T7: =IF(C7<>"",S7/(I7*PRODUCT($U$3:U6)),"") -> 0 | U7: 1
A8: 5 | B8: 5 | C8: 4 | D8: =IF(B8="","",IF(B8>ppp,0,home!$J$9)) -> 400000 | E8: =IF($B8<>"",home!$L$9,"") -> 1588400 | F8: =IF($B8<>"",ROUND(home!$L$9*1.035^(B8-1),0),"") -> 1822726 | G8: 2000000 | H8: 1822726 | I8: =IF(C8<>"",ROUND(VLOOKUP(id&"L"&B8,现金价值表!$A$7:$K$43716,8,FALSE)*tbfs,2),"") -> 560980 | K8: 5 | L8: 4 | M8: 400000 | N8: =IF(C8<>"",ROUND(E8*PRODUCT($U$3:$U8),2),"") -> 1588400 | O8: =IF(C8<>"",ROUND(F8*PRODUCT($U$3:$U8),2),"") -> 1822726 | P8: =IF(C8<>"",ROUND(G8*PRODUCT($U$3:$U8),2),"") -> 2000000 | Q8: =IF(C8<>"",ROUND(MIN(F8*PRODUCT($U$3:$U8),20000000),2),"") -> 1822726 | R8: =IF(C8<>"",ROUND(I8*PRODUCT($U$3:$U8),2),"") -> 560980 | S8: =home!K17 -> 0 | T8: =IF(C8<>"",S8/(I8*PRODUCT($U$3:U7)),"") -> 0 | U8: 1
A9: 6 | B9: 6 | C9: 5 | D9: =IF(B9="","",IF(B9>ppp,0,home!$J$9)) -> 0 | E9: =IF($B9<>"",home!$L$9,"") -> 1588400 | F9: =IF($B9<>"",ROUND(home!$L$9*1.035^(B9-1),0),"") -> 1886521 | G9: 2191132 | H9: 1886521 | I9: =IF(C9<>"",ROUND(VLOOKUP(id&"L"&B9,现金价值表!$A$7:$K$43716,8,FALSE)*tbfs,2),"") -> 2191132 | K9: 6 | L9: 5 | M9: 0 | N9: =IF(C9<>"",ROUND(E9*PRODUCT($U$3:$U9),2),"") -> 1588400 | O9: =IF(C9<>"",ROUND(F9*PRODUCT($U$3:$U9),2),"") -> 1886521 | P9: =IF(C9<>"",ROUND(G9*PRODUCT($U$3:$U9),2),"") -> 2191132 | Q9: =IF(C9<>"",ROUND(MIN(F9*PRODUCT($U$3:$U9),20000000),2),"") -> 1886521 | R9: =IF(C9<>"",ROUND(I9*PRODUCT($U$3:$U9),2),"") -> 2191132 | S9: =home!K18 -> 0 | T9: =IF(C9<>"",S9/(I9*PRODUCT($U$3:U8)),"") -> 0 | U9: 1
A10: 7 | B10: 7 | C10: 6 | D10: =IF(B10="","",IF(B10>ppp,0,home!$J$9)) -> 0 | E10: =IF($B10<>"",home!$L$9,"") -> 1588400 | F10: =IF($B10<>"",ROUND(home!$L$9*1.035^(B10-1),0),"") -> 1952549 | G10: 2267788 | H10: 1952549 | I10: =IF(C10<>"",ROUND(VLOOKUP(id&"L"&B10,现金价值表!$A$7:$K$43716,8,FALSE)*tbfs,2),"") -> 2267788 | K10: 7 | L10: 6 | M10: 0 | N10: =IF(C10<>"",ROUND(E10*PRODUCT($U$3:$U10),2),"") -> 1588400 | O10: =IF(C10<>"",ROUND(F10*PRODUCT($U$3:$U10),2),"") -> 1952549 | P10: =IF(C10<>"",ROUND(G10*PRODUCT($U$3:$U10),2),"") -> 2267788 | Q10: =IF(C10<>"",ROUND(MIN(F10*PRODUCT($U$3:$U10),20000000),2),"") -> 1952549 | R10: =IF(C10<>"",ROUND(I10*PRODUCT($U$3:$U10),2),"") -> 2267788 | S10: =home!K19 -> 0 | T10: =IF(C10<>"",S10/(I10*PRODUCT($U$3:U9)),"") -> 0 | U10: 1
A11: 8 | B11: 8 | C11: 7 | D11: =IF(B11="","",IF(B11>ppp,0,home!$J$9)) -> 0 | E11: =IF($B11<>"",home!$L$9,"") -> 1588400 | F11: =IF($B11<>"",ROUND(home!$L$9*1.035^(B11-1),0),"") -> 2020888 | G11: 2347128 | H11: 2020888 | I11: =IF(C11<>"",ROUND(VLOOKUP(id&"L"&B11,现金价值表!$A$7:$K$43716,8,FALSE)*tbfs,2),"") -> 2347128 | K11: 8 | L11: 7 | M11: 0 | N11: =IF(C11<>"",ROUND(E11*PRODUCT($U$3:$U11),2),"") -> 1588400 | O11: =IF(C11<>"",ROUND(F11*PRODUCT($U$3:$U11),2),"") -> 2020888 | P11: =IF(C11<>"",ROUND(G11*PRODUCT($U$3:$U11),2),"") -> 2347128 | Q11: =IF(C11<>"",ROUND(MIN(F11*PRODUCT($U$3:$U11),20000000),2),"") -> 2020888 | R11: =IF(C11<>"",ROUND(I11*PRODUCT($U$3:$U11),2),"") -> 2347128 | S11: =home!K20 -> 0 | T11: =IF(C11<>"",S11/(I11*PRODUCT($U$3:U10)),"") -> 0 | U11: 1
A12: 9 | B12: 9 | C12: 8 | D12: =IF(B12="","",IF(B12>ppp,0,home!$J$9)) -> 0 | E12: =IF($B12<>"",home!$L$9,"") -> 1588400 | F12: =IF($B12<>"",ROUND(home!$L$9*1.035^(B12-1),0),"") -> 2091619 | G12: 2429240 | H12: 2091619 | I12: =IF(C12<>"",ROUND(VLOOKUP(id&"L"&B12,现金价值表!$A$7:$K$43716,8,FALSE)*tbfs,2),"") -> 2429240 | K12: 9 | L12: 8 | M12: 0 | N12: =IF(C12<>"",ROUND(E12*PRODUCT($U$3:$U12),2),"") -> 1588400 | O12: =IF(C12<>"",ROUND(F12*PRODUCT($U$3:$U12),2),"") -> 2091619 | P12: =IF(C12<>"",ROUND(G12*PRODUCT($U$3:$U12),2),"") -> 2429240 | Q12: =IF(C12<>"",ROUND(MIN(F12*PRODUCT($U$3:$U12),20000000),2),"") -> 2091619 | R12: =IF(C12<>"",ROUND(I12*PRODUCT($U$3:$U12),2),"") -> 2429240 | S12: =home!K21 -> 0 | T12: =IF(C12<>"",S12/(I12*PRODUCT($U$3:U11)),"") -> 0 | U12: 1
A13: 10 | B13: 10 | C13: 9 | D13: =IF(B13="","",IF(B13>ppp,0,home!$J$9)) -> 0 | E13: =IF($B13<>"",home!$L$9,"") -> 1588400 | F13: =IF($B13<>"",ROUND(home!$L$9*1.035^(B13-1),0),"") -> 2164826 | G13: 2514228 | H13: 2164826 | I13: =IF(C13<>"",ROUND(VLOOKUP(id&"L"&B13,现金价值表!$A$7:$K$43716,8,FALSE)*tbfs,2),"") -> 2514228 | K13: 10 | L13: 9 | M13: 0 | N13: =IF(C13<>"",ROUND(E13*PRODUCT($U$3:$U13),2),"") -> 1588400 | O13: =IF(C13<>"",ROUND(F13*PRODUCT($U$3:$U13),2),"") -> 2164826 | P13: =IF(C13<>"",ROUND(G13*PRODUCT($U$3:$U13),2),"") -> 2514228 | Q13: =IF(C13<>"",ROUND(MIN(F13*PRODUCT($U$3:$U13),20000000),2),"") -> 2164826 | R13: =IF(C13<>"",ROUND(I13*PRODUCT($U$3:$U13),2),"") -> 2514228 | S13: =home!K22 -> 0 | T13: =IF(C13<>"",S13/(I13*PRODUCT($U$3:U12)),"") -> 0 | U13: 1
A14: 11 | B14: 11 | C14: 10 | D14: =IF(B14="","",IF(B14>ppp,0,home!$J$9)) -> 0 | E14: =IF($B14<>"",home!$L$9,"") -> 1588400 | F14: =IF($B14<>"",ROUND(home!$L$9*1.035^(B14-1),0),"") -> 2240595 | G14: 2602184 | H14: 2240595 | I14: =IF(C14<>"",ROUND(VLOOKUP(id&"L"&B14,现金价值表!$A$7:$K$43716,8,FALSE)*tbfs,2),"") -> 2602184 | K14: 11 | L14: 10 | M14: 0 | N14: =IF(C14<>"",ROUND(E14*PRODUCT($U$3:$U14),2),"") -> 1588400 | O14: =IF(C14<>"",ROUND(F14*PRODUCT($U$3:$U14),2),"") -> 2240595 | P14: =IF(C14<>"",ROUND(G14*PRODUCT($U$3:$U14),2),"") -> 2602184 | Q14: =IF(C14<>"",ROUND(MIN(F14*PRODUCT($U$3:$U14),20000000),2),"") -> 2240595 | R14: =IF(C14<>"",ROUND(I14*PRODUCT($U$3:$U14),2),"") -> 2602184 | S14: =home!K23 -> 0 | T14: =IF(C14<>"",S14/(I14*PRODUCT($U$3:U13)),"") -> 0 | U14: 1
A15: 12 | B15: 12 | C15: 11 | D15: =IF(B15="","",IF(B15>ppp,0,home!$J$9)) -> 0 | E15: =IF($B15<>"",home!$L$9,"") -> 1588400 | F15: =IF($B15<>"",ROUND(home!$L$9*1.035^(B15-1),0),"") -> 2319016 | G15: 2693220 | H15: 2319016 | I15: =IF(C15<>"",ROUND(VLOOKUP(id&"L"&B15,现金价值表!$A$7:$K$43716,8,FALSE)*tbfs,2),"") -> 2693220 | K15: 12 | L15: 11 | M15: 0 | N15: =IF(C15<>"",ROUND(E15*PRODUCT($U$3:$U15),2),"") -> 1588400 | O15: =IF(C15<>"",ROUND(F15*PRODUCT($U$3:$U15),2),"") -> 2319016 | P15: =IF(C15<>"",ROUND(G15*PRODUCT($U$3:$U15),2),"") -> 2693220 | Q15: =IF(C15<>"",ROUND(MIN(F15*PRODUCT($U$3:$U15),20000000),2),"") -> 2319016 | R15: =IF(C15<>"",ROUND(I15*PRODUCT($U$3:$U15),2),"") -> 2693220 | S15: =home!K24 -> 0 | T15: =IF(C15<>"",S15/(I15*PRODUCT($U$3:U14)),"") -> 0 | U15: 1
A16: 13 | B16: 13 | C16: 12 | D16: =IF(B16="","",IF(B16>ppp,0,home!$J$9)) -> 0 | E16: =IF($B16<>"",home!$L$9,"") -> 1588400 | F16: =IF($B16<>"",ROUND(home!$L$9*1.035^(B16-1),0),"") -> 2400181 | G16: 2787440 | H16: 2400181 | I16: =IF(C16<>"",ROUND(VLOOKUP(id&"L"&B16,现金价值表!$A$7:$K$43716,8,FALSE)*tbfs,2),"") -> 2787440 | K16: 13 | L16: 12 | M16: 0 | N16: =IF(C16<>"",ROUND(E16*PRODUCT($U$3:$U16),2),"") -> 1588400 | O16: =IF(C16<>"",ROUND(F16*PRODUCT($U$3:$U16),2),"") -> 2400181 | P16: =IF(C16<>"",ROUND(G16*PRODUCT($U$3:$U16),2),"") -> 2787440 | Q16: =IF(C16<>"",ROUND(MIN(F16*PRODUCT($U$3:$U16),20000000),2),"") -> 2400181 | R16: =IF(C16<>"",ROUND(I16*PRODUCT($U$3:$U16),2),"") -> 2787440 | S16: =home!K25 -> 0 | T16: =IF(C16<>"",S16/(I16*PRODUCT($U$3:U15)),"") -> 0 | U16: 1
A17: 14 | B17: 14 | C17: 13 | D17: =IF(B17="","",IF(B17>ppp,0,home!$J$9)) -> 0 | E17: =IF($B17<>"",home!$L$9,"") -> 1588400 | F17: =IF($B17<>"",ROUND(home!$L$9*1.035^(B17-1),0),"") -> 2484188 | G17: 2884952 | H17: 2484188 | I17: =IF(C17<>"",ROUND(VLOOKUP(id&"L"&B17,现金价值表!$A$7:$K$43716,8,FALSE)*tbfs,2),"") -> 2884952 | K17: 14 | L17: 13 | M17: 0 | N17: =IF(C17<>"",ROUND(E17*PRODUCT($U$3:$U17),2),"") -> 1588400 | O17: =IF(C17<>"",ROUND(F17*PRODUCT($U$3:$U17),2),"") -> 2484188 | P17: =IF(C17<>"",ROUND(G17*PRODUCT($U$3:$U17),2),"") -> 2884952 | Q17: =IF(C17<>"",ROUND(MIN(F17*PRODUCT($U$3:$U17),20000000),2),"") -> 2484188 | R17: =IF(C17<>"",ROUND(I17*PRODUCT($U$3:$U17),2),"") -> 2884952 | S17: =home!K26 -> 0 | T17: =IF(C17<>"",S17/(I17*PRODUCT($U$3:U16)),"") -> 0 | U17: 1
A18: 15 | B18: 15 | C18: 14 | D18: =IF(B18="","",IF(B18>ppp,0,home!$J$9)) -> 0 | E18: =IF($B18<>"",home!$L$9,"") -> 1588400 | F18: =IF($B18<>"",ROUND(home!$L$9*1.035^(B18-1),0),"") -> 2571134 | G18: 2985872 | H18: 2571134 | I18: =IF(C18<>"",ROUND(VLOOKUP(id&"L"&B18,现金价值表!$A$7:$K$43716,8,FALSE)*tbfs,2),"") -> 2985872 | K18: 15 | L18: 14 | M18: 0 | N18: =IF(C18<>"",ROUND(E18*PRODUCT($U$3:$U18),2),"") -> 1482005.62 | O18: =IF(C18<>"",ROUND(F18*PRODUCT($U$3:$U18),2),"") -> 2398914.03 | P18: =IF(C18<>"",ROUND(G18*PRODUCT($U$3:$U18),2),"") -> 2785872 | Q18: =IF(C18<>"",ROUND(MIN(F18*PRODUCT($U$3:$U18),20000000),2),"") -> 2398914.03 | R18: =IF(C18<>"",ROUND(I18*PRODUCT($U$3:$U18),2),"") -> 2785872 | S18: =home!K27 -> 200000 | T18: =IF(C18<>"",S18/(I18*PRODUCT($U$3:U17)),"") -> 0.06698210774 | U18: 0.9330178923
A19: 16 | B19: 16 | C19: 15 | D19: =IF(B19="","",IF(B19>ppp,0,home!$J$9)) -> 0 | E19: =IF($B19<>"",home!$L$9,"") -> 1588400 | F19: =IF($B19<>"",ROUND(home!$L$9*1.035^(B19-1),0),"") -> 2661124 | G19: 3090324 | H19: 2661124 | I19: =IF(C19<>"",ROUND(VLOOKUP(id&"L"&B19,现金价值表!$A$7:$K$43716,8,FALSE)*tbfs,2),"") -> 3090324 | K19: 16 | L19: 15 | M19: 0 | N19: =IF(C19<>"",ROUND(E19*PRODUCT($U$3:$U19),2),"") -> 1379207.34 | O19: =IF(C19<>"",ROUND(F19*PRODUCT($U$3:$U19),2),"") -> 2310653.33 | P19: =IF(C19<>"",ROUND(G19*PRODUCT($U$3:$U19),2),"") -> 2683327.58 | Q19: =IF(C19<>"",ROUND(MIN(F19*PRODUCT($U$3:$U19),20000000),2),"") -> 2310653.33 | R19: =IF(C19<>"",ROUND(I19*PRODUCT($U$3:$U19),2),"") -> 2683327.58 | S19: =home!K28 -> 200000 | T19: =IF(C19<>"",S19/(I19*PRODUCT($U$3:U18)),"") -> 0.06936430014 | U19: 0.9306356999
A20: 17 | B20: 17 | C20: 16 | D20: =IF(B20="","",IF(B20>ppp,0,home!$J$9)) -> 0 | E20: =IF($B20<>"",home!$L$9,"") -> 1588400 | F20: =IF($B20<>"",ROUND(home!$L$9*1.035^(B20-1),0),"") -> 2754263 | G20: 3198428 | H20: 2754263 | I20: =IF(C20<>"",ROUND(VLOOKUP(id&"L"&B20,现金价值表!$A$7:$K$43716,8,FALSE)*tbfs,2),"") -> 3198428 | K20: 17 | L20: 16 | M20: 0 | N20: =IF(C20<>"",ROUND(E20*PRODUCT($U$3:$U20),2),"") -> 1279883.54 | O20: =IF(C20<>"",ROUND(F20*PRODUCT($U$3:$U20),2),"") -> 2219299.86 | P20: =IF(C20<>"",ROUND(G20*PRODUCT($U$3:$U20),2),"") -> 2577194.26 | Q20: =IF(C20<>"",ROUND(MIN(F20*PRODUCT($U$3:$U20),20000000),2),"") -> 2219299.86 | R20: =IF(C20<>"",ROUND(I20*PRODUCT($U$3:$U20),2),"") -> 2577194.26 | S20: =home!K29 -> 200000 | T20: =IF(C20<>"",S20/(I20*PRODUCT($U$3:U19)),"") -> 0.07201512791 | U20: 0.9279848721
A21: 18 | B21: 18 | C21: 17 | D21: =IF(B21="","",IF(B21>ppp,0,home!$J$9)) -> 0 | E21: =IF($B21<>"",home!$L$9,"") -> 1588400 | F21: =IF($B21<>"",ROUND(home!$L$9*1.035^(B21-1),0),"") -> 2850663 | G21: 3310312 | H21: 2850663 | I21: =IF(C21<>"",ROUND(VLOOKUP(id&"L"&B21,现金价值表!$A$7:$K$43716,8,FALSE)*tbfs,2),"") -> 3310312 | K21: 18 | L21: 17 | M21: 0 | N21: =IF(C21<>"",ROUND(E21*PRODUCT($U$3:$U21),2),"") -> 1183916.76 | O21: =IF(C21<>"",ROUND(F21*PRODUCT($U$3:$U21),2),"") -> 2124746.73 | P21: =IF(C21<>"",ROUND(G21*PRODUCT($U$3:$U21),2),"") -> 2467346.93 | Q21: =IF(C21<>"",ROUND(MIN(F21*PRODUCT($U$3:$U21),20000000),2),"") -> 2124746.73 | R21: =IF(C21<>"",ROUND(I21*PRODUCT($U$3:$U21),2),"") -> 2467346.93 | S21: =home!K30 -> 200000 | T21: =IF(C21<>"",S21/(I21*PRODUCT($U$3:U20)),"") -> 0.0749808726 | U21: 0.9250191274
A22: 19 | B22: 19 | C22: 18 | D22: =IF(B22="","",IF(B22>ppp,0,home!$J$9)) -> 0 | E22: =IF($B22<>"",home!$L$9,"") -> 1588400 | F22: =IF($B22<>"",ROUND(home!$L$9*1.035^(B22-1),0),"") -> 2950436 | G22: 3426112 | H22: 2950436 | I22: =IF(C22<>"",ROUND(VLOOKUP(id&"L"&B22,现金价值表!$A$7:$K$43716,8,FALSE)*tbfs,2),"") -> 3426112 | K22: 19 | L22: 18 | M22: 0 | N22: =IF(C22<>"",ROUND(E22*PRODUCT($U$3:$U22),2),"") -> 1091193.58 | O22: =IF(C22<>"",ROUND(F22*PRODUCT($U$3:$U22),2),"") -> 2026880.4 | P22: =IF(C22<>"",ROUND(G22*PRODUCT($U$3:$U22),2),"") -> 2353658.66 | Q22: =IF(C22<>"",ROUND(MIN(F22*PRODUCT($U$3:$U22),20000000),2),"") -> 2026880.4 | R22: =IF(C22<>"",ROUND(I22*PRODUCT($U$3:$U22),2),"") -> 2353658.66 | S22: =home!K31 -> 200000 | T22: =IF(C22<>"",S22/(I22*PRODUCT($U$3:U21)),"") -> 0.07831900287 | U22: 0.9216809971
A23: 20 | B23: 20 | C23: 19 | D23: =IF(B23="","",IF(B23>ppp,0,home!$J$9)) -> 0 | E23: =IF($B23<>"",home!$L$9,"") -> 1588400 | F23: =IF($B23<>"",ROUND(home!$L$9*1.035^(B23-1),0),"") -> 3053701 | G23: 3545956 | H23: 3053701 | I23: =IF(C23<>"",ROUND(VLOOKUP(id&"L"&B23,现金价值表!$A$7:$K$43716,8,FALSE)*tbfs,2),"") -> 3545956 | K23: 20 | L23: 19 | M23: 0 | N23: =IF(C23<>"",ROUND(E23*PRODUCT($U$3:$U23),2),"") -> 1001604.2 | O23: =IF(C23<>"",ROUND(F23*PRODUCT($U$3:$U23),2),"") -> 1925585.33 | P23: =IF(C23<>"",ROUND(G23*PRODUCT($U$3:$U23),2),"") -> 2235988.68 | Q23: =IF(C23<>"",ROUND(MIN(F23*PRODUCT($U$3:$U23),20000000),2),"") -> 1925585.33 | R23: =IF(C23<>"",ROUND(I23*PRODUCT($U$3:$U23),2),"") -> 2235988.68 | S23: =home!K32 -> 200000 | T23: =IF(C23<>"",S23/(I23*PRODUCT($U$3:U22)),"") -> 0.08210218774 | U23: 0.9178978123
A24: 21 | B24: 21 | C24: 20 | D24: =IF(B24="","",IF(B24>ppp,0,home!$J$9)) -> 0 | E24: =IF($B24<>"",home!$L$9,"") -> 1588400 | F24: =IF($B24<>"",ROUND(home!$L$9*1.035^(B24-1),0),"") -> 3160581 | G24: 3669996 | H24: 3160581 | I24: =IF(C24<>"",ROUND(VLOOKUP(id&"L"&B24,现金价值表!$A$7:$K$43716,8,FALSE)*tbfs,2),"") -> 3669996 | K24: 21 | L24: 20 | M24: 0 | N24: =IF(C24<>"",ROUND(E24*PRODUCT($U$3:$U24),2),"") -> 915042.8 | O24: =IF(C24<>"",ROUND(F24*PRODUCT($U$3:$U24),2),"") -> 1820742.18 | P24: =IF(C24<>"",ROUND(G24*PRODUCT($U$3:$U24),2),"") -> 2114205.12 | Q24: =IF(C24<>"",ROUND(MIN(F24*PRODUCT($U$3:$U24),20000000),2),"") -> 1820742.18 | R24: =IF(C24<>"",ROUND(I24*PRODUCT($U$3:$U24),2),"") -> 2114205.12 | S24: =home!K33 -> 200000 | T24: =IF(C24<>"",S24/(I24*PRODUCT($U$3:U23)),"") -> 0.0864227629 | U24: 0.9135772371
A25: 22 | B25: 22 | C25: 21 | D25: =IF(B25="","",IF(B25>ppp,0,home!$J$9)) -> 0 | E25: =IF($B25<>"",home!$L$9,"") -> 1588400 | F25: =IF($B25<>"",ROUND(home!$L$9*1.035^(B25-1),0),"") -> 3271201 | G25: 3798368 | H25: 3271201 | I25: =IF(C25<>"",ROUND(VLOOKUP(id&"L"&B25,现金价值表!$A$7:$K$43716,8,FALSE)*tbfs,2),"") -> 3798368 | K25: 22 | L25: 21 | M25: 0 | N25: =IF(C25<>"",ROUND(E25*PRODUCT($U$3:$U25),2),"") -> 705953 | O25: =IF(C25<>"",ROUND(F25*PRODUCT($U$3:$U25),2),"") -> 1453861.85 | P25: =IF(C25<>"",ROUND(G25*PRODUCT($U$3:$U25),2),"") -> 1688157.44 | Q25: =IF(C25<>"",ROUND(MIN(F25*PRODUCT($U$3:$U25),20000000),2),"") -> 1453861.85 | R25: =IF(C25<>"",ROUND(I25*PRODUCT($U$3:$U25),2),"") -> 1688157.44 | S25: =home!K34 -> 500000 | T25: =IF(C25<>"",S25/(I25*PRODUCT($U$3:U24)),"") -> 0.2285027533 | U25: 0.7714972467
A26: 23 | B26: 23 | C26: 22 | D26: =IF(B26="","",IF(B26>ppp,0,home!$J$9)) -> 0 | E26: =IF($B26<>"",home!$L$9,"") -> 1588400 | F26: =IF($B26<>"",ROUND(home!$L$9*1.035^(B26-1),0),"") -> 3385693 | G26: 3931236 | H26: 3385693 | I26: =IF(C26<>"",ROUND(VLOOKUP(id&"L"&B26,现金价值表!$A$7:$K$43716,8,FALSE)*tbfs,2),"") -> 3931236 | K26: 23 | L26: 22 | M26: 0 | N26: =IF(C26<>"",ROUND(E26*PRODUCT($U$3:$U26),2),"") -> 503930.02 | O26: =IF(C26<>"",ROUND(F26*PRODUCT($U$3:$U26),2),"") -> 1074132.68 | P26: =IF(C26<>"",ROUND(G26*PRODUCT($U$3:$U26),2),"") -> 1247209.67 | Q26: =IF(C26<>"",ROUND(MIN(F26*PRODUCT($U$3:$U26),20000000),2),"") -> 1074132.68 | R26: =IF(C26<>"",ROUND(I26*PRODUCT($U$3:$U26),2),"") -> 1247209.67 | S26: =home!K35 -> 500000 | T26: =IF(C26<>"",S26/(I26*PRODUCT($U$3:U25)),"") -> 0.2861705771 | U26: 0.7138294229
A27: 24 | B27: 24 | C27: 23 | D27: =IF(B27="","",IF(B27>ppp,0,home!$J$9)) -> 0 | E27: =IF($B27<>"",home!$L$9,"") -> 1588400 | F27: =IF($B27<>"",ROUND(home!$L$9*1.035^(B27-1),0),"") -> 3504192 | G27: 4068744 | H27: 3504192 | I27: =IF(C27<>"",ROUND(VLOOKUP(id&"L"&B27,现金价值表!$A$7:$K$43716,8,FALSE)*tbfs,2),"") -> 4068744 | K27: 24 | L27: 23 | M27: 0 | N27: =IF(C27<>"",ROUND(E27*PRODUCT($U$3:$U27),2),"") -> 308734.65 | O27: =IF(C27<>"",ROUND(F27*PRODUCT($U$3:$U27),2),"") -> 681103.93 | P27: =IF(C27<>"",ROUND(G27*PRODUCT($U$3:$U27),2),"") -> 790834.96 | Q27: =IF(C27<>"",ROUND(MIN(F27*PRODUCT($U$3:$U27),20000000),2),"") -> 681103.93 | R27: =IF(C27<>"",ROUND(I27*PRODUCT($U$3:$U27),2),"") -> 790834.96 | S27: =home!K36 -> 500000 | T27: =IF(C27<>"",S27/(I27*PRODUCT($U$3:U26)),"") -> 0.3873461869 | U27: 0.6126538131
A28: 25 | B28: 25 | C28: 24 | D28: =IF(B28="","",IF(B28>ppp,0,home!$J$9)) -> 0 | E28: =IF($B28<>"",home!$L$9,"") -> 1588400 | F28: =IF($B28<>"",ROUND(home!$L$9*1.035^(B28-1),0),"") -> 3626839 | G28: 4211064 | H28: 3626839 | I28: =IF(C28<>"",ROUND(VLOOKUP(id&"L"&B28,现金价值表!$A$7:$K$43716,8,FALSE)*tbfs,2),"") -> 4211064 | K28: 25 | L28: 24 | M28: 0 | N28: =IF(C28<>"",ROUND(E28*PRODUCT($U$3:$U28),2),"") -> 308734.65 | O28: =IF(C28<>"",ROUND(F28*PRODUCT($U$3:$U28),2),"") -> 704942.63 | P28: =IF(C28<>"",ROUND(G28*PRODUCT($U$3:$U28),2),"") -> 818497.46 | Q28: =IF(C28<>"",ROUND(MIN(F28*PRODUCT($U$3:$U28),20000000),2),"") -> 704942.63 | R28: =IF(C28<>"",ROUND(I28*PRODUCT($U$3:$U28),2),"") -> 818497.46 | S28: =home!K37 -> 0 | T28: =IF(C28<>"",S28/(I28*PRODUCT($U$3:U27)),"") -> 0 | U28: 1
A29: 26 | B29: 26 | C29: 25 | D29: =IF(B29="","",IF(B29>ppp,0,home!$J$9)) -> 0 | E29: =IF($B29<>"",home!$L$9,"") -> 1588400 | F29: =IF($B29<>"",ROUND(home!$L$9*1.035^(B29-1),0),"") -> 3753778 | G29: 4358360 | H29: 3753778 | I29: =IF(C29<>"",ROUND(VLOOKUP(id&"L"&B29,现金价值表!$A$7:$K$43716,8,FALSE)*tbfs,2),"") -> 4358360 | K29: 26 | L29: 25 | M29: 0 | N29: =IF(C29<>"",ROUND(E29*PRODUCT($U$3:$U29),2),"") -> 308734.65 | O29: =IF(C29<>"",ROUND(F29*PRODUCT($U$3:$U29),2),"") -> 729615.55 | P29: =IF(C29<>"",ROUND(G29*PRODUCT($U$3:$U29),2),"") -> 847127.14 | Q29: =IF(C29<>"",ROUND(MIN(F29*PRODUCT($U$3:$U29),20000000),2),"") -> 729615.55 | R29: =IF(C29<>"",ROUND(I29*PRODUCT($U$3:$U29),2),"") -> 847127.14 | S29: =home!K38 -> 0 | T29: =IF(C29<>"",S29/(I29*PRODUCT($U$3:U28)),"") -> 0 | U29: 1
A30: 27 | B30: 27 | C30: 26 | D30: =IF(B30="","",IF(B30>ppp,0,home!$J$9)) -> 0 | E30: =IF($B30<>"",home!$L$9,"") -> 1588400 | F30: =IF($B30<>"",ROUND(home!$L$9*1.035^(B30-1),0),"") -> 3885161 | G30: 4510804 | H30: 3885161 | I30: =IF(C30<>"",ROUND(VLOOKUP(id&"L"&B30,现金价值表!$A$7:$K$43716,8,FALSE)*tbfs,2),"") -> 4510804 | K30: 27 | L30: 26 | M30: 0 | N30: =IF(C30<>"",ROUND(E30*PRODUCT($U$3:$U30),2),"") -> 308734.65 | O30: =IF(C30<>"",ROUND(F30*PRODUCT($U$3:$U30),2),"") -> 755152.24 | P30: =IF(C30<>"",ROUND(G30*PRODUCT($U$3:$U30),2),"") -> 876757.42 | Q30: =IF(C30<>"",ROUND(MIN(F30*PRODUCT($U$3:$U30),20000000),2),"") -> 755152.24 | R30: =IF(C30<>"",ROUND(I30*PRODUCT($U$3:$U30),2),"") -> 876757.42 | S30: =home!K39 -> 0 | T30: =IF(C30<>"",S30/(I30*PRODUCT($U$3:U29)),"") -> 0 | U30: 1
A31: 28 | B31: 28 | C31: 27 | D31: =IF(B31="","",IF(B31>ppp,0,home!$J$9)) -> 0 | E31: =IF($B31<>"",home!$L$9,"") -> 1588400 | F31: =IF($B31<>"",ROUND(home!$L$9*1.035^(B31-1),0),"") -> 4021141 | G31: 4668576 | H31: 4021141 | I31: =IF(C31<>"",ROUND(VLOOKUP(id&"L"&B31,现金价值表!$A$7:$K$43716,8,FALSE)*tbfs,2),"") -> 4668576 | K31: 28 | L31: 27 | M31: 0 | N31: =IF(C31<>"",ROUND(E31*PRODUCT($U$3:$U31),2),"") -> 308734.65 | O31: =IF(C31<>"",ROUND(F31*PRODUCT($U$3:$U31),2),"") -> 781582.45 | P31: =IF(C31<>"",ROUND(G31*PRODUCT($U$3:$U31),2),"") -> 907423.3 | Q31: =IF(C31<>"",ROUND(MIN(F31*PRODUCT($U$3:$U31),20000000),2),"") -> 781582.45 | R31: =IF(C31<>"",ROUND(I31*PRODUCT($U$3:$U31),2),"") -> 907423.3 | S31: =home!K40 -> 0 | T31: =IF(C31<>"",S31/(I31*PRODUCT($U$3:U30)),"") -> 0 | U31: 1
A32: 29 | B32: 29 | C32: 28 | D32: =IF(B32="","",IF(B32>ppp,0,home!$J$9)) -> 0 | E32: =IF($B32<>"",home!$L$9,"") -> 1588400 | F32: =IF($B32<>"",ROUND(home!$L$9*1.035^(B32-1),0),"") -> 4161881 | G32: 4831868 | H32: 4161881 | I32: =IF(C32<>"",ROUND(VLOOKUP(id&"L"&B32,现金价值表!$A$7:$K$43716,8,FALSE)*tbfs,2),"") -> 4831868 | K32: 29 | L32: 28 | M32: 0 | N32: =IF(C32<>"",ROUND(E32*PRODUCT($U$3:$U32),2),"") -> 308734.65 | O32: =IF(C32<>"",ROUND(F32*PRODUCT($U$3:$U32),2),"") -> 808937.84 | P32: =IF(C32<>"",ROUND(G32*PRODUCT($U$3:$U32),2),"") -> 939162.1 | Q32: =IF(C32<>"",ROUND(MIN(F32*PRODUCT($U$3:$U32),20000000),2),"") -> 808937.84 | R32: =IF(C32<>"",ROUND(I32*PRODUCT($U$3:$U32),2),"") -> 939162.1 | S32: =home!K41 -> 0 | T32: =IF(C32<>"",S32/(I32*PRODUCT($U$3:U31)),"") -> 0 | U32: 1
A33: 30 | B33: 30 | C33: 29 | D33: =IF(B33="","",IF(B33>ppp,0,home!$J$9)) -> 0 | E33: =IF($B33<>"",home!$L$9,"") -> 1588400 | F33: =IF($B33<>"",ROUND(home!$L$9*1.035^(B33-1),0),"") -> 4307547 | G33: 5000864 | H33: 4307547 | I33: =IF(C33<>"",ROUND(VLOOKUP(id&"L"&B33,现金价值表!$A$7:$K$43716,8,FALSE)*tbfs,2),"") -> 5000864 | K33: 30 | L33: 29 | M33: 0 | N33: =IF(C33<>"",ROUND(E33*PRODUCT($U$3:$U33),2),"") -> 308734.65 | O33: =IF(C33<>"",ROUND(F33*PRODUCT($U$3:$U33),2),"") -> 837250.7 | P33: =IF(C33<>"",ROUND(G33*PRODUCT($U$3:$U33),2),"") -> 972009.56 | Q33: =IF(C33<>"",ROUND(MIN(F33*PRODUCT($U$3:$U33),20000000),2),"") -> 837250.7 | R33: =IF(C33<>"",ROUND(I33*PRODUCT($U$3:$U33),2),"") -> 972009.56 | S33: =home!K42 -> 0 | T33: =IF(C33<>"",S33/(I33*PRODUCT($U$3:U32)),"") -> 0 | U33: 1
A34: 31 | B34: 31 | C34: 30 | D34: =IF(B34="","",IF(B34>ppp,0,home!$J$9)) -> 0 | E34: =IF($B34<>"",home!$L$9,"") -> 1588400 | F34: =IF($B34<>"",ROUND(home!$L$9*1.035^(B34-1),0),"") -> 4458311 | G34: 5175768 | H34: 4458311 | I34: =IF(C34<>"",ROUND(VLOOKUP(id&"L"&B34,现金价值表!$A$7:$K$43716,8,FALSE)*tbfs,2),"") -> 5175768 | K34: 31 | L34: 30 | M34: 0 | N34: =IF(C34<>"",ROUND(E34*PRODUCT($U$3:$U34),2),"") -> 308734.65 | O34: =IF(C34<>"",ROUND(F34*PRODUCT($U$3:$U34),2),"") -> 866554.45 | P34: =IF(C34<>"",ROUND(G34*PRODUCT($U$3:$U34),2),"") -> 1006005.36 | Q34: =IF(C34<>"",ROUND(MIN(F34*PRODUCT($U$3:$U34),20000000),2),"") -> 866554.45 | R34: =IF(C34<>"",ROUND(I34*PRODUCT($U$3:$U34),2),"") -> 1006005.36 | S34: =home!K43 -> 0 | T34: =IF(C34<>"",S34/(I34*PRODUCT($U$3:U33)),"") -> 0 | U34: 1
A35: 32 | B35: 32 | C35: 31 | D35: =IF(B35="","",IF(B35>ppp,0,home!$J$9)) -> 0 | E35: =IF($B35<>"",home!$L$9,"") -> 1588400 | F35: =IF($B35<>"",ROUND(home!$L$9*1.035^(B35-1),0),"") -> 4614352 | G35: 5356784 | H35: 4614352 | I35: =IF(C35<>"",ROUND(VLOOKUP(id&"L"&B35,现金价值表!$A$7:$K$43716,8,FALSE)*tbfs,2),"") -> 5356784 | K35: 32 | L35: 31 | M35: 0 | N35: =IF(C35<>"",ROUND(E35*PRODUCT($U$3:$U35),2),"") -> 308734.65 | O35: =IF(C35<>"",ROUND(F35*PRODUCT($U$3:$U35),2),"") -> 896883.87 | P35: =IF(C35<>"",ROUND(G35*PRODUCT($U$3:$U35),2),"") -> 1041189.14 | Q35: =IF(C35<>"",ROUND(MIN(F35*PRODUCT($U$3:$U35),20000000),2),"") -> 896883.87 | R35: =IF(C35<>"",ROUND(I35*PRODUCT($U$3:$U35),2),"") -> 1041189.14 | S35: =home!K44 -> 0 | T35: =IF(C35<>"",S35/(I35*PRODUCT($U$3:U34)),"") -> 0 | U35: 1
A36: 33 | B36: 33 | C36: 32 | D36: =IF(B36="","",IF(B36>ppp,0,home!$J$9)) -> 0 | E36: =IF($B36<>"",home!$L$9,"") -> 1588400 | F36: =IF($B36<>"",ROUND(home!$L$9*1.035^(B36-1),0),"") -> 4775854 | G36: =IF($B36<>"",IF(C36<18,MAX(sv*MIN(B36,ppp),I36),IF(B36<=ppp,MAX(sv*MIN(B36,ppp)*IF(C36<41,160%,IF(C36<61,140%,120%)),I36),MAX(sv*MIN(B36,ppp)*IF(C36<41,160%,IF(C36<61,140%,120%)),I36,F36))),"") -> 5544128 | H36: 4775854 | I36: =IF(C36<>"",ROUND(VLOOKUP(id&"L"&B36,现金价值表!$A$7:$K$43716,8,FALSE)*tbfs,2),"") -> 5544128 | K36: 33 | L36: 32 | M36: 0 | N36: =IF(C36<>"",ROUND(E36*PRODUCT($U$3:$U36),2),"") -> 308734.65 | O36: =IF(C36<>"",ROUND(F36*PRODUCT($U$3:$U36),2),"") -> 928274.75 | P36: =IF(C36<>"",ROUND(G36*PRODUCT($U$3:$U36),2),"") -> 1077602.88 | Q36: =IF(C36<>"",ROUND(MIN(F36*PRODUCT($U$3:$U36),20000000),2),"") -> 928274.75 | R36: =IF(C36<>"",ROUND(I36*PRODUCT($U$3:$U36),2),"") -> 1077602.88 | S36: =home!K45 -> 0 | T36: =IF(C36<>"",S36/(I36*PRODUCT($U$3:U35)),"") -> 0 | U36: =IF(C36<>"",1-T36,"") -> 1
A37: 34 | B37: 34 | C37: 33 | D37: =IF(B37="","",IF(B37>ppp,0,home!$J$9)) -> 0 | E37: =IF($B37<>"",home!$L$9,"") -> 1588400 | F37: =IF($B37<>"",ROUND(home!$L$9*1.035^(B37-1),0),"") -> 4943009 | G37: 5738016 | H37: 4943009 | I37: =IF(C37<>"",ROUND(VLOOKUP(id&"L"&B37,现金价值表!$A$7:$K$43716,8,FALSE)*tbfs,2),"") -> 5738016 | K37: =B37 -> 34 | L37: =C37 -> 33 | M37: 0 | N37: =IF(C37<>"",ROUND(E37*PRODUCT($U$3:$U37),2),"") -> 308734.65 | O37: =IF(C37<>"",ROUND(F37*PRODUCT($U$3:$U37),2),"") -> 960764.39 | P37: =IF(C37<>"",ROUND(G37*PRODUCT($U$3:$U37),2),"") -> 1115288.57 | Q37: =IF(C37<>"",ROUND(MIN(F37*PRODUCT($U$3:$U37),20000000),2),"") -> 960764.39 | R37: =IF(C37<>"",ROUND(I37*PRODUCT($U$3:$U37),2),"") -> 1115288.57 | S37: =home!K46 -> 0 | T37: =IF(C37<>"",S37/(I37*PRODUCT($U$3:U36)),"") -> 0 | U37: 1
A38: 35 | B38: 35 | C38: 34 | D38: =IF(B38="","",IF(B38>ppp,0,home!$J$9)) -> 0 | E38: =IF($B38<>"",home!$L$9,"") -> 1588400 | F38: =IF($B38<>"",ROUND(home!$L$9*1.035^(B38-1),0),"") -> 5116015 | G38: 5938676 | H38: 5116015 | I38: =IF(C38<>"",ROUND(VLOOKUP(id&"L"&B38,现金价值表!$A$7:$K$43716,8,FALSE)*tbfs,2),"") -> 5938676 | K38: 35 | L38: 34 | M38: 0 | N38: =IF(C38<>"",ROUND(E38*PRODUCT($U$3:$U38),2),"") -> 308734.65 | O38: =IF(C38<>"",ROUND(F38*PRODUCT($U$3:$U38),2),"") -> 994391.27 | P38: =IF(C38<>"",ROUND(G38*PRODUCT($U$3:$U38),2),"") -> 1154290.51 | Q38: =IF(C38<>"",ROUND(MIN(F38*PRODUCT($U$3:$U38),20000000),2),"") -> 994391.27 | R38: =IF(C38<>"",ROUND(I38*PRODUCT($U$3:$U38),2),"") -> 1154290.51 | S38: =home!K47 -> 0 | T38: =IF(C38<>"",S38/(I38*PRODUCT($U$3:U37)),"") -> 0 | U38: 1
A39: 36 | B39: 36 | C39: 35 | D39: =IF(B39="","",IF(B39>ppp,0,home!$J$9)) -> 0 | E39: =IF($B39<>"",home!$L$9,"") -> 1588400 | F39: =IF($B39<>"",ROUND(home!$L$9*1.035^(B39-1),0),"") -> 5295075 | G39: 6146348 | H39: 5295075 | I39: =IF(C39<>"",ROUND(VLOOKUP(id&"L"&B39,现金价值表!$A$7:$K$43716,8,FALSE)*tbfs,2),"") -> 6146348 | K39: 36 | L39: 35 | M39: 0 | N39: =IF(C39<>"",ROUND(E39*PRODUCT($U$3:$U39),2),"") -> 308734.65 | O39: =IF(C39<>"",ROUND(F39*PRODUCT($U$3:$U39),2),"") -> 1029194.86 | P39: =IF(C39<>"",ROUND(G39*PRODUCT($U$3:$U39),2),"") -> 1194655.37 | Q39: =IF(C39<>"",ROUND(MIN(F39*PRODUCT($U$3:$U39),20000000),2),"") -> 1029194.86 | R39: =IF(C39<>"",ROUND(I39*PRODUCT($U$3:$U39),2),"") -> 1194655.37 | S39: =home!K48 -> 0 | T39: =IF(C39<>"",S39/(I39*PRODUCT($U$3:U38)),"") -> 0 | U39: 1
A40: 37 | B40: 37 | C40: 36 | D40: =IF(B40="","",IF(B40>ppp,0,home!$J$9)) -> 0 | E40: =IF($B40<>"",home!$L$9,"") -> 1588400 | F40: =IF($B40<>"",ROUND(home!$L$9*1.035^(B40-1),0),"") -> 5480403 | G40: 6361272 | H40: 5480403 | I40: =IF(C40<>"",ROUND(VLOOKUP(id&"L"&B40,现金价值表!$A$7:$K$43716,8,FALSE)*tbfs,2),"") -> 6361272 | K40: 37 | L40: 36 | M40: 0 | N40: =IF(C40<>"",ROUND(E40*PRODUCT($U$3:$U40),2),"") -> 308734.65 | O40: =IF(C40<>"",ROUND(F40*PRODUCT($U$3:$U40),2),"") -> 1065216.76 | P40: =IF(C40<>"",ROUND(G40*PRODUCT($U$3:$U40),2),"") -> 1236429.79 | Q40: =IF(C40<>"",ROUND(MIN(F40*PRODUCT($U$3:$U40),20000000),2),"") -> 1065216.76 | R40: =IF(C40<>"",ROUND(I40*PRODUCT($U$3:$U40),2),"") -> 1236429.79 | S40: =home!K49 -> 0 | T40: =IF(C40<>"",S40/(I40*PRODUCT($U$3:U39)),"") -> 0 | U40: 1
A41: 38 | B41: 38 | C41: 37 | D41: =IF(B41="","",IF(B41>ppp,0,home!$J$9)) -> 0 | E41: =IF($B41<>"",home!$L$9,"") -> 1588400 | F41: =IF($B41<>"",ROUND(home!$L$9*1.035^(B41-1),0),"") -> 5672217 | G41: 6583700 | H41: 5672217 | I41: =IF(C41<>"",ROUND(VLOOKUP(id&"L"&B41,现金价值表!$A$7:$K$43716,8,FALSE)*tbfs,2),"") -> 6583700 | K41: 38 | L41: 37 | M41: 0 | N41: =IF(C41<>"",ROUND(E41*PRODUCT($U$3:$U41),2),"") -> 308734.65 | O41: =IF(C41<>"",ROUND(F41*PRODUCT($U$3:$U41),2),"") -> 1102499.32 | P41: =IF(C41<>"",ROUND(G41*PRODUCT($U$3:$U41),2),"") -> 1279662.75 | Q41: =IF(C41<>"",ROUND(MIN(F41*PRODUCT($U$3:$U41),20000000),2),"") -> 1102499.32 | R41: =IF(C41<>"",ROUND(I41*PRODUCT($U$3:$U41),2),"") -> 1279662.75 | S41: =home!K50 -> 0 | T41: =IF(C41<>"",S41/(I41*PRODUCT($U$3:U40)),"") -> 0 | U41: 1
A42: 39 | B42: 39 | C42: 38 | D42: =IF(B42="","",IF(B42>ppp,0,home!$J$9)) -> 0 | E42: =IF($B42<>"",home!$L$9,"") -> 1588400 | F42: =IF($B42<>"",ROUND(home!$L$9*1.035^(B42-1),0),"") -> 5870744 | G42: 6813892 | H42: 5870744 | I42: =IF(C42<>"",ROUND(VLOOKUP(id&"L"&B42,现金价值表!$A$7:$K$43716,8,FALSE)*tbfs,2),"") -> 6813892 | K42: 39 | L42: 38 | M42: 0 | N42: =IF(C42<>"",ROUND(E42*PRODUCT($U$3:$U42),2),"") -> 308734.65 | O42: =IF(C42<>"",ROUND(F42*PRODUCT($U$3:$U42),2),"") -> 1141086.68 | P42: =IF(C42<>"",ROUND(G42*PRODUCT($U$3:$U42),2),"") -> 1324404.78 | Q42: =IF(C42<>"",ROUND(MIN(F42*PRODUCT($U$3:$U42),20000000),2),"") -> 1141086.68 | R42: =IF(C42<>"",ROUND(I42*PRODUCT($U$3:$U42),2),"") -> 1324404.78 | S42: =home!K51 -> 0 | T42: =IF(C42<>"",S42/(I42*PRODUCT($U$3:U41)),"") -> 0 | U42: 1
A43: 40 | B43: 40 | C43: 39 | D43: =IF(B43="","",IF(B43>ppp,0,home!$J$9)) -> 0 | E43: =IF($B43<>"",home!$L$9,"") -> 1588400 | F43: =IF($B43<>"",ROUND(home!$L$9*1.035^(B43-1),0),"") -> 6076220 | G43: 7052120 | H43: 6076220 | I43: =IF(C43<>"",ROUND(VLOOKUP(id&"L"&B43,现金价值表!$A$7:$K$43716,8,FALSE)*tbfs,2),"") -> 7052120 | K43: 40 | L43: 39 | M43: 0 | N43: =IF(C43<>"",ROUND(E43*PRODUCT($U$3:$U43),2),"") -> 308734.65 | O43: =IF(C43<>"",ROUND(F43*PRODUCT($U$3:$U43),2),"") -> 1181024.71 | P43: =IF(C43<>"",ROUND(G43*PRODUCT($U$3:$U43),2),"") -> 1370708.76 | Q43: =IF(C43<>"",ROUND(MIN(F43*PRODUCT($U$3:$U43),20000000),2),"") -> 1181024.71 | R43: =IF(C43<>"",ROUND(I43*PRODUCT($U$3:$U43),2),"") -> 1370708.76 | S43: =home!K52 -> 0 | T43: =IF(C43<>"",S43/(I43*PRODUCT($U$3:U42)),"") -> 0 | U43: 1
A44: 41 | B44: 41 | C44: 40 | D44: =IF(B44="","",IF(B44>ppp,0,home!$J$9)) -> 0 | E44: =IF($B44<>"",home!$L$9,"") -> 1588400 | F44: =IF($B44<>"",ROUND(home!$L$9*1.035^(B44-1),0),"") -> 6288888 | G44: 7298656 | H44: 6288888 | I44: =IF(C44<>"",ROUND(VLOOKUP(id&"L"&B44,现金价值表!$A$7:$K$43716,8,FALSE)*tbfs,2),"") -> 7298656 | K44: 41 | L44: 40 | M44: 0 | N44: =IF(C44<>"",ROUND(E44*PRODUCT($U$3:$U44),2),"") -> 308734.65 | O44: =IF(C44<>"",ROUND(F44*PRODUCT($U$3:$U44),2),"") -> 1222360.63 | P44: =IF(C44<>"",ROUND(G44*PRODUCT($U$3:$U44),2),"") -> 1418627.55 | Q44: =IF(C44<>"",ROUND(MIN(F44*PRODUCT($U$3:$U44),20000000),2),"") -> 1222360.63 | R44: =IF(C44<>"",ROUND(I44*PRODUCT($U$3:$U44),2),"") -> 1418627.55 | S44: =home!K53 -> 0 | T44: =IF(C44<>"",S44/(I44*PRODUCT($U$3:U43)),"") -> 0 | U44: 1
A45: 42 | B45: 42 | C45: 41 | D45: =IF(B45="","",IF(B45>ppp,0,home!$J$9)) -> 0 | E45: =IF($B45<>"",home!$L$9,"") -> 1588400 | F45: =IF($B45<>"",ROUND(home!$L$9*1.035^(B45-1),0),"") -> 6508999 | G45: 7553796 | H45: 6508999 | I45: =IF(C45<>"",ROUND(VLOOKUP(id&"L"&B45,现金价值表!$A$7:$K$43716,8,FALSE)*tbfs,2),"") -> 7553796 | K45: 42 | L45: 41 | M45: 0 | N45: =IF(C45<>"",ROUND(E45*PRODUCT($U$3:$U45),2),"") -> 308734.65 | O45: =IF(C45<>"",ROUND(F45*PRODUCT($U$3:$U45),2),"") -> 1265143.24 | P45: =IF(C45<>"",ROUND(G45*PRODUCT($U$3:$U45),2),"") -> 1468218.68 | Q45: =IF(C45<>"",ROUND(MIN(F45*PRODUCT($U$3:$U45),20000000),2),"") -> 1265143.24 | R45: =IF(C45<>"",ROUND(I45*PRODUCT($U$3:$U45),2),"") -> 1468218.68 | S45: =home!K54 -> 0 | T45: =IF(C45<>"",S45/(I45*PRODUCT($U$3:U44)),"") -> 0 | U45: 1
A46: 43 | B46: 43 | C46: 42 | D46: =IF(B46="","",IF(B46>ppp,0,home!$J$9)) -> 0 | E46: =IF($B46<>"",home!$L$9,"") -> 1588400 | F46: =IF($B46<>"",ROUND(home!$L$9*1.035^(B46-1),0),"") -> 6736814 | G46: 7817828 | H46: 6736814 | I46: =IF(C46<>"",ROUND(VLOOKUP(id&"L"&B46,现金价值表!$A$7:$K$43716,8,FALSE)*tbfs,2),"") -> 7817828 | K46: 43 | L46: 42 | M46: 0 | N46: =IF(C46<>"",ROUND(E46*PRODUCT($U$3:$U46),2),"") -> 308734.65 | O46: =IF(C46<>"",ROUND(F46*PRODUCT($U$3:$U46),2),"") -> 1309423.26 | P46: =IF(C46<>"",ROUND(G46*PRODUCT($U$3:$U46),2),"") -> 1519538.14 | Q46: =IF(C46<>"",ROUND(MIN(F46*PRODUCT($U$3:$U46),20000000),2),"") -> 1309423.26 | R46: =IF(C46<>"",ROUND(I46*PRODUCT($U$3:$U46),2),"") -> 1519538.14 | S46: =home!K55 -> 0 | T46: =IF(C46<>"",S46/(I46*PRODUCT($U$3:U45)),"") -> 0 | U46: 1
A47: 44 | B47: 44 | C47: 43 | D47: =IF(B47="","",IF(B47>ppp,0,home!$J$9)) -> 0 | E47: =IF($B47<>"",home!$L$9,"") -> 1588400 | F47: =IF($B47<>"",ROUND(home!$L$9*1.035^(B47-1),0),"") -> 6972603 | G47: 8091060 | H47: 6972603 | I47: =IF(C47<>"",ROUND(VLOOKUP(id&"L"&B47,现金价值表!$A$7:$K$43716,8,FALSE)*tbfs,2),"") -> 8091060 | K47: 44 | L47: 43 | M47: 0 | N47: =IF(C47<>"",ROUND(E47*PRODUCT($U$3:$U47),2),"") -> 308734.65 | O47: =IF(C47<>"",ROUND(F47*PRODUCT($U$3:$U47),2),"") -> 1355253.17 | P47: =IF(C47<>"",ROUND(G47*PRODUCT($U$3:$U47),2),"") -> 1572645.79 | Q47: =IF(C47<>"",ROUND(MIN(F47*PRODUCT($U$3:$U47),20000000),2),"") -> 1355253.17 | R47: =IF(C47<>"",ROUND(I47*PRODUCT($U$3:$U47),2),"") -> 1572645.79 | S47: =home!K56 -> 0 | T47: =IF(C47<>"",S47/(I47*PRODUCT($U$3:U46)),"") -> 0 | U47: 1
A48: 45 | B48: 45 | C48: 44 | D48: =IF(B48="","",IF(B48>ppp,0,home!$J$9)) -> 0 | E48: =IF($B48<>"",home!$L$9,"") -> 1588400 | F48: =IF($B48<>"",ROUND(home!$L$9*1.035^(B48-1),0),"") -> 7216644 | G48: 8373812 | H48: 7216644 | I48: =IF(C48<>"",ROUND(VLOOKUP(id&"L"&B48,现金价值表!$A$7:$K$43716,8,FALSE)*tbfs,2),"") -> 8373812 | K48: 45 | L48: 44 | M48: 0 | N48: =IF(C48<>"",ROUND(E48*PRODUCT($U$3:$U48),2),"") -> 308734.65 | O48: =IF(C48<>"",ROUND(F48*PRODUCT($U$3:$U48),2),"") -> 1402687.01 | P48: =IF(C48<>"",ROUND(G48*PRODUCT($U$3:$U48),2),"") -> 1627603.82 | Q48: =IF(C48<>"",ROUND(MIN(F48*PRODUCT($U$3:$U48),20000000),2),"") -> 1402687.01 | R48: =IF(C48<>"",ROUND(I48*PRODUCT($U$3:$U48),2),"") -> 1627603.82 | S48: =home!K57 -> 0 | T48: =IF(C48<>"",S48/(I48*PRODUCT($U$3:U47)),"") -> 0 | U48: 1
A49: 46 | B49: 46 | C49: 45 | D49: =IF(B49="","",IF(B49>ppp,0,home!$J$9)) -> 0 | E49: =IF($B49<>"",home!$L$9,"") -> 1588400 | F49: =IF($B49<>"",ROUND(home!$L$9*1.035^(B49-1),0),"") -> 7469226 | G49: 8666408 | H49: 7469226 | I49: =IF(C49<>"",ROUND(VLOOKUP(id&"L"&B49,现金价值表!$A$7:$K$43716,8,FALSE)*tbfs,2),"") -> 8666408 | K49: 46 | L49: 45 | M49: 0 | N49: =IF(C49<>"",ROUND(E49*PRODUCT($U$3:$U49),2),"") -> 308734.65 | O49: =IF(C49<>"",ROUND(F49*PRODUCT($U$3:$U49),2),"") -> 1451780.96 | P49: =IF(C49<>"",ROUND(G49*PRODUCT($U$3:$U49),2),"") -> 1684475.22 | Q49: =IF(C49<>"",ROUND(MIN(F49*PRODUCT($U$3:$U49),20000000),2),"") -> 1451780.96 | R49: =IF(C49<>"",ROUND(I49*PRODUCT($U$3:$U49),2),"") -> 1684475.22 | S49: =home!K58 -> 0 | T49: =IF(C49<>"",S49/(I49*PRODUCT($U$3:U48)),"") -> 0 | U49: 1
A50: 47 | B50: 47 | C50: 46 | D50: =IF(B50="","",IF(B50>ppp,0,home!$J$9)) -> 0 | E50: =IF($B50<>"",home!$L$9,"") -> 1588400 | F50: =IF($B50<>"",ROUND(home!$L$9*1.035^(B50-1),0),"") -> 7730649 | G50: 8969184 | H50: 7730649 | I50: =IF(C50<>"",ROUND(VLOOKUP(id&"L"&B50,现金价值表!$A$7:$K$43716,8,FALSE)*tbfs,2),"") -> 8969184 | K50: 47 | L50: 46 | M50: 0 | N50: =IF(C50<>"",ROUND(E50*PRODUCT($U$3:$U50),2),"") -> 308734.65 | O50: =IF(C50<>"",ROUND(F50*PRODUCT($U$3:$U50),2),"") -> 1502593.31 | P50: =IF(C50<>"",ROUND(G50*PRODUCT($U$3:$U50),2),"") -> 1743325.28 | Q50: =IF(C50<>"",ROUND(MIN(F50*PRODUCT($U$3:$U50),20000000),2),"") -> 1502593.31 | R50: =IF(C50<>"",ROUND(I50*PRODUCT($U$3:$U50),2),"") -> 1743325.28 | S50: =home!K59 -> 0 | T50: =IF(C50<>"",S50/(I50*PRODUCT($U$3:U49)),"") -> 0 | U50: 1
A51: 48 | B51: 48 | C51: 47 | D51: =IF(B51="","",IF(B51>ppp,0,home!$J$9)) -> 0 | E51: =IF($B51<>"",home!$L$9,"") -> 1588400 | F51: =IF($B51<>"",ROUND(home!$L$9*1.035^(B51-1),0),"") -> 8001222 | G51: 9282488 | H51: 8001222 | I51: =IF(C51<>"",ROUND(VLOOKUP(id&"L"&B51,现金价值表!$A$7:$K$43716,8,FALSE)*tbfs,2),"") -> 9282488 | K51: 48 | L51: 47 | M51: 0 | N51: =IF(C51<>"",ROUND(E51*PRODUCT($U$3:$U51),2),"") -> 308734.65 | O51: =IF(C51<>"",ROUND(F51*PRODUCT($U$3:$U51),2),"") -> 1555184.13 | P51: =IF(C51<>"",ROUND(G51*PRODUCT($U$3:$U51),2),"") -> 1804221.66 | Q51: =IF(C51<>"",ROUND(MIN(F51*PRODUCT($U$3:$U51),20000000),2),"") -> 1555184.13 | R51: =IF(C51<>"",ROUND(I51*PRODUCT($U$3:$U51),2),"") -> 1804221.66 | S51: =home!K60 -> 0 | T51: =IF(C51<>"",S51/(I51*PRODUCT($U$3:U50)),"") -> 0 | U51: 1
A52: 49 | B52: 49 | C52: 48 | D52: =IF(B52="","",IF(B52>ppp,0,home!$J$9)) -> 0 | E52: =IF($B52<>"",home!$L$9,"") -> 1588400 | F52: =IF($B52<>"",ROUND(home!$L$9*1.035^(B52-1),0),"") -> 8281265 | G52: 9606688 | H52: 8281265 | I52: =IF(C52<>"",ROUND(VLOOKUP(id&"L"&B52,现金价值表!$A$7:$K$43716,8,FALSE)*tbfs,2),"") -> 9606688 | K52: 49 | L52: 48 | M52: 0 | N52: =IF(C52<>"",ROUND(E52*PRODUCT($U$3:$U52),2),"") -> 308734.65 | O52: =IF(C52<>"",ROUND(F52*PRODUCT($U$3:$U52),2),"") -> 1609615.62 | P52: =IF(C52<>"",ROUND(G52*PRODUCT($U$3:$U52),2),"") -> 1867235.87 | Q52: =IF(C52<>"",ROUND(MIN(F52*PRODUCT($U$3:$U52),20000000),2),"") -> 1609615.62 | R52: =IF(C52<>"",ROUND(I52*PRODUCT($U$3:$U52),2),"") -> 1867235.87 | S52: =home!K61 -> 0 | T52: =IF(C52<>"",S52/(I52*PRODUCT($U$3:U51)),"") -> 0 | U52: 1
A53: 50 | B53: 50 | C53: 49 | D53: =IF(B53="","",IF(B53>ppp,0,home!$J$9)) -> 0 | E53: =IF($B53<>"",home!$L$9,"") -> 1588400 | F53: =IF($B53<>"",ROUND(home!$L$9*1.035^(B53-1),0),"") -> 8571109 | G53: 9942144 | H53: 8571109 | I53: =IF(C53<>"",ROUND(VLOOKUP(id&"L"&B53,现金价值表!$A$7:$K$43716,8,FALSE)*tbfs,2),"") -> 9942144 | K53: 50 | L53: 49 | M53: 0 | N53: =IF(C53<>"",ROUND(E53*PRODUCT($U$3:$U53),2),"") -> 308734.65 | O53: =IF(C53<>"",ROUND(F53*PRODUCT($U$3:$U53),2),"") -> 1665952.11 | P53: =IF(C53<>"",ROUND(G53*PRODUCT($U$3:$U53),2),"") -> 1932437.89 | Q53: =IF(C53<>"",ROUND(MIN(F53*PRODUCT($U$3:$U53),20000000),2),"") -> 1665952.11 | R53: =IF(C53<>"",ROUND(I53*PRODUCT($U$3:$U53),2),"") -> 1932437.89 | S53: =home!K62 -> 0 | T53: =IF(C53<>"",S53/(I53*PRODUCT($U$3:U52)),"") -> 0 | U53: 1
A54: 51 | B54: 51 | C54: 50 | D54: =IF(B54="","",IF(B54>ppp,0,home!$J$9)) -> 0 | E54: =IF($B54<>"",home!$L$9,"") -> 1588400 | F54: =IF($B54<>"",ROUND(home!$L$9*1.035^(B54-1),0),"") -> 8871098 | G54: 10289256 | H54: 8871098 | I54: =IF(C54<>"",ROUND(VLOOKUP(id&"L"&B54,现金价值表!$A$7:$K$43716,8,FALSE)*tbfs,2),"") -> 10289256 | K54: 51 | L54: 50 | M54: 0 | N54: =IF(C54<>"",ROUND(E54*PRODUCT($U$3:$U54),2),"") -> 308734.65 | O54: =IF(C54<>"",ROUND(F54*PRODUCT($U$3:$U54),2),"") -> 1724260.47 | P54: =IF(C54<>"",ROUND(G54*PRODUCT($U$3:$U54),2),"") -> 1999905.47 | Q54: =IF(C54<>"",ROUND(MIN(F54*PRODUCT($U$3:$U54),20000000),2),"") -> 1724260.47 | R54: =IF(C54<>"",ROUND(I54*PRODUCT($U$3:$U54),2),"") -> 1999905.47 | S54: =home!K63 -> 0 | T54: =IF(C54<>"",S54/(I54*PRODUCT($U$3:U53)),"") -> 0 | U54: 1
A55: 52 | B55: 52 | C55: 51 | D55: =IF(B55="","",IF(B55>ppp,0,home!$J$9)) -> 0 | E55: =IF($B55<>"",home!$L$9,"") -> 1588400 | F55: =IF($B55<>"",ROUND(home!$L$9*1.035^(B55-1),0),"") -> 9181586 | G55: 10648408 | H55: 9181586 | I55: =IF(C55<>"",ROUND(VLOOKUP(id&"L"&B55,现金价值表!$A$7:$K$43716,8,FALSE)*tbfs,2),"") -> 10648408 | K55: 52 | L55: 51 | M55: 0 | N55: =IF(C55<>"",ROUND(E55*PRODUCT($U$3:$U55),2),"") -> 308734.65 | O55: =IF(C55<>"",ROUND(F55*PRODUCT($U$3:$U55),2),"") -> 1784609.5 | P55: =IF(C55<>"",ROUND(G55*PRODUCT($U$3:$U55),2),"") -> 2069713.24 | Q55: =IF(C55<>"",ROUND(MIN(F55*PRODUCT($U$3:$U55),20000000),2),"") -> 1784609.5 | R55: =IF(C55<>"",ROUND(I55*PRODUCT($U$3:$U55),2),"") -> 2069713.24 | S55: =home!K64 -> 0 | T55: =IF(C55<>"",S55/(I55*PRODUCT($U$3:U54)),"") -> 0 | U55: 1
A56: 53 | B56: 53 | C56: 52 | D56: =IF(B56="","",IF(B56>ppp,0,home!$J$9)) -> 0 | E56: =IF($B56<>"",home!$L$9,"") -> 1588400 | F56: =IF($B56<>"",ROUND(home!$L$9*1.035^(B56-1),0),"") -> 9502942 | G56: 11020028 | H56: 9502942 | I56: =IF(C56<>"",ROUND(VLOOKUP(id&"L"&B56,现金价值表!$A$7:$K$43716,8,FALSE)*tbfs,2),"") -> 11020028 | K56: 53 | L56: 52 | M56: 0 | N56: =IF(C56<>"",ROUND(E56*PRODUCT($U$3:$U56),2),"") -> 308734.65 | O56: =IF(C56<>"",ROUND(F56*PRODUCT($U$3:$U56),2),"") -> 1847070.93 | P56: =IF(C56<>"",ROUND(G56*PRODUCT($U$3:$U56),2),"") -> 2141944.4 | Q56: =IF(C56<>"",ROUND(MIN(F56*PRODUCT($U$3:$U56),20000000),2),"") -> 1847070.93 | R56: =IF(C56<>"",ROUND(I56*PRODUCT($U$3:$U56),2),"") -> 2141944.4 | S56: =home!K65 -> 0 | T56: =IF(C56<>"",S56/(I56*PRODUCT($U$3:U55)),"") -> 0 | U56: 1
A57: 54 | B57: 54 | C57: 53 | D57: =IF(B57="","",IF(B57>ppp,0,home!$J$9)) -> 0 | E57: =IF($B57<>"",home!$L$9,"") -> 1588400 | F57: =IF($B57<>"",ROUND(home!$L$9*1.035^(B57-1),0),"") -> 9835545 | G57: 11404528 | H57: 9835545 | I57: =IF(C57<>"",ROUND(VLOOKUP(id&"L"&B57,现金价值表!$A$7:$K$43716,8,FALSE)*tbfs,2),"") -> 11404528 | K57: 54 | L57: 53 | M57: 0 | N57: =IF(C57<>"",ROUND(E57*PRODUCT($U$3:$U57),2),"") -> 308734.65 | O57: =IF(C57<>"",ROUND(F57*PRODUCT($U$3:$U57),2),"") -> 1911718.42 | P57: =IF(C57<>"",ROUND(G57*PRODUCT($U$3:$U57),2),"") -> 2216679.02 | Q57: =IF(C57<>"",ROUND(MIN(F57*PRODUCT($U$3:$U57),20000000),2),"") -> 1911718.42 | R57: =IF(C57<>"",ROUND(I57*PRODUCT($U$3:$U57),2),"") -> 2216679.02 | S57: =home!K66 -> 0 | T57: =IF(C57<>"",S57/(I57*PRODUCT($U$3:U56)),"") -> 0 | U57: 1
A58: 55 | B58: 55 | C58: 54 | D58: =IF(B58="","",IF(B58>ppp,0,home!$J$9)) -> 0 | E58: =IF($B58<>"",home!$L$9,"") -> 1588400 | F58: =IF($B58<>"",ROUND(home!$L$9*1.035^(B58-1),0),"") -> 10179789 | G58: 11802364 | H58: 10179789 | I58: =IF(C58<>"",ROUND(VLOOKUP(id&"L"&B58,现金价值表!$A$7:$K$43716,8,FALSE)*tbfs,2),"") -> 11802364 | K58: 55 | L58: 54 | M58: 0 | N58: =IF(C58<>"",ROUND(E58*PRODUCT($U$3:$U58),2),"") -> 308734.65 | O58: =IF(C58<>"",ROUND(F58*PRODUCT($U$3:$U58),2),"") -> 1978628.55 | P58: =IF(C58<>"",ROUND(G58*PRODUCT($U$3:$U58),2),"") -> 2294005.74 | Q58: =IF(C58<>"",ROUND(MIN(F58*PRODUCT($U$3:$U58),20000000),2),"") -> 1978628.55 | R58: =IF(C58<>"",ROUND(I58*PRODUCT($U$3:$U58),2),"") -> 2294005.74 | S58: =home!K67 -> 0 | T58: =IF(C58<>"",S58/(I58*PRODUCT($U$3:U57)),"") -> 0 | U58: 1
A59: 56 | B59: 56 | C59: 55 | D59: =IF(B59="","",IF(B59>ppp,0,home!$J$9)) -> 0 | E59: =IF($B59<>"",home!$L$9,"") -> 1588400 | F59: =IF($B59<>"",ROUND(home!$L$9*1.035^(B59-1),0),"") -> 10536081 | G59: 12213980 | H59: 10536081 | I59: =IF(C59<>"",ROUND(VLOOKUP(id&"L"&B59,现金价值表!$A$7:$K$43716,8,FALSE)*tbfs,2),"") -> 12213980 | K59: 56 | L59: 55 | M59: 0 | N59: =IF(C59<>"",ROUND(E59*PRODUCT($U$3:$U59),2),"") -> 308734.65 | O59: =IF(C59<>"",ROUND(F59*PRODUCT($U$3:$U59),2),"") -> 2047880.43 | P59: =IF(C59<>"",ROUND(G59*PRODUCT($U$3:$U59),2),"") -> 2374010.85 | Q59: =IF(C59<>"",ROUND(MIN(F59*PRODUCT($U$3:$U59),20000000),2),"") -> 2047880.43 | R59: =IF(C59<>"",ROUND(I59*PRODUCT($U$3:$U59),2),"") -> 2374010.85 | S59: =home!K68 -> 0 | T59: =IF(C59<>"",S59/(I59*PRODUCT($U$3:U58)),"") -> 0 | U59: 1
A60: 57 | B60: 57 | C60: 56 | D60: =IF(B60="","",IF(B60>ppp,0,home!$J$9)) -> 0 | E60: =IF($B60<>"",home!$L$9,"") -> 1588400 | F60: =IF($B60<>"",ROUND(home!$L$9*1.035^(B60-1),0),"") -> 10904844 | G60: 12639856 | H60: 10904844 | I60: =IF(C60<>"",ROUND(VLOOKUP(id&"L"&B60,现金价值表!$A$7:$K$43716,8,FALSE)*tbfs,2),"") -> 12639856 | K60: 57 | L60: 56 | M60: 0 | N60: =IF(C60<>"",ROUND(E60*PRODUCT($U$3:$U60),2),"") -> 308734.65 | O60: =IF(C60<>"",ROUND(F60*PRODUCT($U$3:$U60),2),"") -> 2119556.28 | P60: =IF(C60<>"",ROUND(G60*PRODUCT($U$3:$U60),2),"") -> 2456787.65 | Q60: =IF(C60<>"",ROUND(MIN(F60*PRODUCT($U$3:$U60),20000000),2),"") -> 2119556.28 | R60: =IF(C60<>"",ROUND(I60*PRODUCT($U$3:$U60),2),"") -> 2456787.65 | S60: =home!K69 -> 0 | T60: =IF(C60<>"",S60/(I60*PRODUCT($U$3:U59)),"") -> 0 | U60: 1
A61: 58 | B61: 58 | C61: 57 | D61: =IF(B61="","",IF(B61>ppp,0,home!$J$9)) -> 0 | E61: =IF($B61<>"",home!$L$9,"") -> 1588400 | F61: =IF($B61<>"",ROUND(home!$L$9*1.035^(B61-1),0),"") -> 11286514 | G61: 13080476 | H61: 11286514 | I61: =IF(C61<>"",ROUND(VLOOKUP(id&"L"&B61,现金价值表!$A$7:$K$43716,8,FALSE)*tbfs,2),"") -> 13080476 | K61: 58 | L61: 57 | M61: 0 | N61: =IF(C61<>"",ROUND(E61*PRODUCT($U$3:$U61),2),"") -> 308734.65 | O61: =IF(C61<>"",ROUND(F61*PRODUCT($U$3:$U61),2),"") -> 2193740.83 | P61: =IF(C61<>"",ROUND(G61*PRODUCT($U$3:$U61),2),"") -> 2542430.23 | Q61: =IF(C61<>"",ROUND(MIN(F61*PRODUCT($U$3:$U61),20000000),2),"") -> 2193740.83 | R61: =IF(C61<>"",ROUND(I61*PRODUCT($U$3:$U61),2),"") -> 2542430.23 | S61: =home!K70 -> 0 | T61: =IF(C61<>"",S61/(I61*PRODUCT($U$3:U60)),"") -> 0 | U61: 1
A62: 59 | B62: 59 | C62: 58 | D62: =IF(B62="","",IF(B62>ppp,0,home!$J$9)) -> 0 | E62: =IF($B62<>"",home!$L$9,"") -> 1588400 | F62: =IF($B62<>"",ROUND(home!$L$9*1.035^(B62-1),0),"") -> 11681542 | G62: 13536324 | H62: 11681542 | I62: =IF(C62<>"",ROUND(VLOOKUP(id&"L"&B62,现金价值表!$A$7:$K$43716,8,FALSE)*tbfs,2),"") -> 13536324 | K62: 59 | L62: 58 | M62: 0 | N62: =IF(C62<>"",ROUND(E62*PRODUCT($U$3:$U62),2),"") -> 308734.65 | O62: =IF(C62<>"",ROUND(F62*PRODUCT($U$3:$U62),2),"") -> 2270521.77 | P62: =IF(C62<>"",ROUND(G62*PRODUCT($U$3:$U62),2),"") -> 2631032.64 | Q62: =IF(C62<>"",ROUND(MIN(F62*PRODUCT($U$3:$U62),20000000),2),"") -> 2270521.77 | R62: =IF(C62<>"",ROUND(I62*PRODUCT($U$3:$U62),2),"") -> 2631032.64 | S62: =home!K71 -> 0 | T62: =IF(C62<>"",S62/(I62*PRODUCT($U$3:U61)),"") -> 0 | U62: 1
A63: 60 | B63: 60 | C63: 59 | D63: =IF(B63="","",IF(B63>ppp,0,home!$J$9)) -> 0 | E63: =IF($B63<>"",home!$L$9,"") -> 1588400 | F63: =IF($B63<>"",ROUND(home!$L$9*1.035^(B63-1),0),"") -> 12090396 | G63: 14007904 | H63: 12090396 | I63: =IF(C63<>"",ROUND(VLOOKUP(id&"L"&B63,现金价值表!$A$7:$K$43716,8,FALSE)*tbfs,2),"") -> 14007904 | K63: 60 | L63: 59 | M63: 0 | N63: =IF(C63<>"",ROUND(E63*PRODUCT($U$3:$U63),2),"") -> 308734.65 | O63: =IF(C63<>"",ROUND(F63*PRODUCT($U$3:$U63),2),"") -> 2349990.03 | P63: =IF(C63<>"",ROUND(G63*PRODUCT($U$3:$U63),2),"") -> 2722692.85 | Q63: =IF(C63<>"",ROUND(MIN(F63*PRODUCT($U$3:$U63),20000000),2),"") -> 2349990.03 | R63: =IF(C63<>"",ROUND(I63*PRODUCT($U$3:$U63),2),"") -> 2722692.85 | S63: =home!K72 -> 0 | T63: =IF(C63<>"",S63/(I63*PRODUCT($U$3:U62)),"") -> 0 | U63: 1
A64: 61 | B64: 61 | C64: 60 | D64: =IF(B64="","",IF(B64>ppp,0,home!$J$9)) -> 0 | E64: =IF($B64<>"",home!$L$9,"") -> 1588400 | F64: =IF($B64<>"",ROUND(home!$L$9*1.035^(B64-1),0),"") -> 12513560 | G64: 14495724 | H64: 12513560 | I64: =IF(C64<>"",ROUND(VLOOKUP(id&"L"&B64,现金价值表!$A$7:$K$43716,8,FALSE)*tbfs,2),"") -> 14495724 | K64: 61 | L64: 60 | M64: 0 | N64: =IF(C64<>"",ROUND(E64*PRODUCT($U$3:$U64),2),"") -> 308734.65 | O64: =IF(C64<>"",ROUND(F64*PRODUCT($U$3:$U64),2),"") -> 2432239.71 | P64: =IF(C64<>"",ROUND(G64*PRODUCT($U$3:$U64),2),"") -> 2817509.61 | Q64: =IF(C64<>"",ROUND(MIN(F64*PRODUCT($U$3:$U64),20000000),2),"") -> 2432239.71 | R64: =IF(C64<>"",ROUND(I64*PRODUCT($U$3:$U64),2),"") -> 2817509.61 | S64: =home!K73 -> 0 | T64: =IF(C64<>"",S64/(I64*PRODUCT($U$3:U63)),"") -> 0 | U64: 1
A65: 62 | B65: 62 | C65: 61 | D65: =IF(B65="","",IF(B65>ppp,0,home!$J$9)) -> 0 | E65: =IF($B65<>"",home!$L$9,"") -> 1588400 | F65: =IF($B65<>"",ROUND(home!$L$9*1.035^(B65-1),0),"") -> 12951534 | G65: 15000300 | H65: 12951534 | I65: =IF(C65<>"",ROUND(VLOOKUP(id&"L"&B65,现金价值表!$A$7:$K$43716,8,FALSE)*tbfs,2),"") -> 15000300 | K65: 62 | L65: 61 | M65: 0 | N65: =IF(C65<>"",ROUND(E65*PRODUCT($U$3:$U65),2),"") -> 308734.65 | O65: =IF(C65<>"",ROUND(F65*PRODUCT($U$3:$U65),2),"") -> 2517367.98 | P65: =IF(C65<>"",ROUND(G65*PRODUCT($U$3:$U65),2),"") -> 2915583.2 | Q65: =IF(C65<>"",ROUND(MIN(F65*PRODUCT($U$3:$U65),20000000),2),"") -> 2517367.98 | R65: =IF(C65<>"",ROUND(I65*PRODUCT($U$3:$U65),2),"") -> 2915583.2 | S65: =home!K74 -> 0 | T65: =IF(C65<>"",S65/(I65*PRODUCT($U$3:U64)),"") -> 0 | U65: 1
A66: 63 | B66: 63 | C66: 62 | D66: =IF(B66="","",IF(B66>ppp,0,home!$J$9)) -> 0 | E66: =IF($B66<>"",home!$L$9,"") -> 1588400 | F66: =IF($B66<>"",ROUND(home!$L$9*1.035^(B66-1),0),"") -> 13404838 | G66: 15522148 | H66: 13404838 | I66: =IF(C66<>"",ROUND(VLOOKUP(id&"L"&B66,现金价值表!$A$7:$K$43716,8,FALSE)*tbfs,2),"") -> 15522148 | K66: 63 | L66: 62 | M66: 0 | N66: =IF(C66<>"",ROUND(E66*PRODUCT($U$3:$U66),2),"") -> 308734.65 | O66: =IF(C66<>"",ROUND(F66*PRODUCT($U$3:$U66),2),"") -> 2605475.92 | P66: =IF(C66<>"",ROUND(G66*PRODUCT($U$3:$U66),2),"") -> 3017013.92 | Q66: =IF(C66<>"",ROUND(MIN(F66*PRODUCT($U$3:$U66),20000000),2),"") -> 2605475.92 | R66: =IF(C66<>"",ROUND(I66*PRODUCT($U$3:$U66),2),"") -> 3017013.92 | S66: =home!K75 -> 0 | T66: =IF(C66<>"",S66/(I66*PRODUCT($U$3:U65)),"") -> 0 | U66: 1
A67: 64 | B67: 64 | C67: 63 | D67: =IF(B67="","",IF(B67>ppp,0,home!$J$9)) -> 0 | E67: =IF($B67<>"",home!$L$9,"") -> 1588400 | F67: =IF($B67<>"",ROUND(home!$L$9*1.035^(B67-1),0),"") -> 13874007 | G67: 16061808 | H67: 13874007 | I67: =IF(C67<>"",ROUND(VLOOKUP(id&"L"&B67,现金价值表!$A$7:$K$43716,8,FALSE)*tbfs,2),"") -> 16061808 | K67: 64 | L67: 63 | M67: 0 | N67: =IF(C67<>"",ROUND(E67*PRODUCT($U$3:$U67),2),"") -> 308734.65 | O67: =IF(C67<>"",ROUND(F67*PRODUCT($U$3:$U67),2),"") -> 2696667.52 | P67: =IF(C67<>"",ROUND(G67*PRODUCT($U$3:$U67),2),"") -> 3121906.74 | Q67: =IF(C67<>"",ROUND(MIN(F67*PRODUCT($U$3:$U67),20000000),2),"") -> 2696667.52 | R67: =IF(C67<>"",ROUND(I67*PRODUCT($U$3:$U67),2),"") -> 3121906.74 | S67: =home!K76 -> 0 | T67: =IF(C67<>"",S67/(I67*PRODUCT($U$3:U66)),"") -> 0 | U67: 1
A68: 65 | B68: 65 | C68: 64 | D68: =IF(B68="","",IF(B68>ppp,0,home!$J$9)) -> 0 | E68: =IF($B68<>"",home!$L$9,"") -> 1588400 | F68: =IF($B68<>"",ROUND(home!$L$9*1.035^(B68-1),0),"") -> 14359597 | G68: =IF($B68<>"",IF(C68<18,MAX(sv*MIN(B68,ppp),I68),IF(B68<=ppp,MAX(sv*MIN(B68,ppp)*IF(C68<41,160%,IF(C68<61,140%,120%)),I68),MAX(sv*MIN(B68,ppp)*IF(C68<41,160%,IF(C68<61,140%,120%)),I68,F68))),"") -> 16619828 | H68: 14359597 | I68: =IF(C68<>"",ROUND(VLOOKUP(id&"L"&B68,现金价值表!$A$7:$K$43716,8,FALSE)*tbfs,2),"") -> 16619828 | K68: 65 | L68: 64 | M68: 0 | N68: =IF(C68<>"",ROUND(E68*PRODUCT($U$3:$U68),2),"") -> 308734.65 | O68: =IF(C68<>"",ROUND(F68*PRODUCT($U$3:$U68),2),"") -> 2791050.83 | P68: =IF(C68<>"",ROUND(G68*PRODUCT($U$3:$U68),2),"") -> 3230368.15 | Q68: =IF(C68<>"",ROUND(MIN(F68*PRODUCT($U$3:$U68),20000000),2),"") -> 2791050.83 | R68: =IF(C68<>"",ROUND(I68*PRODUCT($U$3:$U68),2),"") -> 3230368.15 | S68: =home!K77 -> 0 | T68: =IF(C68<>"",S68/(I68*PRODUCT($U$3:U67)),"") -> 0 | U68: =IF(C68<>"",1-T68,"") -> 1
A69: 66 | B69: 66 | C69: 65 | D69: =IF(B69="","",IF(B69>ppp,0,home!$J$9)) -> 0 | E69: =IF($B69<>"",home!$L$9,"") -> 1588400 | F69: =IF($B69<>"",ROUND(home!$L$9*1.035^(B69-1),0),"") -> 14862183 | G69: 17196752 | H69: =IF(B69="","",MIN(F69,20000000)) -> 14862183 | I69: =IF(C69<>"",ROUND(VLOOKUP(id&"L"&B69,现金价值表!$A$7:$K$43716,8,FALSE)*tbfs,2),"") -> 17196752 | K69: 66 | L69: 65 | M69: =D69 -> 0 | N69: =IF(C69<>"",ROUND(E69*PRODUCT($U$3:$U69),2),"") -> 308734.65 | O69: =IF(C69<>"",ROUND(F69*PRODUCT($U$3:$U69),2),"") -> 2888737.63 | P69: =IF(C69<>"",ROUND(G69*PRODUCT($U$3:$U69),2),"") -> 3342503.9 | Q69: =IF(C69<>"",ROUND(MIN(F69*PRODUCT($U$3:$U69),20000000),2),"") -> 2888737.63 | R69: =IF(C69<>"",ROUND(I69*PRODUCT($U$3:$U69),2),"") -> 3342503.9 | S69: =home!K78 -> 0 | T69: =IF(C69<>"",S69/(I69*PRODUCT($U$3:U68)),"") -> 0 | U69: 1
A70: 67 | B70: 67 | C70: =IF(C$4+A70-1>105,"",C$4+A70-1) -> 66 | D70: =IF(B70="","",IF(B70>ppp,0,home!$J$9)) -> 0 | E70: =IF($B70<>"",home!$L$9,"") -> 1588400 | F70: =IF($B70<>"",ROUND(home!$L$9*1.035^(B70-1),0),"") -> 15382360 | G70: 17793136 | H70: 15382360 | I70: =IF(C70<>"",ROUND(VLOOKUP(id&"L"&B70,现金价值表!$A$7:$K$43716,8,FALSE)*tbfs,2),"") -> 17793136 | K70: 67 | L70: 66 | M70: 0 | N70: =IF(C70<>"",ROUND(E70*PRODUCT($U$3:$U70),2),"") -> 308734.65 | O70: =IF(C70<>"",ROUND(F70*PRODUCT($U$3:$U70),2),"") -> 2989843.57 | P70: =IF(C70<>"",ROUND(G70*PRODUCT($U$3:$U70),2),"") -> 3458422.06 | Q70: =IF(C70<>"",ROUND(MIN(F70*PRODUCT($U$3:$U70),20000000),2),"") -> 2989843.57 | R70: =IF(C70<>"",ROUND(I70*PRODUCT($U$3:$U70),2),"") -> 3458422.06 | S70: =home!K79 -> 0 | T70: =IF(C70<>"",S70/(I70*PRODUCT($U$3:U69)),"") -> 0 | U70: 1
A71: 68 | B71: =IF(C71<>"",A71,"") -> 68 | C71: 67 | D71: =IF(B71="","",IF(B71>ppp,0,home!$J$9)) -> 0 | E71: =IF($B71<>"",home!$L$9,"") -> 1588400 | F71: =IF($B71<>"",ROUND(home!$L$9*1.035^(B71-1),0),"") -> 15920742 | G71: 18409536 | H71: 15920742 | I71: =IF(C71<>"",ROUND(VLOOKUP(id&"L"&B71,现金价值表!$A$7:$K$43716,8,FALSE)*tbfs,2),"") -> 18409536 | K71: =B71 -> 68 | L71: =C71 -> 67 | M71: 0 | N71: =IF(C71<>"",ROUND(E71*PRODUCT($U$3:$U71),2),"") -> 308734.65 | O71: =IF(C71<>"",ROUND(F71*PRODUCT($U$3:$U71),2),"") -> 3094487.97 | P71: =IF(C71<>"",ROUND(G71*PRODUCT($U$3:$U71),2),"") -> 3578230.7 | Q71: =IF(C71<>"",ROUND(MIN(F71*PRODUCT($U$3:$U71),20000000),2),"") -> 3094487.97 | R71: =IF(C71<>"",ROUND(I71*PRODUCT($U$3:$U71),2),"") -> 3578230.7 | S71: =home!K80 -> 0 | T71: =IF(C71<>"",S71/(I71*PRODUCT($U$3:U70)),"") -> 0 | U71: 1
A72: 69 | B72: 69 | C72: 68 | D72: =IF(B72="","",IF(B72>ppp,0,home!$J$9)) -> 0 | E72: =IF($B72<>"",home!$L$9,"") -> 1588400 | F72: =IF($B72<>"",ROUND(home!$L$9*1.035^(B72-1),0),"") -> 16477968 | G72: 19046500 | H72: 16477968 | I72: =IF(C72<>"",ROUND(VLOOKUP(id&"L"&B72,现金价值表!$A$7:$K$43716,8,FALSE)*tbfs,2),"") -> 19046500 | K72: 69 | L72: 68 | M72: 0 | N72: =IF(C72<>"",ROUND(E72*PRODUCT($U$3:$U72),2),"") -> 308734.65 | O72: =IF(C72<>"",ROUND(F72*PRODUCT($U$3:$U72),2),"") -> 3202795.06 | P72: =IF(C72<>"",ROUND(G72*PRODUCT($U$3:$U72),2),"") -> 3702036.32 | Q72: =IF(C72<>"",ROUND(MIN(F72*PRODUCT($U$3:$U72),20000000),2),"") -> 3202795.06 | R72: =IF(C72<>"",ROUND(I72*PRODUCT($U$3:$U72),2),"") -> 3702036.32 | S72: =home!K81 -> 0 | T72: =IF(C72<>"",S72/(I72*PRODUCT($U$3:U71)),"") -> 0 | U72: 1
A73: 70 | B73: 70 | C73: 69 | D73: =IF(B73="","",IF(B73>ppp,0,home!$J$9)) -> 0 | E73: =IF($B73<>"",home!$L$9,"") -> 1588400 | F73: =IF($B73<>"",ROUND(home!$L$9*1.035^(B73-1),0),"") -> 17054697 | G73: 19704576 | H73: 17054697 | I73: =IF(C73<>"",ROUND(VLOOKUP(id&"L"&B73,现金价值表!$A$7:$K$43716,8,FALSE)*tbfs,2),"") -> 19704576 | K73: 70 | L73: 69 | M73: 0 | N73: =IF(C73<>"",ROUND(E73*PRODUCT($U$3:$U73),2),"") -> 308734.65 | O73: =IF(C73<>"",ROUND(F73*PRODUCT($U$3:$U73),2),"") -> 3314892.91 | P73: =IF(C73<>"",ROUND(G73*PRODUCT($U$3:$U73),2),"") -> 3829945.45 | Q73: =IF(C73<>"",ROUND(MIN(F73*PRODUCT($U$3:$U73),20000000),2),"") -> 3314892.91 | R73: =IF(C73<>"",ROUND(I73*PRODUCT($U$3:$U73),2),"") -> 3829945.45 | S73: =home!K82 -> 0 | T73: =IF(C73<>"",S73/(I73*PRODUCT($U$3:U72)),"") -> 0 | U73: 1
A74: 71 | B74: 71 | C74: 70 | D74: =IF(B74="","",IF(B74>ppp,0,home!$J$9)) -> 0 | E74: =IF($B74<>"",home!$L$9,"") -> 1588400 | F74: =IF($B74<>"",ROUND(home!$L$9*1.035^(B74-1),0),"") -> 17651612 | G74: 20384296 | H74: 17651612 | I74: =IF(C74<>"",ROUND(VLOOKUP(id&"L"&B74,现金价值表!$A$7:$K$43716,8,FALSE)*tbfs,2),"") -> 20384296 | K74: 71 | L74: 70 | M74: 0 | N74: =IF(C74<>"",ROUND(E74*PRODUCT($U$3:$U74),2),"") -> 308734.65 | O74: =IF(C74<>"",ROUND(F74*PRODUCT($U$3:$U74),2),"") -> 3430914.28 | P74: =IF(C74<>"",ROUND(G74*PRODUCT($U$3:$U74),2),"") -> 3962061.49 | Q74: =IF(C74<>"",ROUND(MIN(F74*PRODUCT($U$3:$U74),20000000),2),"") -> 3430914.28 | R74: =IF(C74<>"",ROUND(I74*PRODUCT($U$3:$U74),2),"") -> 3962061.49 | S74: =home!K83 -> 0 | T74: =IF(C74<>"",S74/(I74*PRODUCT($U$3:U73)),"") -> 0 | U74: 1
A75: 72 | B75: 72 | C75: 71 | D75: =IF(B75="","",IF(B75>ppp,0,home!$J$9)) -> 0 | E75: =IF($B75<>"",home!$L$9,"") -> 1588400 | F75: =IF($B75<>"",ROUND(home!$L$9*1.035^(B75-1),0),"") -> 18269418 | G75: 21086196 | H75: 18269418 | I75: =IF(C75<>"",ROUND(VLOOKUP(id&"L"&B75,现金价值表!$A$7:$K$43716,8,FALSE)*tbfs,2),"") -> 21086196 | K75: 72 | L75: 71 | M75: 0 | N75: =IF(C75<>"",ROUND(E75*PRODUCT($U$3:$U75),2),"") -> 308734.65 | O75: =IF(C75<>"",ROUND(F75*PRODUCT($U$3:$U75),2),"") -> 3550996.2 | P75: =IF(C75<>"",ROUND(G75*PRODUCT($U$3:$U75),2),"") -> 4098488.62 | Q75: =IF(C75<>"",ROUND(MIN(F75*PRODUCT($U$3:$U75),20000000),2),"") -> 3550996.2 | R75: =IF(C75<>"",ROUND(I75*PRODUCT($U$3:$U75),2),"") -> 4098488.62 | S75: =home!K84 -> 0 | T75: =IF(C75<>"",S75/(I75*PRODUCT($U$3:U74)),"") -> 0 | U75: 1
A76: 73 | B76: 73 | C76: 72 | D76: =IF(B76="","",IF(B76>ppp,0,home!$J$9)) -> 0 | E76: =IF($B76<>"",home!$L$9,"") -> 1588400 | F76: =IF($B76<>"",ROUND(home!$L$9*1.035^(B76-1),0),"") -> 18908848 | G76: 21810800 | H76: 18908848 | I76: =IF(C76<>"",ROUND(VLOOKUP(id&"L"&B76,现金价值表!$A$7:$K$43716,8,FALSE)*tbfs,2),"") -> 21810800 | K76: 73 | L76: 72 | M76: 0 | N76: =IF(C76<>"",ROUND(E76*PRODUCT($U$3:$U76),2),"") -> 308734.65 | O76: =IF(C76<>"",ROUND(F76*PRODUCT($U$3:$U76),2),"") -> 3675281.14 | P76: =IF(C76<>"",ROUND(G76*PRODUCT($U$3:$U76),2),"") -> 4239328.69 | Q76: =IF(C76<>"",ROUND(MIN(F76*PRODUCT($U$3:$U76),20000000),2),"") -> 3675281.14 | R76: =IF(C76<>"",ROUND(I76*PRODUCT($U$3:$U76),2),"") -> 4239328.69 | S76: =home!K85 -> 0 | T76: =IF(C76<>"",S76/(I76*PRODUCT($U$3:U75)),"") -> 0 | U76: 1
A77: 74 | B77: 74 | C77: 73 | D77: =IF(B77="","",IF(B77>ppp,0,home!$J$9)) -> 0 | E77: =IF($B77<>"",home!$L$9,"") -> 1588400 | F77: =IF($B77<>"",ROUND(home!$L$9*1.035^(B77-1),0),"") -> 19570657 | G77: 22558636 | H77: 19570657 | I77: =IF(C77<>"",ROUND(VLOOKUP(id&"L"&B77,现金价值表!$A$7:$K$43716,8,FALSE)*tbfs,2),"") -> 22558636 | K77: 74 | L77: 73 | M77: 0 | N77: =IF(C77<>"",ROUND(E77*PRODUCT($U$3:$U77),2),"") -> 308734.65 | O77: =IF(C77<>"",ROUND(F77*PRODUCT($U$3:$U77),2),"") -> 3803915.84 | P77: =IF(C77<>"",ROUND(G77*PRODUCT($U$3:$U77),2),"") -> 4384684.32 | Q77: =IF(C77<>"",ROUND(MIN(F77*PRODUCT($U$3:$U77),20000000),2),"") -> 3803915.84 | R77: =IF(C77<>"",ROUND(I77*PRODUCT($U$3:$U77),2),"") -> 4384684.32 | S77: =home!K86 -> 0 | T77: =IF(C77<>"",S77/(I77*PRODUCT($U$3:U76)),"") -> 0 | U77: 1
A78: 75 | B78: 75 | C78: 74 | D78: =IF(B78="","",IF(B78>ppp,0,home!$J$9)) -> 0 | E78: =IF($B78<>"",home!$L$9,"") -> 1588400 | F78: =IF($B78<>"",ROUND(home!$L$9*1.035^(B78-1),0),"") -> 20255630 | G78: 23330212 | H78: 20000000 | I78: =IF(C78<>"",ROUND(VLOOKUP(id&"L"&B78,现金价值表!$A$7:$K$43716,8,FALSE)*tbfs,2),"") -> 23330212 | K78: 75 | L78: 74 | M78: 0 | N78: =IF(C78<>"",ROUND(E78*PRODUCT($U$3:$U78),2),"") -> 308734.65 | O78: =IF(C78<>"",ROUND(F78*PRODUCT($U$3:$U78),2),"") -> 3937052.9 | P78: =IF(C78<>"",ROUND(G78*PRODUCT($U$3:$U78),2),"") -> 4534654.26 | Q78: =IF(C78<>"",ROUND(MIN(F78*PRODUCT($U$3:$U78),20000000),2),"") -> 3937052.9 | R78: =IF(C78<>"",ROUND(I78*PRODUCT($U$3:$U78),2),"") -> 4534654.26 | S78: =home!K87 -> 0 | T78: =IF(C78<>"",S78/(I78*PRODUCT($U$3:U77)),"") -> 0 | U78: 1
A79: 76 | B79: 76 | C79: 75 | D79: =IF(B79="","",IF(B79>ppp,0,home!$J$9)) -> 0 | E79: =IF($B79<>"",home!$L$9,"") -> 1588400 | F79: =IF($B79<>"",ROUND(home!$L$9*1.035^(B79-1),0),"") -> 20964577 | G79: 24126036 | H79: 20000000 | I79: =IF(C79<>"",ROUND(VLOOKUP(id&"L"&B79,现金价值表!$A$7:$K$43716,8,FALSE)*tbfs,2),"") -> 24126036 | K79: 76 | L79: 75 | M79: 0 | N79: =IF(C79<>"",ROUND(E79*PRODUCT($U$3:$U79),2),"") -> 308734.65 | O79: =IF(C79<>"",ROUND(F79*PRODUCT($U$3:$U79),2),"") -> 4074849.74 | P79: =IF(C79<>"",ROUND(G79*PRODUCT($U$3:$U79),2),"") -> 4689337.23 | Q79: =IF(C79<>"",ROUND(MIN(F79*PRODUCT($U$3:$U79),20000000),2),"") -> 4074849.74 | R79: =IF(C79<>"",ROUND(I79*PRODUCT($U$3:$U79),2),"") -> 4689337.23 | S79: =home!K88 -> 0 | T79: =IF(C79<>"",S79/(I79*PRODUCT($U$3:U78)),"") -> 0 | U79: 1
A80: 77 | B80: 77 | C80: 76 | D80: =IF(B80="","",IF(B80>ppp,0,home!$J$9)) -> 0 | E80: =IF($B80<>"",home!$L$9,"") -> 1588400 | F80: =IF($B80<>"",ROUND(home!$L$9*1.035^(B80-1),0),"") -> 21698338 | G80: 24946592 | H80: 20000000 | I80: =IF(C80<>"",ROUND(VLOOKUP(id&"L"&B80,现金价值表!$A$7:$K$43716,8,FALSE)*tbfs,2),"") -> 24946592 | K80: 77 | L80: 76 | M80: 0 | N80: =IF(C80<>"",ROUND(E80*PRODUCT($U$3:$U80),2),"") -> 308734.65 | O80: =IF(C80<>"",ROUND(F80*PRODUCT($U$3:$U80),2),"") -> 4217469.64 | P80: =IF(C80<>"",ROUND(G80*PRODUCT($U$3:$U80),2),"") -> 4848827.33 | Q80: =IF(C80<>"",ROUND(MIN(F80*PRODUCT($U$3:$U80),20000000),2),"") -> 4217469.64 | R80: =IF(C80<>"",ROUND(I80*PRODUCT($U$3:$U80),2),"") -> 4848827.33 | S80: =home!K89 -> 0 | T80: =IF(C80<>"",S80/(I80*PRODUCT($U$3:U79)),"") -> 0 | U80: 1
A81: 78 | B81: 78 | C81: 77 | D81: =IF(B81="","",IF(B81>ppp,0,home!$J$9)) -> 0 | E81: =IF($B81<>"",home!$L$9,"") -> 1588400 | F81: =IF($B81<>"",ROUND(home!$L$9*1.035^(B81-1),0),"") -> 22457779 | G81: 25792336 | H81: 20000000 | I81: =IF(C81<>"",ROUND(VLOOKUP(id&"L"&B81,现金价值表!$A$7:$K$43716,8,FALSE)*tbfs,2),"") -> 25792336 | K81: 78 | L81: 77 | M81: 0 | N81: =IF(C81<>"",ROUND(E81*PRODUCT($U$3:$U81),2),"") -> 308734.65 | O81: =IF(C81<>"",ROUND(F81*PRODUCT($U$3:$U81),2),"") -> 4365080.91 | P81: =IF(C81<>"",ROUND(G81*PRODUCT($U$3:$U81),2),"") -> 5013213.18 | Q81: =IF(C81<>"",ROUND(MIN(F81*PRODUCT($U$3:$U81),20000000),2),"") -> 4365080.91 | R81: =IF(C81<>"",ROUND(I81*PRODUCT($U$3:$U81),2),"") -> 5013213.18 | S81: =home!K90 -> 0 | T81: =IF(C81<>"",S81/(I81*PRODUCT($U$3:U80)),"") -> 0 | U81: 1
A82: 79 | B82: 79 | C82: 78 | D82: =IF(B82="","",IF(B82>ppp,0,home!$J$9)) -> 0 | E82: =IF($B82<>"",home!$L$9,"") -> 1588400 | F82: =IF($B82<>"",ROUND(home!$L$9*1.035^(B82-1),0),"") -> 23243802 | G82: 26663700 | H82: 20000000 | I82: =IF(C82<>"",ROUND(VLOOKUP(id&"L"&B82,现金价值表!$A$7:$K$43716,8,FALSE)*tbfs,2),"") -> 26663700 | K82: 79 | L82: 78 | M82: 0 | N82: =IF(C82<>"",ROUND(E82*PRODUCT($U$3:$U82),2),"") -> 308734.65 | O82: =IF(C82<>"",ROUND(F82*PRODUCT($U$3:$U82),2),"") -> 4517858.89 | P82: =IF(C82<>"",ROUND(G82*PRODUCT($U$3:$U82),2),"") -> 5182578.74 | Q82: =IF(C82<>"",ROUND(MIN(F82*PRODUCT($U$3:$U82),20000000),2),"") -> 4517858.89 | R82: =IF(C82<>"",ROUND(I82*PRODUCT($U$3:$U82),2),"") -> 5182578.74 | S82: =home!K91 -> 0 | T82: =IF(C82<>"",S82/(I82*PRODUCT($U$3:U81)),"") -> 0 | U82: 1
A83: 80 | B83: 80 | C83: 79 | D83: =IF(B83="","",IF(B83>ppp,0,home!$J$9)) -> 0 | E83: =IF($B83<>"",home!$L$9,"") -> 1588400 | F83: =IF($B83<>"",ROUND(home!$L$9*1.035^(B83-1),0),"") -> 24057335 | G83: 27561056 | H83: 20000000 | I83: =IF(C83<>"",ROUND(VLOOKUP(id&"L"&B83,现金价值表!$A$7:$K$43716,8,FALSE)*tbfs,2),"") -> 27561056 | K83: 80 | L83: 79 | M83: 0 | N83: =IF(C83<>"",ROUND(E83*PRODUCT($U$3:$U83),2),"") -> 308734.65 | O83: =IF(C83<>"",ROUND(F83*PRODUCT($U$3:$U83),2),"") -> 4675983.94 | P83: =IF(C83<>"",ROUND(G83*PRODUCT($U$3:$U83),2),"") -> 5356996.32 | Q83: =IF(C83<>"",ROUND(MIN(F83*PRODUCT($U$3:$U83),20000000),2),"") -> 4675983.94 | R83: =IF(C83<>"",ROUND(I83*PRODUCT($U$3:$U83),2),"") -> 5356996.32 | S83: =home!K92 -> 0 | T83: =IF(C83<>"",S83/(I83*PRODUCT($U$3:U82)),"") -> 0 | U83: 1
A84: 81 | B84: 81 | C84: 80 | D84: =IF(B84="","",IF(B84>ppp,0,home!$J$9)) -> 0 | E84: =IF($B84<>"",home!$L$9,"") -> 1588400 | F84: =IF($B84<>"",ROUND(home!$L$9*1.035^(B84-1),0),"") -> 24899342 | G84: 28484760 | H84: 20000000 | I84: =IF(C84<>"",ROUND(VLOOKUP(id&"L"&B84,现金价值表!$A$7:$K$43716,8,FALSE)*tbfs,2),"") -> 28484760 | K84: 81 | L84: 80 | M84: 0 | N84: =IF(C84<>"",ROUND(E84*PRODUCT($U$3:$U84),2),"") -> 308734.65 | O84: =IF(C84<>"",ROUND(F84*PRODUCT($U$3:$U84),2),"") -> 4839643.43 | P84: =IF(C84<>"",ROUND(G84*PRODUCT($U$3:$U84),2),"") -> 5536535.12 | Q84: =IF(C84<>"",ROUND(MIN(F84*PRODUCT($U$3:$U84),20000000),2),"") -> 4839643.43 | R84: =IF(C84<>"",ROUND(I84*PRODUCT($U$3:$U84),2),"") -> 5536535.12 | S84: =home!K93 -> 0 | T84: =IF(C84<>"",S84/(I84*PRODUCT($U$3:U83)),"") -> 0 | U84: 1
A85: 82 | B85: 82 | C85: 81 | D85: =IF(B85="","",IF(B85>ppp,0,home!$J$9)) -> 0 | E85: =IF($B85<>"",home!$L$9,"") -> 1588400 | F85: =IF($B85<>"",ROUND(home!$L$9*1.035^(B85-1),0),"") -> 25770818 | G85: 29435092 | H85: 20000000 | I85: =IF(C85<>"",ROUND(VLOOKUP(id&"L"&B85,现金价值表!$A$7:$K$43716,8,FALSE)*tbfs,2),"") -> 29435092 | K85: 82 | L85: 81 | M85: 0 | N85: =IF(C85<>"",ROUND(E85*PRODUCT($U$3:$U85),2),"") -> 308734.65 | O85: =IF(C85<>"",ROUND(F85*PRODUCT($U$3:$U85),2),"") -> 5009030.76 | P85: =IF(C85<>"",ROUND(G85*PRODUCT($U$3:$U85),2),"") -> 5721249.56 | Q85: =IF(C85<>"",ROUND(MIN(F85*PRODUCT($U$3:$U85),20000000),2),"") -> 5009030.76 | R85: =IF(C85<>"",ROUND(I85*PRODUCT($U$3:$U85),2),"") -> 5721249.56 | S85: =home!K94 -> 0 | T85: =IF(C85<>"",S85/(I85*PRODUCT($U$3:U84)),"") -> 0 | U85: 1
A86: 83 | B86: 83 | C86: 82 | D86: =IF(B86="","",IF(B86>ppp,0,home!$J$9)) -> 0 | E86: =IF($B86<>"",home!$L$9,"") -> 1588400 | F86: =IF($B86<>"",ROUND(home!$L$9*1.035^(B86-1),0),"") -> 26672797 | G86: 30412300 | H86: 20000000 | I86: =IF(C86<>"",ROUND(VLOOKUP(id&"L"&B86,现金价值表!$A$7:$K$43716,8,FALSE)*tbfs,2),"") -> 30412300 | K86: 83 | L86: 82 | M86: 0 | N86: =IF(C86<>"",ROUND(E86*PRODUCT($U$3:$U86),2),"") -> 308734.65 | O86: =IF(C86<>"",ROUND(F86*PRODUCT($U$3:$U86),2),"") -> 5184346.91 | P86: =IF(C86<>"",ROUND(G86*PRODUCT($U$3:$U86),2),"") -> 5911187.85 | Q86: =IF(C86<>"",ROUND(MIN(F86*PRODUCT($U$3:$U86),20000000),2),"") -> 5184346.91 | R86: =IF(C86<>"",ROUND(I86*PRODUCT($U$3:$U86),2),"") -> 5911187.85 | S86: =home!K95 -> 0 | T86: =IF(C86<>"",S86/(I86*PRODUCT($U$3:U85)),"") -> 0 | U86: 1
A87: 84 | B87: 84 | C87: 83 | D87: =IF(B87="","",IF(B87>ppp,0,home!$J$9)) -> 0 | E87: =IF($B87<>"",home!$L$9,"") -> 1588400 | F87: =IF($B87<>"",ROUND(home!$L$9*1.035^(B87-1),0),"") -> 27606345 | G87: 31416572 | H87: 20000000 | I87: =IF(C87<>"",ROUND(VLOOKUP(id&"L"&B87,现金价值表!$A$7:$K$43716,8,FALSE)*tbfs,2),"") -> 31416572 | K87: 84 | L87: 83 | M87: 0 | N87: =IF(C87<>"",ROUND(E87*PRODUCT($U$3:$U87),2),"") -> 308734.65 | O87: =IF(C87<>"",ROUND(F87*PRODUCT($U$3:$U87),2),"") -> 5365799.07 | P87: =IF(C87<>"",ROUND(G87*PRODUCT($U$3:$U87),2),"") -> 6106386.51 | Q87: =IF(C87<>"",ROUND(MIN(F87*PRODUCT($U$3:$U87),20000000),2),"") -> 5365799.07 | R87: =IF(C87<>"",ROUND(I87*PRODUCT($U$3:$U87),2),"") -> 6106386.51 | S87: =home!K96 -> 0 | T87: =IF(C87<>"",S87/(I87*PRODUCT($U$3:U86)),"") -> 0 | U87: 1
A88: 85 | B88: 85 | C88: 84 | D88: =IF(B88="","",IF(B88>ppp,0,home!$J$9)) -> 0 | E88: =IF($B88<>"",home!$L$9,"") -> 1588400 | F88: =IF($B88<>"",ROUND(home!$L$9*1.035^(B88-1),0),"") -> 28572567 | G88: 32448028 | H88: 20000000 | I88: =IF(C88<>"",ROUND(VLOOKUP(id&"L"&B88,现金价值表!$A$7:$K$43716,8,FALSE)*tbfs,2),"") -> 32448028 | K88: 85 | L88: 84 | M88: 0 | N88: =IF(C88<>"",ROUND(E88*PRODUCT($U$3:$U88),2),"") -> 308734.65 | O88: =IF(C88<>"",ROUND(F88*PRODUCT($U$3:$U88),2),"") -> 5553602.02 | P88: =IF(C88<>"",ROUND(G88*PRODUCT($U$3:$U88),2),"") -> 6306868.89 | Q88: =IF(C88<>"",ROUND(MIN(F88*PRODUCT($U$3:$U88),20000000),2),"") -> 5553602.02 | R88: =IF(C88<>"",ROUND(I88*PRODUCT($U$3:$U88),2),"") -> 6306868.89 | S88: =home!K97 -> 0 | T88: =IF(C88<>"",S88/(I88*PRODUCT($U$3:U87)),"") -> 0 | U88: 1
A89: 86 | B89: 86 | C89: 85 | D89: =IF(B89="","",IF(B89>ppp,0,home!$J$9)) -> 0 | E89: =IF($B89<>"",home!$L$9,"") -> 1588400 | F89: =IF($B89<>"",ROUND(home!$L$9*1.035^(B89-1),0),"") -> 29572607 | G89: 33506720 | H89: 20000000 | I89: =IF(C89<>"",ROUND(VLOOKUP(id&"L"&B89,现金价值表!$A$7:$K$43716,8,FALSE)*tbfs,2),"") -> 33506720 | K89: 86 | L89: 85 | M89: 0 | N89: =IF(C89<>"",ROUND(E89*PRODUCT($U$3:$U89),2),"") -> 308734.65 | O89: =IF(C89<>"",ROUND(F89*PRODUCT($U$3:$U89),2),"") -> 5747978.12 | P89: =IF(C89<>"",ROUND(G89*PRODUCT($U$3:$U89),2),"") -> 6512645.08 | Q89: =IF(C89<>"",ROUND(MIN(F89*PRODUCT($U$3:$U89),20000000),2),"") -> 5747978.12 | R89: =IF(C89<>"",ROUND(I89*PRODUCT($U$3:$U89),2),"") -> 6512645.08 | S89: =home!K98 -> 0 | T89: =IF(C89<>"",S89/(I89*PRODUCT($U$3:U88)),"") -> 0 | U89: 1
A90: 87 | B90: 87 | C90: 86 | D90: =IF(B90="","",IF(B90>ppp,0,home!$J$9)) -> 0 | E90: =IF($B90<>"",home!$L$9,"") -> 1588400 | F90: =IF($B90<>"",ROUND(home!$L$9*1.035^(B90-1),0),"") -> 30607648 | G90: 34592596 | H90: 20000000 | I90: =IF(C90<>"",ROUND(VLOOKUP(id&"L"&B90,现金价值表!$A$7:$K$43716,8,FALSE)*tbfs,2),"") -> 34592596 | K90: 87 | L90: 86 | M90: 0 | N90: =IF(C90<>"",ROUND(E90*PRODUCT($U$3:$U90),2),"") -> 308734.65 | O90: =IF(C90<>"",ROUND(F90*PRODUCT($U$3:$U90),2),"") -> 5949157.31 | P90: =IF(C90<>"",ROUND(G90*PRODUCT($U$3:$U90),2),"") -> 6723704.98 | Q90: =IF(C90<>"",ROUND(MIN(F90*PRODUCT($U$3:$U90),20000000),2),"") -> 5949157.31 | R90: =IF(C90<>"",ROUND(I90*PRODUCT($U$3:$U90),2),"") -> 6723704.98 | S90: =home!K99 -> 0 | T90: =IF(C90<>"",S90/(I90*PRODUCT($U$3:U89)),"") -> 0 | U90: 1
A91: 88 | B91: 88 | C91: 87 | D91: =IF(B91="","",IF(B91>ppp,0,home!$J$9)) -> 0 | E91: =IF($B91<>"",home!$L$9,"") -> 1588400 | F91: =IF($B91<>"",ROUND(home!$L$9*1.035^(B91-1),0),"") -> 31678916 | G91: 35705484 | H91: 20000000 | I91: =IF(C91<>"",ROUND(VLOOKUP(id&"L"&B91,现金价值表!$A$7:$K$43716,8,FALSE)*tbfs,2),"") -> 35705484 | K91: 88 | L91: 87 | M91: 0 | N91: =IF(C91<>"",ROUND(E91*PRODUCT($U$3:$U91),2),"") -> 308734.65 | O91: =IF(C91<>"",ROUND(F91*PRODUCT($U$3:$U91),2),"") -> 6157377.88 | P91: =IF(C91<>"",ROUND(G91*PRODUCT($U$3:$U91),2),"") -> 6940015.16 | Q91: =IF(C91<>"",ROUND(MIN(F91*PRODUCT($U$3:$U91),20000000),2),"") -> 6157377.88 | R91: =IF(C91<>"",ROUND(I91*PRODUCT($U$3:$U91),2),"") -> 6940015.16 | S91: =home!K100 -> 0 | T91: =IF(C91<>"",S91/(I91*PRODUCT($U$3:U90)),"") -> 0 | U91: 1
A92: 89 | B92: 89 | C92: 88 | D92: =IF(B92="","",IF(B92>ppp,0,home!$J$9)) -> 0 | E92: =IF($B92<>"",home!$L$9,"") -> 1588400 | F92: =IF($B92<>"",ROUND(home!$L$9*1.035^(B92-1),0),"") -> 32787678 | G92: 36845076 | H92: 20000000 | I92: =IF(C92<>"",ROUND(VLOOKUP(id&"L"&B92,现金价值表!$A$7:$K$43716,8,FALSE)*tbfs,2),"") -> 36845076 | K92: 89 | L92: 88 | M92: 0 | N92: =IF(C92<>"",ROUND(E92*PRODUCT($U$3:$U92),2),"") -> 308734.65 | O92: =IF(C92<>"",ROUND(F92*PRODUCT($U$3:$U92),2),"") -> 6372886.09 | P92: =IF(C92<>"",ROUND(G92*PRODUCT($U$3:$U92),2),"") -> 7161515.75 | Q92: =IF(C92<>"",ROUND(MIN(F92*PRODUCT($U$3:$U92),20000000),2),"") -> 6372886.09 | R92: =IF(C92<>"",ROUND(I92*PRODUCT($U$3:$U92),2),"") -> 7161515.75 | S92: =home!K101 -> 0 | T92: =IF(C92<>"",S92/(I92*PRODUCT($U$3:U91)),"") -> 0 | U92: 1
A93: 90 | B93: 90 | C93: 89 | D93: =IF(B93="","",IF(B93>ppp,0,home!$J$9)) -> 0 | E93: =IF($B93<>"",home!$L$9,"") -> 1588400 | F93: =IF($B93<>"",ROUND(home!$L$9*1.035^(B93-1),0),"") -> 33935247 | G93: 38010888 | H93: 20000000 | I93: =IF(C93<>"",ROUND(VLOOKUP(id&"L"&B93,现金价值表!$A$7:$K$43716,8,FALSE)*tbfs,2),"") -> 38010888 | K93: 90 | L93: 89 | M93: 0 | N93: =IF(C93<>"",ROUND(E93*PRODUCT($U$3:$U93),2),"") -> 308734.65 | O93: =IF(C93<>"",ROUND(F93*PRODUCT($U$3:$U93),2),"") -> 6595937.16 | P93: =IF(C93<>"",ROUND(G93*PRODUCT($U$3:$U93),2),"") -> 7388112.68 | Q93: =IF(C93<>"",ROUND(MIN(F93*PRODUCT($U$3:$U93),20000000),2),"") -> 6595937.16 | R93: =IF(C93<>"",ROUND(I93*PRODUCT($U$3:$U93),2),"") -> 7388112.68 | S93: =home!K102 -> 0 | T93: =IF(C93<>"",S93/(I93*PRODUCT($U$3:U92)),"") -> 0 | U93: 1
A94: 91 | B94: 91 | C94: 90 | D94: =IF(B94="","",IF(B94>ppp,0,home!$J$9)) -> 0 | E94: =IF($B94<>"",home!$L$9,"") -> 1588400 | F94: =IF($B94<>"",ROUND(home!$L$9*1.035^(B94-1),0),"") -> 35122980 | G94: 39202252 | H94: 20000000 | I94: =IF(C94<>"",ROUND(VLOOKUP(id&"L"&B94,现金价值表!$A$7:$K$43716,8,FALSE)*tbfs,2),"") -> 39202252 | K94: 91 | L94: 90 | M94: 0 | N94: =IF(C94<>"",ROUND(E94*PRODUCT($U$3:$U94),2),"") -> 308734.65 | O94: =IF(C94<>"",ROUND(F94*PRODUCT($U$3:$U94),2),"") -> 6826794.83 | P94: =IF(C94<>"",ROUND(G94*PRODUCT($U$3:$U94),2),"") -> 7619676.1 | Q94: =IF(C94<>"",ROUND(MIN(F94*PRODUCT($U$3:$U94),20000000),2),"") -> 6826794.83 | R94: =IF(C94<>"",ROUND(I94*PRODUCT($U$3:$U94),2),"") -> 7619676.1 | S94: =home!K103 -> 0 | T94: =IF(C94<>"",S94/(I94*PRODUCT($U$3:U93)),"") -> 0 | U94: 1
A95: 92 | B95: 92 | C95: 91 | D95: =IF(B95="","",IF(B95>ppp,0,home!$J$9)) -> 0 | E95: =IF($B95<>"",home!$L$9,"") -> 1588400 | F95: =IF($B95<>"",ROUND(home!$L$9*1.035^(B95-1),0),"") -> 36352285 | G95: 40418304 | H95: 20000000 | I95: =IF(C95<>"",ROUND(VLOOKUP(id&"L"&B95,现金价值表!$A$7:$K$43716,8,FALSE)*tbfs,2),"") -> 40418304 | K95: 92 | L95: 91 | M95: 0 | N95: =IF(C95<>"",ROUND(E95*PRODUCT($U$3:$U95),2),"") -> 308734.65 | O95: =IF(C95<>"",ROUND(F95*PRODUCT($U$3:$U95),2),"") -> 7065732.79 | P95: =IF(C95<>"",ROUND(G95*PRODUCT($U$3:$U95),2),"") -> 7856038.09 | Q95: =IF(C95<>"",ROUND(MIN(F95*PRODUCT($U$3:$U95),20000000),2),"") -> 7065732.79 | R95: =IF(C95<>"",ROUND(I95*PRODUCT($U$3:$U95),2),"") -> 7856038.09 | S95: =home!K104 -> 0 | T95: =IF(C95<>"",S95/(I95*PRODUCT($U$3:U94)),"") -> 0 | U95: 1
A96: 93 | B96: 93 | C96: 92 | D96: =IF(B96="","",IF(B96>ppp,0,home!$J$9)) -> 0 | E96: =IF($B96<>"",home!$L$9,"") -> 1588400 | F96: =IF($B96<>"",ROUND(home!$L$9*1.035^(B96-1),0),"") -> 37624615 | G96: 41657976 | H96: 20000000 | I96: =IF(C96<>"",ROUND(VLOOKUP(id&"L"&B96,现金价值表!$A$7:$K$43716,8,FALSE)*tbfs,2),"") -> 41657976 | K96: 93 | L96: 92 | M96: 0 | N96: =IF(C96<>"",ROUND(E96*PRODUCT($U$3:$U96),2),"") -> 308734.65 | O96: =IF(C96<>"",ROUND(F96*PRODUCT($U$3:$U96),2),"") -> 7313033.44 | P96: =IF(C96<>"",ROUND(G96*PRODUCT($U$3:$U96),2),"") -> 8096991.07 | Q96: =IF(C96<>"",ROUND(MIN(F96*PRODUCT($U$3:$U96),20000000),2),"") -> 7313033.44 | R96: =IF(C96<>"",ROUND(I96*PRODUCT($U$3:$U96),2),"") -> 8096991.07 | S96: =home!K105 -> 0 | T96: =IF(C96<>"",S96/(I96*PRODUCT($U$3:U95)),"") -> 0 | U96: 1
A97: 94 | B97: 94 | C97: 93 | D97: =IF(B97="","",IF(B97>ppp,0,home!$J$9)) -> 0 | E97: =IF($B97<>"",home!$L$9,"") -> 1588400 | F97: =IF($B97<>"",ROUND(home!$L$9*1.035^(B97-1),0),"") -> 38941476 | G97: 42920032 | H97: 20000000 | I97: =IF(C97<>"",ROUND(VLOOKUP(id&"L"&B97,现金价值表!$A$7:$K$43716,8,FALSE)*tbfs,2),"") -> 42920032 | K97: 94 | L97: 93 | M97: 0 | N97: =IF(C97<>"",ROUND(E97*PRODUCT($U$3:$U97),2),"") -> 308734.65 | O97: =IF(C97<>"",ROUND(F97*PRODUCT($U$3:$U97),2),"") -> 7568989.51 | P97: =IF(C97<>"",ROUND(G97*PRODUCT($U$3:$U97),2),"") -> 8342294.78 | Q97: =IF(C97<>"",ROUND(MIN(F97*PRODUCT($U$3:$U97),20000000),2),"") -> 7568989.51 | R97: =IF(C97<>"",ROUND(I97*PRODUCT($U$3:$U97),2),"") -> 8342294.78 | S97: =home!K106 -> 0 | T97: =IF(C97<>"",S97/(I97*PRODUCT($U$3:U96)),"") -> 0 | U97: 1
A98: 95 | B98: 95 | C98: 94 | D98: =IF(B98="","",IF(B98>ppp,0,home!$J$9)) -> 0 | E98: =IF($B98<>"",home!$L$9,"") -> 1588400 | F98: =IF($B98<>"",ROUND(home!$L$9*1.035^(B98-1),0),"") -> 40304428 | G98: 44203076 | H98: 20000000 | I98: =IF(C98<>"",ROUND(VLOOKUP(id&"L"&B98,现金价值表!$A$7:$K$43716,8,FALSE)*tbfs,2),"") -> 44203076 | K98: 95 | L98: 94 | M98: 0 | N98: =IF(C98<>"",ROUND(E98*PRODUCT($U$3:$U98),2),"") -> 308734.65 | O98: =IF(C98<>"",ROUND(F98*PRODUCT($U$3:$U98),2),"") -> 7833904.21 | P98: =IF(C98<>"",ROUND(G98*PRODUCT($U$3:$U98),2),"") -> 8591677.89 | Q98: =IF(C98<>"",ROUND(MIN(F98*PRODUCT($U$3:$U98),20000000),2),"") -> 7833904.21 | R98: =IF(C98<>"",ROUND(I98*PRODUCT($U$3:$U98),2),"") -> 8591677.89 | S98: =home!K107 -> 0 | T98: =IF(C98<>"",S98/(I98*PRODUCT($U$3:U97)),"") -> 0 | U98: 1
A99: 96 | B99: 96 | C99: 95 | D99: =IF(B99="","",IF(B99>ppp,0,home!$J$9)) -> 0 | E99: =IF($B99<>"",home!$L$9,"") -> 1588400 | F99: =IF($B99<>"",ROUND(home!$L$9*1.035^(B99-1),0),"") -> 41715083 | G99: 45505592 | H99: 20000000 | I99: =IF(C99<>"",ROUND(VLOOKUP(id&"L"&B99,现金价值表!$A$7:$K$43716,8,FALSE)*tbfs,2),"") -> 45505592 | K99: 96 | L99: 95 | M99: 0 | N99: =IF(C99<>"",ROUND(E99*PRODUCT($U$3:$U99),2),"") -> 308734.65 | O99: =IF(C99<>"",ROUND(F99*PRODUCT($U$3:$U99),2),"") -> 8108090.86 | P99: =IF(C99<>"",ROUND(G99*PRODUCT($U$3:$U99),2),"") -> 8844845.75 | Q99: =IF(C99<>"",ROUND(MIN(F99*PRODUCT($U$3:$U99),20000000),2),"") -> 8108090.86 | R99: =IF(C99<>"",ROUND(I99*PRODUCT($U$3:$U99),2),"") -> 8844845.75 | S99: =home!K108 -> 0 | T99: =IF(C99<>"",S99/(I99*PRODUCT($U$3:U98)),"") -> 0 | U99: 1
A100: 97 | B100: 97 | C100: 96 | D100: =IF(B100="","",IF(B100>ppp,0,home!$J$9)) -> 0 | E100: =IF($B100<>"",home!$L$9,"") -> 1588400 | F100: =IF($B100<>"",ROUND(home!$L$9*1.035^(B100-1),0),"") -> 43175111 | G100: =IF($B100<>"",IF(C100<18,MAX(sv*MIN(B100,ppp),I100),IF(B100<=ppp,MAX(sv*MIN(B100,ppp)*IF(C100<41,160%,IF(C100<61,140%,120%)),I100),MAX(sv*MIN(B100,ppp)*IF(C100<41,160%,IF(C100<61,140%,120%)),I100,F100))),"") -> 46825988 | H100: 20000000 | I100: =IF(C100<>"",ROUND(VLOOKUP(id&"L"&B100,现金价值表!$A$7:$K$43716,8,FALSE)*tbfs,2),"") -> 46825988 | K100: 97 | L100: 96 | M100: 0 | N100: =IF(C100<>"",ROUND(E100*PRODUCT($U$3:$U100),2),"") -> 308734.65 | O100: =IF(C100<>"",ROUND(F100*PRODUCT($U$3:$U100),2),"") -> 8391874.06 | P100: =IF(C100<>"",ROUND(G100*PRODUCT($U$3:$U100),2),"") -> 9101488.91 | Q100: =IF(C100<>"",ROUND(MIN(F100*PRODUCT($U$3:$U100),20000000),2),"") -> 8391874.06 | R100: =IF(C100<>"",ROUND(I100*PRODUCT($U$3:$U100),2),"") -> 9101488.91 | S100: =home!K109 -> 0 | T100: =IF(C100<>"",S100/(I100*PRODUCT($U$3:U99)),"") -> 0 | U100: =IF(C100<>"",1-T100,"") -> 1
A101: 98 | B101: 98 | C101: 97 | D101: =IF(B101="","",IF(B101>ppp,0,home!$J$9)) -> 0 | E101: =IF($B101<>"",home!$L$9,"") -> 1588400 | F101: =IF($B101<>"",ROUND(home!$L$9*1.035^(B101-1),0),"") -> 44686239 | G101: 48162616 | H101: 20000000 | I101: =IF(C101<>"",ROUND(VLOOKUP(id&"L"&B101,现金价值表!$A$7:$K$43716,8,FALSE)*tbfs,2),"") -> 48162616 | K101: =B101 -> 98 | L101: =C101 -> 97 | M101: 0 | N101: =IF(C101<>"",ROUND(E101*PRODUCT($U$3:$U101),2),"") -> 308734.65 | O101: =IF(C101<>"",ROUND(F101*PRODUCT($U$3:$U101),2),"") -> 8685589.48 | P101: =IF(C101<>"",ROUND(G101*PRODUCT($U$3:$U101),2),"") -> 9361287.05 | Q101: =IF(C101<>"",ROUND(MIN(F101*PRODUCT($U$3:$U101),20000000),2),"") -> 8685589.48 | R101: =IF(C101<>"",ROUND(I101*PRODUCT($U$3:$U101),2),"") -> 9361287.05 | S101: =home!K110 -> 0 | T101: =IF(C101<>"",S101/(I101*PRODUCT($U$3:U100)),"") -> 0 | U101: 1
A102: 99 | B102: 99 | C102: 98 | D102: =IF(B102="","",IF(B102>ppp,0,home!$J$9)) -> 0 | E102: =IF($B102<>"",home!$L$9,"") -> 1588400 | F102: =IF($B102<>"",ROUND(home!$L$9*1.035^(B102-1),0),"") -> 46250258 | G102: 49513812 | H102: 20000000 | I102: =IF(C102<>"",ROUND(VLOOKUP(id&"L"&B102,现金价值表!$A$7:$K$43716,8,FALSE)*tbfs,2),"") -> 49513812 | K102: =B102 -> 99 | L102: 98 | M102: 0 | N102: =IF(C102<>"",ROUND(E102*PRODUCT($U$3:$U102),2),"") -> 308734.65 | O102: =IF(C102<>"",ROUND(F102*PRODUCT($U$3:$U102),2),"") -> 8989585.23 | P102: =IF(C102<>"",ROUND(G102*PRODUCT($U$3:$U102),2),"") -> 9623916.76 | Q102: =IF(C102<>"",ROUND(MIN(F102*PRODUCT($U$3:$U102),20000000),2),"") -> 8989585.23 | R102: =IF(C102<>"",ROUND(I102*PRODUCT($U$3:$U102),2),"") -> 9623916.76 | S102: =home!K111 -> 0 | T102: =IF(C102<>"",S102/(I102*PRODUCT($U$3:U101)),"") -> 0 | U102: 1
A103: 100 | B103: 100 | C103: 99 | D103: =IF(B103="","",IF(B103>ppp,0,home!$J$9)) -> 0 | E103: =IF($B103<>"",home!$L$9,"") -> 1588400 | F103: =IF($B103<>"",ROUND(home!$L$9*1.035^(B103-1),0),"") -> 47869017 | G103: 50877896 | H103: 20000000 | I103: =IF(C103<>"",ROUND(VLOOKUP(id&"L"&B103,现金价值表!$A$7:$K$43716,8,FALSE)*tbfs,2),"") -> 50877896 | K103: 100 | L103: 99 | M103: 0 | N103: =IF(C103<>"",ROUND(E103*PRODUCT($U$3:$U103),2),"") -> 308734.65 | O103: =IF(C103<>"",ROUND(F103*PRODUCT($U$3:$U103),2),"") -> 9304220.71 | P103: =IF(C103<>"",ROUND(G103*PRODUCT($U$3:$U103),2),"") -> 9889051.48 | Q103: =IF(C103<>"",ROUND(MIN(F103*PRODUCT($U$3:$U103),20000000),2),"") -> 9304220.71 | R103: =IF(C103<>"",ROUND(I103*PRODUCT($U$3:$U103),2),"") -> 9889051.48 | S103: =home!K112 -> 0 | T103: =IF(C103<>"",S103/(I103*PRODUCT($U$3:U102)),"") -> 0 | U103: 1
A104: 101 | B104: 101 | C104: 100 | D104: =IF(B104="","",IF(B104>ppp,0,home!$J$9)) -> 0 | E104: =IF($B104<>"",home!$L$9,"") -> 1588400 | F104: =IF($B104<>"",ROUND(home!$L$9*1.035^(B104-1),0),"") -> 49544432 | G104: 52253196 | H104: 20000000 | I104: =IF(C104<>"",ROUND(VLOOKUP(id&"L"&B104,现金价值表!$A$7:$K$43716,8,FALSE)*tbfs,2),"") -> 52253196 | K104: 101 | L104: 100 | M104: 0 | N104: =IF(C104<>"",ROUND(E104*PRODUCT($U$3:$U104),2),"") -> 308734.65 | O104: =IF(C104<>"",ROUND(F104*PRODUCT($U$3:$U104),2),"") -> 9629868.32 | P104: =IF(C104<>"",ROUND(G104*PRODUCT($U$3:$U104),2),"") -> 10156366.24 | Q104: =IF(C104<>"",ROUND(MIN(F104*PRODUCT($U$3:$U104),20000000),2),"") -> 9629868.32 | R104: =IF(C104<>"",ROUND(I104*PRODUCT($U$3:$U104),2),"") -> 10156366.24 | S104: =home!K113 -> 0 | T104: =IF(C104<>"",S104/(I104*PRODUCT($U$3:U103)),"") -> 0 | U104: 1
A105: 102 | B105: 102 | C105: 101 | D105: =IF(B105="","",IF(B105>ppp,0,home!$J$9)) -> 0 | E105: =IF($B105<>"",home!$L$9,"") -> 1588400 | F105: =IF($B105<>"",ROUND(home!$L$9*1.035^(B105-1),0),"") -> 51278488 | G105: 53638052 | H105: 20000000 | I105: =IF(C105<>"",ROUND(VLOOKUP(id&"L"&B105,现金价值表!$A$7:$K$43716,8,FALSE)*tbfs,2),"") -> 53638052 | K105: 102 | L105: 101 | M105: 0 | N105: =IF(C105<>"",ROUND(E105*PRODUCT($U$3:$U105),2),"") -> 308734.65 | O105: =IF(C105<>"",ROUND(F105*PRODUCT($U$3:$U105),2),"") -> 9966913.88 | P105: =IF(C105<>"",ROUND(G105*PRODUCT($U$3:$U105),2),"") -> 10425538.38 | Q105: =IF(C105<>"",ROUND(MIN(F105*PRODUCT($U$3:$U105),20000000),2),"") -> 9966913.88 | R105: =IF(C105<>"",ROUND(I105*PRODUCT($U$3:$U105),2),"") -> 10425538.38 | S105: =home!K114 -> 0 | T105: =IF(C105<>"",S105/(I105*PRODUCT($U$3:U104)),"") -> 0 | U105: 1
A106: 103 | B106: 103 | C106: 102 | D106: =IF(B106="","",IF(B106>ppp,0,home!$J$9)) -> 0 | E106: =IF($B106<>"",home!$L$9,"") -> 1588400 | F106: =IF($B106<>"",ROUND(home!$L$9*1.035^(B106-1),0),"") -> 53073235 | G106: 55030836 | H106: 20000000 | I106: =IF(C106<>"",ROUND(VLOOKUP(id&"L"&B106,现金价值表!$A$7:$K$43716,8,FALSE)*tbfs,2),"") -> 55030836 | K106: 103 | L106: 102 | M106: 0 | N106: =IF(C106<>"",ROUND(E106*PRODUCT($U$3:$U106),2),"") -> 308734.65 | O106: =IF(C106<>"",ROUND(F106*PRODUCT($U$3:$U106),2),"") -> 10315755.85 | P106: =IF(C106<>"",ROUND(G106*PRODUCT($U$3:$U106),2),"") -> 10696251.48 | Q106: =IF(C106<>"",ROUND(MIN(F106*PRODUCT($U$3:$U106),20000000),2),"") -> 10315755.85 | R106: =IF(C106<>"",ROUND(I106*PRODUCT($U$3:$U106),2),"") -> 10696251.48 | S106: =home!K115 -> 0 | T106: =IF(C106<>"",S106/(I106*PRODUCT($U$3:U105)),"") -> 0 | U106: 1
A107: 104 | B107: 104 | C107: 103 | D107: =IF(B107="","",IF(B107>ppp,0,home!$J$9)) -> 0 | E107: =IF($B107<>"",home!$L$9,"") -> 1588400 | F107: =IF($B107<>"",ROUND(home!$L$9*1.035^(B107-1),0),"") -> 54930798 | G107: 56429960 | H107: 20000000 | I107: =IF(C107<>"",ROUND(VLOOKUP(id&"L"&B107,现金价值表!$A$7:$K$43716,8,FALSE)*tbfs,2),"") -> 56429960 | K107: 104 | L107: 103 | M107: 0 | N107: =IF(C107<>"",ROUND(E107*PRODUCT($U$3:$U107),2),"") -> 308734.65 | O107: =IF(C107<>"",ROUND(F107*PRODUCT($U$3:$U107),2),"") -> 10676807.26 | P107: =IF(C107<>"",ROUND(G107*PRODUCT($U$3:$U107),2),"") -> 10968196.87 | Q107: =IF(C107<>"",ROUND(MIN(F107*PRODUCT($U$3:$U107),20000000),2),"") -> 10676807.26 | R107: =IF(C107<>"",ROUND(I107*PRODUCT($U$3:$U107),2),"") -> 10968196.87 | S107: =home!K116 -> 0 | T107: =IF(C107<>"",S107/(I107*PRODUCT($U$3:U106)),"") -> 0 | U107: 1
A108: 105 | B108: 105 | C108: 104 | D108: =IF(B108="","",IF(B108>ppp,0,home!$J$9)) -> 0 | E108: =IF($B108<>"",home!$L$9,"") -> 1588400 | F108: =IF($B108<>"",ROUND(home!$L$9*1.035^(B108-1),0),"") -> 56853376 | G108: 57833892 | H108: 20000000 | I108: =IF(C108<>"",ROUND(VLOOKUP(id&"L"&B108,现金价值表!$A$7:$K$43716,8,FALSE)*tbfs,2),"") -> 57833892 | K108: 105 | L108: 104 | M108: 0 | N108: =IF(C108<>"",ROUND(E108*PRODUCT($U$3:$U108),2),"") -> 308734.65 | O108: =IF(C108<>"",ROUND(F108*PRODUCT($U$3:$U108),2),"") -> 11050495.53 | P108: =IF(C108<>"",ROUND(G108*PRODUCT($U$3:$U108),2),"") -> 11241076.78 | Q108: =IF(C108<>"",ROUND(MIN(F108*PRODUCT($U$3:$U108),20000000),2),"") -> 11050495.53 | R108: =IF(C108<>"",ROUND(I108*PRODUCT($U$3:$U108),2),"") -> 11241076.78 | S108: =home!K117 -> 0 | T108: =IF(C108<>"",S108/(I108*PRODUCT($U$3:U107)),"") -> 0 | U108: 1
A109: 106 | B109: 106 | C109: 105 | D109: =IF(B109="","",IF(B109>ppp,0,home!$J$9)) -> 0 | E109: =IF($B109<>"",home!$L$9,"") -> 1588400 | F109: =IF($B109<>"",ROUND(home!$L$9*1.035^(B109-1),0),"") -> 58843244 | G109: 58843244 | H109: 20000000 | I109: =IF(C109<>"",ROUND(VLOOKUP(id&"L"&B109,现金价值表!$A$7:$K$43716,8,FALSE)*tbfs,2),"") -> 58836572 | K109: 106 | L109: 105 | M109: 0 | N109: =IF(C109<>"",ROUND(E109*PRODUCT($U$3:$U109),2),"") -> 308734.65 | O109: =IF(C109<>"",ROUND(F109*PRODUCT($U$3:$U109),2),"") -> 11437262.84 | P109: =IF(C109<>"",ROUND(G109*PRODUCT($U$3:$U109),2),"") -> 11437262.84 | Q109: =IF(C109<>"",ROUND(MIN(F109*PRODUCT($U$3:$U109),20000000),2),"") -> 11437262.84 | R109: =IF(C109<>"",ROUND(I109*PRODUCT($U$3:$U109),2),"") -> 11435966.02 | S109: =home!K118 -> 0 | T109: =IF(C109<>"",S109/(I109*PRODUCT($U$3:U108)),"") -> 0 | U109: 1

Sheet fun (hidden)
A1: 年龄 | B1: =home!C9 -> 0
A2: 保险时间 | B2: =106-$B$1 -> 106
A4: 性别 | C4: =home!E9 -> 男 | D4: =VLOOKUP(C4,A5:B6,2,FALSE) -> 0
A5: 男 | B5: 0
A6: 女 | B6: 1
A8: 缴费年限 | C8: =home!K9 -> B-5年交 | D8: =VLOOKUP(C8,A9:B13,2,FALSE) -> 5
A9: A-3年交 | B9: 3
A10: B-5年交 | B10: 5
A11: C-10年交 | B11: 10
A12: D-15年交 | B12: 15
A13: E-20年交 | B13: 20
A15: 基本保险金额 | B15: =VLOOKUP($B$19,基本保险金额表!$A$7:$F$566,6,FALSE)*tbfs -> 1588400
A17: 年交保险费 | B17: 1000
A19: ID | B19: ="A"&B1&"S"&D4&"Y"&D8 -> A0S0Y5
A22: 投保份数 | B22: =home!J9/1000 -> 400

Sheet 基本保险金额表 (hidden)
B2: 鑫利来增额终身寿险
B3: (每千元年交保险费对应的基本保险金额表)
B5: 单位：人民币元
B6: 交费期间 | C6: 保险期间 | D6: 投保年龄 | E6: 性别 | F6: 保额
A7: ="A"&D7&"S"&E7&"Y"&B7 -> A0S0Y3 | B7: 3 | C7: 终身 | D7: 0 | E7: 0 | F7: 2432
A8: ="A"&D8&"S"&E8&"Y"&B8 -> A1S0Y3 | B8: 3 | C8: 终身 | D8: 1 | E8: 0 | F8: 2432
A9: A2S0Y3 | B9: 3 | C9: 终身 | D9: 2 | E9: 0 | F9: 2432
A10: A3S0Y3 | B10: 3 | C10: 终身 | D10: 3 | E10: 0 | F10: 2432
A11: A4S0Y3 | B11: 3 | C11: 终身 | D11: 4 | E11: 0 | F11: 2432
A12: A5S0Y3 | B12: 3 | C12: 终身 | D12: 5 | E12: 0 | F12: 2432
A13: A6S0Y3 | B13: 3 | C13: 终身 | D13: 6 | E13: 0 | F13: 2432
A14: A7S0Y3 | B14: 3 | C14: 终身 | D14: 7 | E14: 0 | F14: 2432
A15: A8S0Y3 | B15: 3 | C15: 终身 | D15: 8 | E15: 0 | F15: 2432
A16: A9S0Y3 | B16: 3 | C16: 终身 | D16: 9 | E16: 0 | F16: 2432
A17: A10S0Y3 | B17: 3 | C17: 终身 | D17: 10 | E17: 0 | F17: 2431
A18: A11S0Y3 | B18: 3 | C18: 终身 | D18: 11 | E18: 0 | F18: 2431
A19: A12S0Y3 | B19: 3 | C19: 终身 | D19: 12 | E19: 0 | F19: 2430
A20: A13S0Y3 | B20: 3 | C20: 终身 | D20: 13 | E20: 0 | F20: 2430
A21: A14S0Y3 | B21: 3 | C21: 终身 | D21: 14 | E21: 0 | F21: 2429
A22: A15S0Y3 | B22: 3 | C22: 终身 | D22: 15 | E22: 0 | F22: 2428
A23: A16S0Y3 | B23: 3 | C23: 终身 | D23: 16 | E23: 0 | F23: 2427
A24: A17S0Y3 | B24: 3 | C24: 终身 | D24: 17 | E24: 0 | F24: 2427
A25: A18S0Y3 | B25: 3 | C25: 终身 | D25: 18 | E25: 0 | F25: 2426
A26: A19S0Y3 | B26: 3 | C26: 终身 | D26: 19 | E26: 0 | F26: 2426
A27: A20S0Y3 | B27: 3 | C27: 终身 | D27: 20 | E27: 0 | F27: 2426
A28: A21S0Y3 | B28: 3 | C28: 终身 | D28: 21 | E28: 0 | F28: 2425
A29: A22S0Y3 | B29: 3 | C29: 终身 | D29: 22 | E29: 0 | F29: 2425
A30: A23S0Y3 | B30: 3 | C30: 终身 | D30: 23 | E30: 0 | F30: 2425
A31: A24S0Y3 | B31: 3 | C31: 终身 | D31: 24 | E31: 0 | F31: 2424
A32: A25S0Y3 | B32: 3 | C32: 终身 | D32: 25 | E32: 0 | F32: 2424
A33: A26S0Y3 | B33: 3 | C33: 终身 | D33: 26 | E33: 0 | F33: 2423
A34: A27S0Y3 | B34: 3 | C34: 终身 | D34: 27 | E34: 0 | F34: 2423
A35: A28S0Y3 | B35: 3 | C35: 终身 | D35: 28 | E35: 0 | F35: 2422
A36: A29S0Y3 | B36: 3 | C36: 终身 | D36: 29 | E36: 0 | F36: 2422
A37: A30S0Y3 | B37: 3 | C37: 终身 | D37: 30 | E37: 0 | F37: 2422
A38: A31S0Y3 | B38: 3 | C38: 终身 | D38: 31 | E38: 0 | F38: 2422
A39: A32S0Y3 | B39: 3 | C39: 终身 | D39: 32 | E39: 0 | F39: 2422
A40: A33S0Y3 | B40: 3 | C40: 终身 | D40: 33 | E40: 0 | F40: 2421
A41: A34S0Y3 | B41: 3 | C41: 终身 | D41: 34 | E41: 0 | F41: 2421
A42: A35S0Y3 | B42: 3 | C42: 终身 | D42: 35 | E42: 0 | F42: 2421
A43: A36S0Y3 | B43: 3 | C43: 终身 | D43: 36 | E43: 0 | F43: 2421
A44: A37S0Y3 | B44: 3 | C44: 终身 | D44: 37 | E44: 0 | F44: 2420
A45: A38S0Y3 | B45: 3 | C45: 终身 | D45: 38 | E45: 0 | F45: 2420
A46: A39S0Y3 | B46: 3 | C46: 终身 | D46: 39 | E46: 0 | F46: 2420
A47: A40S0Y3 | B47: 3 | C47: 终身 | D47: 40 | E47: 0 | F47: 2419
A48: A41S0Y3 | B48: 3 | C48: 终身 | D48: 41 | E48: 0 | F48: 2418
A49: A42S0Y3 | B49: 3 | C49: 终身 | D49: 42 | E49: 0 | F49: 2416
A50: A43S0Y3 | B50: 3 | C50: 终身 | D50: 43 | E50: 0 | F50: 2414
A51: A44S0Y3 | B51: 3 | C51: 终身 | D51: 44 | E51: 0 | F51: 2412
A52: A45S0Y3 | B52: 3 | C52: 终身 | D52: 45 | E52: 0 | F52: 2410
A53: A46S0Y3 | B53: 3 | C53: 终身 | D53: 46 | E53: 0 | F53: 2408
A54: A47S0Y3 | B54: 3 | C54: 终身 | D54: 47 | E54: 0 | F54: 2406
A55: A48S0Y3 | B55: 3 | C55: 终身 | D55: 48 | E55: 0 | F55: 2403
A56: A49S0Y3 | B56: 3 | C56: 终身 | D56: 49 | E56: 0 | F56: 2401
A57: A50S0Y3 | B57: 3 | C57: 终身 | D57: 50 | E57: 0 | F57: 2399
A58: A51S0Y3 | B58: 3 | C58: 终身 | D58: 51 | E58: 0 | F58: 2398
A59: A52S0Y3 | B59: 3 | C59: 终身 | D59: 52 | E59: 0 | F59: 2397
A60: A53S0Y3 | B60: 3 | C60: 终身 | D60: 53 | E60: 0 | F60: 2398
A61: A54S0Y3 | B61: 3 | C61: 终身 | D61: 54 | E61: 0 | F61: 2400
A62: A55S0Y3 | B62: 3 | C62: 终身 | D62: 55 | E62: 0 | F62: 2401
A63: A56S0Y3 | B63: 3 | C63: 终身 | D63: 56 | E63: 0 | F63: 2403
A64: A57S0Y3 | B64: 3 | C64: 终身 | D64: 57 | E64: 0 | F64: 2405
A65: A58S0Y3 | B65: 3 | C65: 终身 | D65: 58 | E65: 0 | F65: 2407
A66: A59S0Y3 | B66: 3 | C66: 终身 | D66: 59 | E66: 0 | F66: 2409
A67: A60S0Y3 | B67: 3 | C67: 终身 | D67: 60 | E67: 0 | F67: 2410
A68: A61S0Y3 | B68: 3 | C68: 终身 | D68: 61 | E68: 0 | F68: 2409
A69: A62S0Y3 | B69: 3 | C69: 终身 | D69: 62 | E69: 0 | F69: 2406
A70: A63S0Y3 | B70: 3 | C70: 终身 | D70: 63 | E70: 0 | F70: 2401
A71: A64S0Y3 | B71: 3 | C71: 终身 | D71: 64 | E71: 0 | F71: 2397
A72: ="A"&D72&"S"&E72&"Y"&B72 -> A65S0Y3 | B72: 3 | C72: 终身 | D72: 65 | E72: 0 | F72: 2391
A73: A0S1Y3 | B73: 3 | C73: 终身 | D73: 0 | E73: 1 | F73: 2512
A74: A1S1Y3 | B74: 3 | C74: 终身 | D74: 1 | E74: 1 | F74: 2513
A75: A2S1Y3 | B75: 3 | C75: 终身 | D75: 2 | E75: 1 | F75: 2513
A76: A3S1Y3 | B76: 3 | C76: 终身 | D76: 3 | E76: 1 | F76: 2513
A77: A4S1Y3 | B77: 3 | C77: 终身 | D77: 4 | E77: 1 | F77: 2513
A78: ="A"&D78&"S"&E78&"Y"&B78 -> A5S1Y3 | B78: 3 | C78: 终身 | D78: 5 | E78: 1 | F78: 2513
A79: ="A"&D79&"S"&E79&"Y"&B79 -> A6S1Y3 | B79: 3 | C79: 终身 | D79: 6 | E79: 1 | F79: 2513
A80: A7S1Y3 | B80: 3 | C80: 终身 | D80: 7 | E80: 1 | F80: 2513
A81: A8S1Y3 | B81: 3 | C81: 终身 | D81: 8 | E81: 1 | F81: 2512
A82: A9S1Y3 | B82: 3 | C82: 终身 | D82: 9 | E82: 1 | F82: 2512
A83: A10S1Y3 | B83: 3 | C83: 终身 | D83: 10 | E83: 1 | F83: 2512
A84: A11S1Y3 | B84: 3 | C84: 终身 | D84: 11 | E84: 1 | F84: 2512
A85: A12S1Y3 | B85: 3 | C85: 终身 | D85: 12 | E85: 1 | F85: 2512
A86: A13S1Y3 | B86: 3 | C86: 终身 | D86: 13 | E86: 1 | F86: 2511
A87: A14S1Y3 | B87: 3 | C87: 终身 | D87: 14 | E87: 1 | F87: 2511
A88: A15S1Y3 | B88: 3 | C88: 终身 | D88: 15 | E88: 1 | F88: 2511
A89: A16S1Y3 | B89: 3 | C89: 终身 | D89: 16 | E89: 1 | F89: 2510
A90: A17S1Y3 | B90: 3 | C90: 终身 | D90: 17 | E90: 1 | F90: 2510
A91: A18S1Y3 | B91: 3 | C91: 终身 | D91: 18 | E91: 1 | F91: 2510
A92: A19S1Y3 | B92: 3 | C92: 终身 | D92: 19 | E92: 1 | F92: 2510
A93: A20S1Y3 | B93: 3 | C93: 终身 | D93: 20 | E93: 1 | F93: 2510
A94: A21S1Y3 | B94: 3 | C94: 终身 | D94: 21 | E94: 1 | F94: 2510
A95: A22S1Y3 | B95: 3 | C95: 终身 | D95: 22 | E95: 1 | F95: 2510
A96: A23S1Y3 | B96: 3 | C96: 终身 | D96: 23 | E96: 1 | F96: 2509
A97: A24S1Y3 | B97: 3 | C97: 终身 | D97: 24 | E97: 1 | F97: 2509
A98: A25S1Y3 | B98: 3 | C98: 终身 | D98: 25 | E98: 1 | F98: 2509
A99: A26S1Y3 | B99: 3 | C99: 终身 | D99: 26 | E99: 1 | F99: 2509
A100: A27S1Y3 | B100: 3 | C100: 终身 | D100: 27 | E100: 1 | F100: 2509
A101: A28S1Y3 | B101: 3 | C101: 终身 | D101: 28 | E101: 1 | F101: 2509
A102: A29S1Y3 | B102: 3 | C102: 终身 | D102: 29 | E102: 1 | F102: 2509
A103: A30S1Y3 | B103: 3 | C103: 终身 | D103: 30 | E103: 1 | F103: 2509
A104: A31S1Y3 | B104: 3 | C104: 终身 | D104: 31 | E104: 1 | F104: 2509
A105: A32S1Y3 | B105: 3 | C105: 终身 | D105: 32 | E105: 1 | F105: 2509
A106: A33S1Y3 | B106: 3 | C106: 终身 | D106: 33 | E106: 1 | F106: 2509
A107: A34S1Y3 | B107: 3 | C107: 终身 | D107: 34 | E107: 1 | F107: 2508
A108: A35S1Y3 | B108: 3 | C108: 终身 | D108: 35 | E108: 1 | F108: 2508
A109: A36S1Y3 | B109: 3 | C109: 终身 | D109: 36 | E109: 1 | F109: 2508
A110: A37S1Y3 | B110: 3 | C110: 终身 | D110: 37 | E110: 1 | F110: 2508
A111: A38S1Y3 | B111: 3 | C111: 终身 | D111: 38 | E111: 1 | F111: 2508
A112: A39S1Y3 | B112: 3 | C112: 终身 | D112: 39 | E112: 1 | F112: 2508
A113: A40S1Y3 | B113: 3 | C113: 终身 | D113: 40 | E113: 1 | F113: 2507
A114: A41S1Y3 | B114: 3 | C114: 终身 | D114: 41 | E114: 1 | F114: 2507
A115: A42S1Y3 | B115: 3 | C115: 终身 | D115: 42 | E115: 1 | F115: 2506
A116: A43S1Y3 | B116: 3 | C116: 终身 | D116: 43 | E116: 1 | F116: 2505
A117: A44S1Y3 | B117: 3 | C117: 终身 | D117: 44 | E117: 1 | F117: 2505
A118: A45S1Y3 | B118: 3 | C118: 终身 | D118: 45 | E118: 1 | F118: 2504
A119: A46S1Y3 | B119: 3 | C119: 终身 | D119: 46 | E119: 1 | F119: 2503
A120: A47S1Y3 | B120: 3 | C120: 终身 | D120: 47 | E120: 1 | F120: 2502
A121: A48S1Y3 | B121: 3 | C121: 终身 | D121: 48 | E121: 1 | F121: 2500
A122: A49S1Y3 | B122: 3 | C122: 终身 | D122: 49 | E122: 1 | F122: 2499
A123: A50S1Y3 | B123: 3 | C123: 终身 | D123: 50 | E123: 1 | F123: 2498
A124: A51S1Y3 | B124: 3 | C124: 终身 | D124: 51 | E124: 1 | F124: 2497
A125: A52S1Y3 | B125: 3 | C125: 终身 | D125: 52 | E125: 1 | F125: 2497
A126: A53S1Y3 | B126: 3 | C126: 终身 | D126: 53 | E126: 1 | F126: 2497
A127: A54S1Y3 | B127: 3 | C127: 终身 | D127: 54 | E127: 1 | F127: 2498
A128: A55S1Y3 | B128: 3 | C128: 终身 | D128: 55 | E128: 1 | F128: 2499
A129: A56S1Y3 | B129: 3 | C129: 终身 | D129: 56 | E129: 1 | F129: 2499
A130: A57S1Y3 | B130: 3 | C130: 终身 | D130: 57 | E130: 1 | F130: 2500
A131: A58S1Y3 | B131: 3 | C131: 终身 | D131: 58 | E131: 1 | F131: 2501
A132: A59S1Y3 | B132: 3 | C132: 终身 | D132: 59 | E132: 1 | F132: 2502
A133: A60S1Y3 | B133: 3 | C133: 终身 | D133: 60 | E133: 1 | F133: 2502
A134: A61S1Y3 | B134: 3 | C134: 终身 | D134: 61 | E134: 1 | F134: 2502
A135: A62S1Y3 | B135: 3 | C135: 终身 | D135: 62 | E135: 1 | F135: 2500
A136: A63S1Y3 | B136: 3 | C136: 终身 | D136: 63 | E136: 1 | F136: 2497
A137: A64S1Y3 | B137: 3 | C137: 终身 | D137: 64 | E137: 1 | F137: 2495
A138: A65S1Y3 | B138: 3 | C138: 终身 | D138: 65 | E138: 1 | F138: 2491
A139: A0S0Y5 | B139: 5 | C139: 终身 | D139: 0 | E139: 0 | F139: 3971
A140: A1S0Y5 | B140: 5 | C140: 终身 | D140: 1 | E140: 0 | F140: 3971
A141: A2S0Y5 | B141: 5 | C141: 终身 | D141: 2 | E141: 0 | F141: 3971
A142: A3S0Y5 | B142: 5 | C142: 终身 | D142: 3 | E142: 0 | F142: 3971
A143: ="A"&D143&"S"&E143&"Y"&B143 -> A4S0Y5 | B143: 5 | C143: 终身 | D143: 4 | E143: 0 | F143: 3971
A144: A5S0Y5 | B144: 5 | C144: 终身 | D144: 5 | E144: 0 | F144: 3971
A145: A6S0Y5 | B145: 5 | C145: 终身 | D145: 6 | E145: 0 | F145: 3970
A146: A7S0Y5 | B146: 5 | C146: 终身 | D146: 7 | E146: 0 | F146: 3970
A147: A8S0Y5 | B147: 5 | C147: 终身 | D147: 8 | E147: 0 | F147: 3970
A148: A9S0Y5 | B148: 5 | C148: 终身 | D148: 9 | E148: 0 | F148: 3969
A149: ="A"&D149&"S"&E149&"Y"&B149 -> A10S0Y5 | B149: 5 | C149: 终身 | D149: 10 | E149: 0 | F149: 3968
A150: A11S0Y5 | B150: 5 | C150: 终身 | D150: 11 | E150: 0 | F150: 3968
A151: A12S0Y5 | B151: 5 | C151: 终身 | D151: 12 | E151: 0 | F151: 3967
A152: A13S0Y5 | B152: 5 | C152: 终身 | D152: 13 | E152: 0 | F152: 3966
A153: A14S0Y5 | B153: 5 | C153: 终身 | D153: 14 | E153: 0 | F153: 3965
A154: A15S0Y5 | B154: 5 | C154: 终身 | D154: 15 | E154: 0 | F154: 3963
A155: A16S0Y5 | B155: 5 | C155: 终身 | D155: 16 | E155: 0 | F155: 3962
A156: A17S0Y5 | B156: 5 | C156: 终身 | D156: 17 | E156: 0 | F156: 3962
A157: A18S0Y5 | B157: 5 | C157: 终身 | D157: 18 | E157: 0 | F157: 3961
A158: A19S0Y5 | B158: 5 | C158: 终身 | D158: 19 | E158: 0 | F158: 3961
A159: A20S0Y5 | B159: 5 | C159: 终身 | D159: 20 | E159: 0 | F159: 3960
A160: A21S0Y5 | B160: 5 | C160: 终身 | D160: 21 | E160: 0 | F160: 3960
A161: A22S0Y5 | B161: 5 | C161: 终身 | D161: 22 | E161: 0 | F161: 3959
A162: A23S0Y5 | B162: 5 | C162: 终身 | D162: 23 | E162: 0 | F162: 3958
A163: A24S0Y5 | B163: 5 | C163: 终身 | D163: 24 | E163: 0 | F163: 3958
A164: A25S0Y5 | B164: 5 | C164: 终身 | D164: 25 | E164: 0 | F164: 3957
A165: A26S0Y5 | B165: 5 | C165: 终身 | D165: 26 | E165: 0 | F165: 3956
A166: A27S0Y5 | B166: 5 | C166: 终身 | D166: 27 | E166: 0 | F166: 3955
A167: A28S0Y5 | B167: 5 | C167: 终身 | D167: 28 | E167: 0 | F167: 3955
A168: A29S0Y5 | B168: 5 | C168: 终身 | D168: 29 | E168: 0 | F168: 3955
A169: A30S0Y5 | B169: 5 | C169: 终身 | D169: 30 | E169: 0 | F169: 3955
A170: A31S0Y5 | B170: 5 | C170: 终身 | D170: 31 | E170: 0 | F170: 3954
A171: A32S0Y5 | B171: 5 | C171: 终身 | D171: 32 | E171: 0 | F171: 3954
A172: A33S0Y5 | B172: 5 | C172: 终身 | D172: 33 | E172: 0 | F172: 3954
A173: A34S0Y5 | B173: 5 | C173: 终身 | D173: 34 | E173: 0 | F173: 3954
A174: A35S0Y5 | B174: 5 | C174: 终身 | D174: 35 | E174: 0 | F174: 3953
A175: A36S0Y5 | B175: 5 | C175: 终身 | D175: 36 | E175: 0 | F175: 3953
A176: A37S0Y5 | B176: 5 | C176: 终身 | D176: 37 | E176: 0 | F176: 3953
A177: A38S0Y5 | B177: 5 | C177: 终身 | D177: 38 | E177: 0 | F177: 3952
A178: A39S0Y5 | B178: 5 | C178: 终身 | D178: 39 | E178: 0 | F178: 3951
A179: A40S0Y5 | B179: 5 | C179: 终身 | D179: 40 | E179: 0 | F179: 3949
A180: A41S0Y5 | B180: 5 | C180: 终身 | D180: 41 | E180: 0 | F180: 3947
A181: A42S0Y5 | B181: 5 | C181: 终身 | D181: 42 | E181: 0 | F181: 3944
A182: A43S0Y5 | B182: 5 | C182: 终身 | D182: 43 | E182: 0 | F182: 3942
A183: A44S0Y5 | B183: 5 | C183: 终身 | D183: 44 | E183: 0 | F183: 3938
A184: A45S0Y5 | B184: 5 | C184: 终身 | D184: 45 | E184: 0 | F184: 3935
A185: A46S0Y5 | B185: 5 | C185: 终身 | D185: 46 | E185: 0 | F185: 3932
A186: A47S0Y5 | B186: 5 | C186: 终身 | D186: 47 | E186: 0 | F186: 3928
A187: A48S0Y5 | B187: 5 | C187: 终身 | D187: 48 | E187: 0 | F187: 3924
A188: A49S0Y5 | B188: 5 | C188: 终身 | D188: 49 | E188: 0 | F188: 3921
A189: A50S0Y5 | B189: 5 | C189: 终身 | D189: 50 | E189: 0 | F189: 3919
A190: A51S0Y5 | B190: 5 | C190: 终身 | D190: 51 | E190: 0 | F190: 3918
A191: A52S0Y5 | B191: 5 | C191: 终身 | D191: 52 | E191: 0 | F191: 3919
A192: A53S0Y5 | B192: 5 | C192: 终身 | D192: 53 | E192: 0 | F192: 3922
A193: A54S0Y5 | B193: 5 | C193: 终身 | D193: 54 | E193: 0 | F193: 3924
A194: A55S0Y5 | B194: 5 | C194: 终身 | D194: 55 | E194: 0 | F194: 3928
A195: A56S0Y5 | B195: 5 | C195: 终身 | D195: 56 | E195: 0 | F195: 3931
A196: A57S0Y5 | B196: 5 | C196: 终身 | D196: 57 | E196: 0 | F196: 3935
A197: A58S0Y5 | B197: 5 | C197: 终身 | D197: 58 | E197: 0 | F197: 3938
A198: A59S0Y5 | B198: 5 | C198: 终身 | D198: 59 | E198: 0 | F198: 3939
A199: A60S0Y5 | B199: 5 | C199: 终身 | D199: 60 | E199: 0 | F199: 3939
A200: A0S1Y5 | B200: 5 | C200: 终身 | D200: 0 | E200: 1 | F200: 4102
A201: A1S1Y5 | B201: 5 | C201: 终身 | D201: 1 | E201: 1 | F201: 4102
A202: A2S1Y5 | B202: 5 | C202: 终身 | D202: 2 | E202: 1 | F202: 4102
... 364 more rows

Sheet 现金价值表 (hidden)
B2: 鑫利来增额终身寿险
B3: (每千元年交保险费对应的现金价值表)
B5: 单位：人民币元
B6: 交费期间 | C6: 保险期间 | D6: 投保年龄 | E6: 性别 | F6: 保单年度 | G6: 现金价值净保费（期初） | H6: 保单年度末现金价值 | I6: 保单年度末生存给付 | J6: 评估净保费(Alfa&beta) | K6: 期末法定责任准备金
A7: ="A"&D7&"S"&E7&"Y"&B7&"L"&F7 -> A0S0Y3L1 | B7: 3 | C7: 终身 | D7: 0 | E7: 0 | F7: 1 | G7: 164.33 | H7: 149.58 | I7: 0 | J7: 0.88 | K7: 859.24
A8: ="A"&D8&"S"&E8&"Y"&B8&"L"&F8 -> A0S0Y3L2 | B8: 3 | C8: 终身 | D8: 0 | E8: 0 | F8: 2 | G8: 234.75 | H8: 400.14 | I8: 0 | J8: 1437.14 | K8: 1924.22
A9: A0S0Y3L3 | B9: 3 | C9: 终身 | D9: 0 | E9: 0 | F9: 3 | G9: 305.18 | H9: 773.2 | I9: 0 | J9: 1437.14 | K9: 3026.52
A10: A0S0Y3L4 | B10: 3 | C10: 终身 | D10: 0 | E10: 0 | F10: 4 | G10: 0 | H10: 814.92 | I10: 0 | J10: 0 | K10: 3132.44
A11: A0S0Y3L5 | B11: 3 | C11: 终身 | D11: 0 | E11: 0 | F11: 5 | G11: 0 | H11: 859.09 | I11: 0 | J11: 0 | K11: 3242.1
A12: A0S0Y3L6 | B12: 3 | C12: 终身 | D12: 0 | E12: 0 | F12: 6 | G12: 0 | H12: 3355.52 | I12: 0 | J12: 0 | K12: 3355.52
A13: A0S0Y3L7 | B13: 3 | C13: 终身 | D13: 0 | E13: 0 | F13: 7 | G13: 0 | H13: 3472.91 | I13: 0 | J13: 0 | K13: 3472.91
A14: A0S0Y3L8 | B14: 3 | C14: 终身 | D14: 0 | E14: 0 | F14: 8 | G14: 0 | H14: 3594.41 | I14: 0 | J14: 0 | K14: 3594.41
A15: A0S0Y3L9 | B15: 3 | C15: 终身 | D15: 0 | E15: 0 | F15: 9 | G15: 0 | H15: 3720.16 | I15: 0 | J15: 0 | K15: 3720.16
A16: A0S0Y3L10 | B16: 3 | C16: 终身 | D16: 0 | E16: 0 | F16: 10 | G16: 0 | H16: 3850.31 | I16: 0 | J16: 0 | K16: 3850.31
A17: A0S0Y3L11 | B17: 3 | C17: 终身 | D17: 0 | E17: 0 | F17: 11 | G17: 0 | H17: 3985.01 | I17: 0 | J17: 0 | K17: 3985.01
A18: A0S0Y3L12 | B18: 3 | C18: 终身 | D18: 0 | E18: 0 | F18: 12 | G18: 0 | H18: 4124.42 | I18: 0 | J18: 0 | K18: 4124.42
A19: A0S0Y3L13 | B19: 3 | C19: 终身 | D19: 0 | E19: 0 | F19: 13 | G19: 0 | H19: 4268.71 | I19: 0 | J19: 0 | K19: 4268.71
A20: A0S0Y3L14 | B20: 3 | C20: 终身 | D20: 0 | E20: 0 | F20: 14 | G20: 0 | H20: 4418.04 | I20: 0 | J20: 0 | K20: 4418.04
A21: A0S0Y3L15 | B21: 3 | C21: 终身 | D21: 0 | E21: 0 | F21: 15 | G21: 0 | H21: 4572.6 | I21: 0 | J21: 0 | K21: 4572.6
A22: A0S0Y3L16 | B22: 3 | C22: 终身 | D22: 0 | E22: 0 | F22: 16 | G22: 0 | H22: 4732.55 | I22: 0 | J22: 0 | K22: 4732.55
A23: A0S0Y3L17 | B23: 3 | C23: 终身 | D23: 0 | E23: 0 | F23: 17 | G23: 0 | H23: 4898.11 | I23: 0 | J23: 0 | K23: 4898.11
A24: A0S0Y3L18 | B24: 3 | C24: 终身 | D24: 0 | E24: 0 | F24: 18 | G24: 0 | H24: 5069.45 | I24: 0 | J24: 0 | K24: 5069.45
A25: A0S0Y3L19 | B25: 3 | C25: 终身 | D25: 0 | E25: 0 | F25: 19 | G25: 0 | H25: 5246.78 | I25: 0 | J25: 0 | K25: 5246.78
A26: A0S0Y3L20 | B26: 3 | C26: 终身 | D26: 0 | E26: 0 | F26: 20 | G26: 0 | H26: 5430.31 | I26: 0 | J26: 0 | K26: 5430.31
A27: A0S0Y3L21 | B27: 3 | C27: 终身 | D27: 0 | E27: 0 | F27: 21 | G27: 0 | H27: 5620.27 | I27: 0 | J27: 0 | K27: 5620.27
A28: A0S0Y3L22 | B28: 3 | C28: 终身 | D28: 0 | E28: 0 | F28: 22 | G28: 0 | H28: 5816.86 | I28: 0 | J28: 0 | K28: 5816.86
A29: A0S0Y3L23 | B29: 3 | C29: 终身 | D29: 0 | E29: 0 | F29: 23 | G29: 0 | H29: 6020.33 | I29: 0 | J29: 0 | K29: 6020.33
A30: A0S0Y3L24 | B30: 3 | C30: 终身 | D30: 0 | E30: 0 | F30: 24 | G30: 0 | H30: 6230.92 | I30: 0 | J30: 0 | K30: 6230.92
A31: A0S0Y3L25 | B31: 3 | C31: 终身 | D31: 0 | E31: 0 | F31: 25 | G31: 0 | H31: 6448.86 | I31: 0 | J31: 0 | K31: 6448.86
A32: A0S0Y3L26 | B32: 3 | C32: 终身 | D32: 0 | E32: 0 | F32: 26 | G32: 0 | H32: 6674.43 | I32: 0 | J32: 0 | K32: 6674.43
A33: A0S0Y3L27 | B33: 3 | C33: 终身 | D33: 0 | E33: 0 | F33: 27 | G33: 0 | H33: 6907.89 | I33: 0 | J33: 0 | K33: 6907.89
A34: A0S0Y3L28 | B34: 3 | C34: 终身 | D34: 0 | E34: 0 | F34: 28 | G34: 0 | H34: 7149.5 | I34: 0 | J34: 0 | K34: 7149.5
A35: A0S0Y3L29 | B35: 3 | C35: 终身 | D35: 0 | E35: 0 | F35: 29 | G35: 0 | H35: 7399.57 | I35: 0 | J35: 0 | K35: 7399.57
A36: A0S0Y3L30 | B36: 3 | C36: 终身 | D36: 0 | E36: 0 | F36: 30 | G36: 0 | H36: 7658.37 | I36: 0 | J36: 0 | K36: 7658.37
A37: A0S0Y3L31 | B37: 3 | C37: 终身 | D37: 0 | E37: 0 | F37: 31 | G37: 0 | H37: 7926.22 | I37: 0 | J37: 0 | K37: 7926.22
A38: A0S0Y3L32 | B38: 3 | C38: 终身 | D38: 0 | E38: 0 | F38: 32 | G38: 0 | H38: 8203.43 | I38: 0 | J38: 0 | K38: 8203.43
A39: A0S0Y3L33 | B39: 3 | C39: 终身 | D39: 0 | E39: 0 | F39: 33 | G39: 0 | H39: 8490.33 | I39: 0 | J39: 0 | K39: 8490.33
A40: A0S0Y3L34 | B40: 3 | C40: 终身 | D40: 0 | E40: 0 | F40: 34 | G40: 0 | H40: 8787.25 | I40: 0 | J40: 0 | K40: 8787.25
A41: A0S0Y3L35 | B41: 3 | C41: 终身 | D41: 0 | E41: 0 | F41: 35 | G41: 0 | H41: 9094.55 | I41: 0 | J41: 0 | K41: 9094.55
A42: A0S0Y3L36 | B42: 3 | C42: 终身 | D42: 0 | E42: 0 | F42: 36 | G42: 0 | H42: 9412.58 | I42: 0 | J42: 0 | K42: 9412.58
A43: A0S0Y3L37 | B43: 3 | C43: 终身 | D43: 0 | E43: 0 | F43: 37 | G43: 0 | H43: 9741.71 | I43: 0 | J43: 0 | K43: 9741.71
A44: A0S0Y3L38 | B44: 3 | C44: 终身 | D44: 0 | E44: 0 | F44: 38 | G44: 0 | H44: 10082.34 | I44: 0 | J44: 0 | K44: 10082.34
A45: A0S0Y3L39 | B45: 3 | C45: 终身 | D45: 0 | E45: 0 | F45: 39 | G45: 0 | H45: 10434.86 | I45: 0 | J45: 0 | K45: 10434.86
A46: A0S0Y3L40 | B46: 3 | C46: 终身 | D46: 0 | E46: 0 | F46: 40 | G46: 0 | H46: 10799.68 | I46: 0 | J46: 0 | K46: 10799.68
A47: A0S0Y3L41 | B47: 3 | C47: 终身 | D47: 0 | E47: 0 | F47: 41 | G47: 0 | H47: 11177.24 | I47: 0 | J47: 0 | K47: 11177.24
A48: A0S0Y3L42 | B48: 3 | C48: 终身 | D48: 0 | E48: 0 | F48: 42 | G48: 0 | H48: 11567.95 | I48: 0 | J48: 0 | K48: 11567.95
A49: A0S0Y3L43 | B49: 3 | C49: 终身 | D49: 0 | E49: 0 | F49: 43 | G49: 0 | H49: 11972.3 | I49: 0 | J49: 0 | K49: 11972.3
A50: A0S0Y3L44 | B50: 3 | C50: 终身 | D50: 0 | E50: 0 | F50: 44 | G50: 0 | H50: 12390.73 | I50: 0 | J50: 0 | K50: 12390.73
A51: A0S0Y3L45 | B51: 3 | C51: 终身 | D51: 0 | E51: 0 | F51: 45 | G51: 0 | H51: 12823.74 | I51: 0 | J51: 0 | K51: 12823.74
A52: A0S0Y3L46 | B52: 3 | C52: 终身 | D52: 0 | E52: 0 | F52: 46 | G52: 0 | H52: 13271.82 | I52: 0 | J52: 0 | K52: 13271.82
A53: A0S0Y3L47 | B53: 3 | C53: 终身 | D53: 0 | E53: 0 | F53: 47 | G53: 0 | H53: 13735.5 | I53: 0 | J53: 0 | K53: 13735.5
A54: A0S0Y3L48 | B54: 3 | C54: 终身 | D54: 0 | E54: 0 | F54: 48 | G54: 0 | H54: 14215.3 | I54: 0 | J54: 0 | K54: 14215.3
A55: A0S0Y3L49 | B55: 3 | C55: 终身 | D55: 0 | E55: 0 | F55: 49 | G55: 0 | H55: 14711.77 | I55: 0 | J55: 0 | K55: 14711.77
A56: A0S0Y3L50 | B56: 3 | C56: 终身 | D56: 0 | E56: 0 | F56: 50 | G56: 0 | H56: 15225.5 | I56: 0 | J56: 0 | K56: 15225.5
A57: A0S0Y3L51 | B57: 3 | C57: 终身 | D57: 0 | E57: 0 | F57: 51 | G57: 0 | H57: 15757.07 | I57: 0 | J57: 0 | K57: 15757.07
A58: A0S0Y3L52 | B58: 3 | C58: 终身 | D58: 0 | E58: 0 | F58: 52 | G58: 0 | H58: 16307.08 | I58: 0 | J58: 0 | K58: 16307.08
A59: A0S0Y3L53 | B59: 3 | C59: 终身 | D59: 0 | E59: 0 | F59: 53 | G59: 0 | H59: 16876.18 | I59: 0 | J59: 0 | K59: 16876.18
A60: A0S0Y3L54 | B60: 3 | C60: 终身 | D60: 0 | E60: 0 | F60: 54 | G60: 0 | H60: 17465.01 | I60: 0 | J60: 0 | K60: 17465.01
A61: A0S0Y3L55 | B61: 3 | C61: 终身 | D61: 0 | E61: 0 | F61: 55 | G61: 0 | H61: 18074.25 | I61: 0 | J61: 0 | K61: 18074.25
A62: A0S0Y3L56 | B62: 3 | C62: 终身 | D62: 0 | E62: 0 | F62: 56 | G62: 0 | H62: 18704.61 | I62: 0 | J62: 0 | K62: 18704.61
A63: A0S0Y3L57 | B63: 3 | C63: 终身 | D63: 0 | E63: 0 | F63: 57 | G63: 0 | H63: 19356.8 | I63: 0 | J63: 0 | K63: 19356.8
A64: A0S0Y3L58 | B64: 3 | C64: 终身 | D64: 0 | E64: 0 | F64: 58 | G64: 0 | H64: 20031.57 | I64: 0 | J64: 0 | K64: 20031.57
A65: A0S0Y3L59 | B65: 3 | C65: 终身 | D65: 0 | E65: 0 | F65: 59 | G65: 0 | H65: 20729.66 | I65: 0 | J65: 0 | K65: 20729.66
A66: A0S0Y3L60 | B66: 3 | C66: 终身 | D66: 0 | E66: 0 | F66: 60 | G66: 0 | H66: 21451.84 | I66: 0 | J66: 0 | K66: 21451.84
A67: A0S0Y3L61 | B67: 3 | C67: 终身 | D67: 0 | E67: 0 | F67: 61 | G67: 0 | H67: 22198.9 | I67: 0 | J67: 0 | K67: 22198.9
A68: A0S0Y3L62 | B68: 3 | C68: 终身 | D68: 0 | E68: 0 | F68: 62 | G68: 0 | H68: 22971.6 | I68: 0 | J68: 0 | K68: 22971.6
A69: A0S0Y3L63 | B69: 3 | C69: 终身 | D69: 0 | E69: 0 | F69: 63 | G69: 0 | H69: 23770.77 | I69: 0 | J69: 0 | K69: 23770.77
A70: A0S0Y3L64 | B70: 3 | C70: 终身 | D70: 0 | E70: 0 | F70: 64 | G70: 0 | H70: 24597.21 | I70: 0 | J70: 0 | K70: 24597.21
A71: A0S0Y3L65 | B71: 3 | C71: 终身 | D71: 0 | E71: 0 | F71: 65 | G71: 0 | H71: 25451.77 | I71: 0 | J71: 0 | K71: 25451.77
A72: ="A"&D72&"S"&E72&"Y"&B72&"L"&F72 -> A0S0Y3L66 | B72: 3 | C72: 终身 | D72: 0 | E72: 0 | F72: 66 | G72: 0 | H72: 26335.27 | I72: 0 | J72: 0 | K72: 26335.27
A73: A0S0Y3L67 | B73: 3 | C73: 终身 | D73: 0 | E73: 0 | F73: 67 | G73: 0 | H73: 27248.58 | I73: 0 | J73: 0 | K73: 27248.58
A74: A0S0Y3L68 | B74: 3 | C74: 终身 | D74: 0 | E74: 0 | F74: 68 | G74: 0 | H74: 28192.54 | I74: 0 | J74: 0 | K74: 28192.55
A75: A0S0Y3L69 | B75: 3 | C75: 终身 | D75: 0 | E75: 0 | F75: 69 | G75: 0 | H75: 29168 | I75: 0 | J75: 0 | K75: 29168
A76: A0S0Y3L70 | B76: 3 | C76: 终身 | D76: 0 | E76: 0 | F76: 70 | G76: 0 | H76: 30175.78 | I76: 0 | J76: 0 | K76: 30175.78
A77: A0S0Y3L71 | B77: 3 | C77: 终身 | D77: 0 | E77: 0 | F77: 71 | G77: 0 | H77: 31216.71 | I77: 0 | J77: 0 | K77: 31216.71
A78: A0S0Y3L72 | B78: 3 | C78: 终身 | D78: 0 | E78: 0 | F78: 72 | G78: 0 | H78: 32291.61 | I78: 0 | J78: 0 | K78: 32291.61
A79: A0S0Y3L73 | B79: 3 | C79: 终身 | D79: 0 | E79: 0 | F79: 73 | G79: 0 | H79: 33401.27 | I79: 0 | J79: 0 | K79: 33401.28
A80: A0S0Y3L74 | B80: 3 | C80: 终身 | D80: 0 | E80: 0 | F80: 74 | G80: 0 | H80: 34546.52 | I80: 0 | J80: 0 | K80: 34546.52
A81: A0S0Y3L75 | B81: 3 | C81: 终身 | D81: 0 | E81: 0 | F81: 75 | G81: 0 | H81: 35728.12 | I81: 0 | J81: 0 | K81: 35728.12
A82: A0S0Y3L76 | B82: 3 | C82: 终身 | D82: 0 | E82: 0 | F82: 76 | G82: 0 | H82: 36946.85 | I82: 0 | J82: 0 | K82: 36946.85
A83: A0S0Y3L77 | B83: 3 | C83: 终身 | D83: 0 | E83: 0 | F83: 77 | G83: 0 | H83: 38203.46 | I83: 0 | J83: 0 | K83: 38203.46
A84: A0S0Y3L78 | B84: 3 | C84: 终身 | D84: 0 | E84: 0 | F84: 78 | G84: 0 | H84: 39498.64 | I84: 0 | J84: 0 | K84: 39498.64
A85: A0S0Y3L79 | B85: 3 | C85: 终身 | D85: 0 | E85: 0 | F85: 79 | G85: 0 | H85: 40833.05 | I85: 0 | J85: 0 | K85: 40833.05
A86: A0S0Y3L80 | B86: 3 | C86: 终身 | D86: 0 | E86: 0 | F86: 80 | G86: 0 | H86: 42207.28 | I86: 0 | J86: 0 | K86: 42207.28
A87: A0S0Y3L81 | B87: 3 | C87: 终身 | D87: 0 | E87: 0 | F87: 81 | G87: 0 | H87: 43621.84 | I87: 0 | J87: 0 | K87: 43621.84
A88: A0S0Y3L82 | B88: 3 | C88: 终身 | D88: 0 | E88: 0 | F88: 82 | G88: 0 | H88: 45077.19 | I88: 0 | J88: 0 | K88: 45077.19
A89: A0S0Y3L83 | B89: 3 | C89: 终身 | D89: 0 | E89: 0 | F89: 83 | G89: 0 | H89: 46573.7 | I89: 0 | J89: 0 | K89: 46573.7
A90: A0S0Y3L84 | B90: 3 | C90: 终身 | D90: 0 | E90: 0 | F90: 84 | G90: 0 | H90: 48111.65 | I90: 0 | J90: 0 | K90: 48111.65
A91: A0S0Y3L85 | B91: 3 | C91: 终身 | D91: 0 | E91: 0 | F91: 85 | G91: 0 | H91: 49691.23 | I91: 0 | J91: 0 | K91: 49691.23
A92: A0S0Y3L86 | B92: 3 | C92: 终身 | D92: 0 | E92: 0 | F92: 86 | G92: 0 | H92: 51312.52 | I92: 0 | J92: 0 | K92: 51312.52
A93: A0S0Y3L87 | B93: 3 | C93: 终身 | D93: 0 | E93: 0 | F93: 87 | G93: 0 | H93: 52975.44 | I93: 0 | J93: 0 | K93: 52975.44
A94: A0S0Y3L88 | B94: 3 | C94: 终身 | D94: 0 | E94: 0 | F94: 88 | G94: 0 | H94: 54679.73 | I94: 0 | J94: 0 | K94: 54679.73
A95: A0S0Y3L89 | B95: 3 | C95: 终身 | D95: 0 | E95: 0 | F95: 89 | G95: 0 | H95: 56424.91 | I95: 0 | J95: 0 | K95: 56424.91
A96: A0S0Y3L90 | B96: 3 | C96: 终身 | D96: 0 | E96: 0 | F96: 90 | G96: 0 | H96: 58210.25 | I96: 0 | J96: 0 | K96: 58210.25
A97: A0S0Y3L91 | B97: 3 | C97: 终身 | D97: 0 | E97: 0 | F97: 91 | G97: 0 | H97: 60034.72 | I97: 0 | J97: 0 | K97: 60034.72
A98: A0S0Y3L92 | B98: 3 | C98: 终身 | D98: 0 | E98: 0 | F98: 92 | G98: 0 | H98: 61896.99 | I98: 0 | J98: 0 | K98: 61896.99
A99: A0S0Y3L93 | B99: 3 | C99: 终身 | D99: 0 | E99: 0 | F99: 93 | G99: 0 | H99: 63795.43 | I99: 0 | J99: 0 | K99: 63795.44
A100: A0S0Y3L94 | B100: 3 | C100: 终身 | D100: 0 | E100: 0 | F100: 94 | G100: 0 | H100: 65728.16 | I100: 0 | J100: 0 | K100: 65728.16
A101: A0S0Y3L95 | B101: 3 | C101: 终身 | D101: 0 | E101: 0 | F101: 95 | G101: 0 | H101: 67693.03 | I101: 0 | J101: 0 | K101: 67693.03
A102: A0S0Y3L96 | B102: 3 | C102: 终身 | D102: 0 | E102: 0 | F102: 96 | G102: 0 | H102: 69687.71 | I102: 0 | J102: 0 | K102: 69687.71
A103: A0S0Y3L97 | B103: 3 | C103: 终身 | D103: 0 | E103: 0 | F103: 97 | G103: 0 | H103: 71709.78 | I103: 0 | J103: 0 | K103: 71709.78
A104: A0S0Y3L98 | B104: 3 | C104: 终身 | D104: 0 | E104: 0 | F104: 98 | G104: 0 | H104: 73756.71 | I104: 0 | J104: 0 | K104: 73756.71
A105: A0S0Y3L99 | B105: 3 | C105: 终身 | D105: 0 | E105: 0 | F105: 99 | G105: 0 | H105: 75825.94 | I105: 0 | J105: 0 | K105: 75825.94
A106: A0S0Y3L100 | B106: 3 | C106: 终身 | D106: 0 | E106: 0 | F106: 100 | G106: 0 | H106: 77914.91 | I106: 0 | J106: 0 | K106: 77914.91
A107: A0S0Y3L101 | B107: 3 | C107: 终身 | D107: 0 | E107: 0 | F107: 101 | G107: 0 | H107: 80021.06 | I107: 0 | J107: 0 | K107: 80021.06
A108: A0S0Y3L102 | B108: 3 | C108: 终身 | D108: 0 | E108: 0 | F108: 102 | G108: 0 | H108: 82141.84 | I108: 0 | J108: 0 | K108: 82141.85
A109: A0S0Y3L103 | B109: 3 | C109: 终身 | D109: 0 | E109: 0 | F109: 103 | G109: 0 | H109: 84274.77 | I109: 0 | J109: 0 | K109: 84274.77
A110: A0S0Y3L104 | B110: 3 | C110: 终身 | D110: 0 | E110: 0 | F110: 104 | G110: 0 | H110: 86417.4 | I110: 0 | J110: 0 | K110: 86417.4
A111: A0S0Y3L105 | B111: 3 | C111: 终身 | D111: 0 | E111: 0 | F111: 105 | G111: 0 | H111: 88567.39 | I111: 0 | J111: 0 | K111: 88567.39
A112: A0S0Y3L106 | B112: 3 | C112: 终身 | D112: 0 | E112: 0 | F112: 106 | G112: 0 | H112: 90102.91 | I112: 0 | J112: 0 | K112: 90102.91
A113: A1S0Y3L1 | B113: 3 | C113: 终身 | D113: 1 | E113: 0 | F113: 1 | G113: 167.16 | H113: 152.36 | I113: 0 | J113: 0.63 | K113: 859.28
A114: A1S0Y3L2 | B114: 3 | C114: 终身 | D114: 1 | E114: 0 | F114: 2 | G114: 238.8 | H114: 407.54 | I114: 0 | J114: 1437.12 | K114: 1924.27
A115: A1S0Y3L3 | B115: 3 | C115: 终身 | D115: 1 | E115: 0 | F115: 3 | G115: 310.44 | H115: 787.36 | I115: 0 | J115: 1437.12 | K115: 3026.58
A116: A1S0Y3L4 | B116: 3 | C116: 终身 | D116: 1 | E116: 0 | F116: 4 | G116: 0 | H116: 830 | I116: 0 | J116: 0 | K116: 3132.5
A117: A1S0Y3L5 | B117: 3 | C117: 终身 | D117: 1 | E117: 0 | F117: 5 | G117: 0 | H117: 875.07 | I117: 0 | J117: 0 | K117: 3242.15
A118: A1S0Y3L6 | B118: 3 | C118: 终身 | D118: 1 | E118: 0 | F118: 6 | G118: 0 | H118: 3355.58 | I118: 0 | J118: 0 | K118: 3355.58
A119: A1S0Y3L7 | B119: 3 | C119: 终身 | D119: 1 | E119: 0 | F119: 7 | G119: 0 | H119: 3472.98 | I119: 0 | J119: 0 | K119: 3472.98
A120: A1S0Y3L8 | B120: 3 | C120: 终身 | D120: 1 | E120: 0 | F120: 8 | G120: 0 | H120: 3594.48 | I120: 0 | J120: 0 | K120: 3594.48
A121: A1S0Y3L9 | B121: 3 | C121: 终身 | D121: 1 | E121: 0 | F121: 9 | G121: 0 | H121: 3720.23 | I121: 0 | J121: 0 | K121: 3720.23
A122: A1S0Y3L10 | B122: 3 | C122: 终身 | D122: 1 | E122: 0 | F122: 10 | G122: 0 | H122: 3850.38 | I122: 0 | J122: 0 | K122: 3850.38
A123: A1S0Y3L11 | B123: 3 | C123: 终身 | D123: 1 | E123: 0 | F123: 11 | G123: 0 | H123: 3985.08 | I123: 0 | J123: 0 | K123: 3985.08
A124: A1S0Y3L12 | B124: 3 | C124: 终身 | D124: 1 | E124: 0 | F124: 12 | G124: 0 | H124: 4124.49 | I124: 0 | J124: 0 | K124: 4124.49
A125: A1S0Y3L13 | B125: 3 | C125: 终身 | D125: 1 | E125: 0 | F125: 13 | G125: 0 | H125: 4268.78 | I125: 0 | J125: 0 | K125: 4268.78
A126: A1S0Y3L14 | B126: 3 | C126: 终身 | D126: 1 | E126: 0 | F126: 14 | G126: 0 | H126: 4418.11 | I126: 0 | J126: 0 | K126: 4418.11
A127: A1S0Y3L15 | B127: 3 | C127: 终身 | D127: 1 | E127: 0 | F127: 15 | G127: 0 | H127: 4572.66 | I127: 0 | J127: 0 | K127: 4572.66
A128: A1S0Y3L16 | B128: 3 | C128: 终身 | D128: 1 | E128: 0 | F128: 16 | G128: 0 | H128: 4732.62 | I128: 0 | J128: 0 | K128: 4732.62
A129: A1S0Y3L17 | B129: 3 | C129: 终身 | D129: 1 | E129: 0 | F129: 17 | G129: 0 | H129: 4898.17 | I129: 0 | J129: 0 | K129: 4898.17
A130: A1S0Y3L18 | B130: 3 | C130: 终身 | D130: 1 | E130: 0 | F130: 18 | G130: 0 | H130: 5069.52 | I130: 0 | J130: 0 | K130: 5069.52
A131: A1S0Y3L19 | B131: 3 | C131: 终身 | D131: 1 | E131: 0 | F131: 19 | G131: 0 | H131: 5246.85 | I131: 0 | J131: 0 | K131: 5246.85
A132: A1S0Y3L20 | B132: 3 | C132: 终身 | D132: 1 | E132: 0 | F132: 20 | G132: 0 | H132: 5430.38 | I132: 0 | J132: 0 | K132: 5430.38
A133: A1S0Y3L21 | B133: 3 | C133: 终身 | D133: 1 | E133: 0 | F133: 21 | G133: 0 | H133: 5620.34 | I133: 0 | J133: 0 | K133: 5620.34
A134: A1S0Y3L22 | B134: 3 | C134: 终身 | D134: 1 | E134: 0 | F134: 22 | G134: 0 | H134: 5816.93 | I134: 0 | J134: 0 | K134: 5816.93
A135: A1S0Y3L23 | B135: 3 | C135: 终身 | D135: 1 | E135: 0 | F135: 23 | G135: 0 | H135: 6020.4 | I135: 0 | J135: 0 | K135: 6020.4
A136: ="A"&D136&"S"&E136&"Y"&B136&"L"&F136 -> A1S0Y3L24 | B136: 3 | C136: 终身 | D136: 1 | E136: 0 | F136: 24 | G136: 0 | H136: 6230.99 | I136: 0 | J136: 0 | K136: 6230.99
A137: A1S0Y3L25 | B137: 3 | C137: 终身 | D137: 1 | E137: 0 | F137: 25 | G137: 0 | H137: 6448.93 | I137: 0 | J137: 0 | K137: 6448.93
A138: A1S0Y3L26 | B138: 3 | C138: 终身 | D138: 1 | E138: 0 | F138: 26 | G138: 0 | H138: 6674.5 | I138: 0 | J138: 0 | K138: 6674.5
A139: A1S0Y3L27 | B139: 3 | C139: 终身 | D139: 1 | E139: 0 | F139: 27 | G139: 0 | H139: 6907.96 | I139: 0 | J139: 0 | K139: 6907.96
A140: A1S0Y3L28 | B140: 3 | C140: 终身 | D140: 1 | E140: 0 | F140: 28 | G140: 0 | H140: 7149.57 | I140: 0 | J140: 0 | K140: 7149.57
A141: A1S0Y3L29 | B141: 3 | C141: 终身 | D141: 1 | E141: 0 | F141: 29 | G141: 0 | H141: 7399.63 | I141: 0 | J141: 0 | K141: 7399.63
A142: A1S0Y3L30 | B142: 3 | C142: 终身 | D142: 1 | E142: 0 | F142: 30 | G142: 0 | H142: 7658.43 | I142: 0 | J142: 0 | K142: 7658.43
A143: A1S0Y3L31 | B143: 3 | C143: 终身 | D143: 1 | E143: 0 | F143: 31 | G143: 0 | H143: 7926.28 | I143: 0 | J143: 0 | K143: 7926.28
A144: A1S0Y3L32 | B144: 3 | C144: 终身 | D144: 1 | E144: 0 | F144: 32 | G144: 0 | H144: 8203.48 | I144: 0 | J144: 0 | K144: 8203.48
A145: A1S0Y3L33 | B145: 3 | C145: 终身 | D145: 1 | E145: 0 | F145: 33 | G145: 0 | H145: 8490.37 | I145: 0 | J145: 0 | K145: 8490.37
A146: A1S0Y3L34 | B146: 3 | C146: 终身 | D146: 1 | E146: 0 | F146: 34 | G146: 0 | H146: 8787.29 | I146: 0 | J146: 0 | K146: 8787.29
A147: A1S0Y3L35 | B147: 3 | C147: 终身 | D147: 1 | E147: 0 | F147: 35 | G147: 0 | H147: 9094.57 | I147: 0 | J147: 0 | K147: 9094.57
A148: A1S0Y3L36 | B148: 3 | C148: 终身 | D148: 1 | E148: 0 | F148: 36 | G148: 0 | H148: 9412.59 | I148: 0 | J148: 0 | K148: 9412.59
A149: A1S0Y3L37 | B149: 3 | C149: 终身 | D149: 1 | E149: 0 | F149: 37 | G149: 0 | H149: 9741.71 | I149: 0 | J149: 0 | K149: 9741.71
A150: A1S0Y3L38 | B150: 3 | C150: 终身 | D150: 1 | E150: 0 | F150: 38 | G150: 0 | H150: 10082.32 | I150: 0 | J150: 0 | K150: 10082.32
A151: A1S0Y3L39 | B151: 3 | C151: 终身 | D151: 1 | E151: 0 | F151: 39 | G151: 0 | H151: 10434.81 | I151: 0 | J151: 0 | K151: 10434.81
A152: A1S0Y3L40 | B152: 3 | C152: 终身 | D152: 1 | E152: 0 | F152: 40 | G152: 0 | H152: 10799.61 | I152: 0 | J152: 0 | K152: 10799.61
A153: A1S0Y3L41 | B153: 3 | C153: 终身 | D153: 1 | E153: 0 | F153: 41 | G153: 0 | H153: 11177.13 | I153: 0 | J153: 0 | K153: 11177.13
A154: A1S0Y3L42 | B154: 3 | C154: 终身 | D154: 1 | E154: 0 | F154: 42 | G154: 0 | H154: 11567.81 | I154: 0 | J154: 0 | K154: 11567.81
A155: A1S0Y3L43 | B155: 3 | C155: 终身 | D155: 1 | E155: 0 | F155: 43 | G155: 0 | H155: 11972.1 | I155: 0 | J155: 0 | K155: 11972.1
A156: A1S0Y3L44 | B156: 3 | C156: 终身 | D156: 1 | E156: 0 | F156: 44 | G156: 0 | H156: 12390.48 | I156: 0 | J156: 0 | K156: 12390.48
A157: A1S0Y3L45 | B157: 3 | C157: 终身 | D157: 1 | E157: 0 | F157: 45 | G157: 0 | H157: 12823.43 | I157: 0 | J157: 0 | K157: 12823.43
A158: A1S0Y3L46 | B158: 3 | C158: 终身 | D158: 1 | E158: 0 | F158: 46 | G158: 0 | H158: 13271.44 | I158: 0 | J158: 0 | K158: 13271.44
A159: A1S0Y3L47 | B159: 3 | C159: 终身 | D159: 1 | E159: 0 | F159: 47 | G159: 0 | H159: 13735.03 | I159: 0 | J159: 0 | K159: 13735.03
A160: A1S0Y3L48 | B160: 3 | C160: 终身 | D160: 1 | E160: 0 | F160: 48 | G160: 0 | H160: 14214.73 | I160: 0 | J160: 0 | K160: 14214.73
A161: A1S0Y3L49 | B161: 3 | C161: 终身 | D161: 1 | E161: 0 | F161: 49 | G161: 0 | H161: 14711.1 | I161: 0 | J161: 0 | K161: 14711.1
A162: A1S0Y3L50 | B162: 3 | C162: 终身 | D162: 1 | E162: 0 | F162: 50 | G162: 0 | H162: 15224.71 | I162: 0 | J162: 0 | K162: 15224.71
A163: A1S0Y3L51 | B163: 3 | C163: 终身 | D163: 1 | E163: 0 | F163: 51 | G163: 0 | H163: 15756.14 | I163: 0 | J163: 0 | K163: 15756.14
A164: A1S0Y3L52 | B164: 3 | C164: 终身 | D164: 1 | E164: 0 | F164: 52 | G164: 0 | H164: 16306.01 | I164: 0 | J164: 0 | K164: 16306.01
A165: A1S0Y3L53 | B165: 3 | C165: 终身 | D165: 1 | E165: 0 | F165: 53 | G165: 0 | H165: 16874.95 | I165: 0 | J165: 0 | K165: 16874.95
A166: A1S0Y3L54 | B166: 3 | C166: 终身 | D166: 1 | E166: 0 | F166: 54 | G166: 0 | H166: 17463.61 | I166: 0 | J166: 0 | K166: 17463.61
A167: A1S0Y3L55 | B167: 3 | C167: 终身 | D167: 1 | E167: 0 | F167: 55 | G167: 0 | H167: 18072.67 | I167: 0 | J167: 0 | K167: 18072.67
A168: A1S0Y3L56 | B168: 3 | C168: 终身 | D168: 1 | E168: 0 | F168: 56 | G168: 0 | H168: 18702.83 | I168: 0 | J168: 0 | K168: 18702.83
A169: A1S0Y3L57 | B169: 3 | C169: 终身 | D169: 1 | E169: 0 | F169: 57 | G169: 0 | H169: 19354.8 | I169: 0 | J169: 0 | K169: 19354.8
A170: A1S0Y3L58 | B170: 3 | C170: 终身 | D170: 1 | E170: 0 | F170: 58 | G170: 0 | H170: 20029.3 | I170: 0 | J170: 0 | K170: 20029.3
A171: A1S0Y3L59 | B171: 3 | C171: 终身 | D171: 1 | E171: 0 | F171: 59 | G171: 0 | H171: 20727.09 | I171: 0 | J171: 0 | K171: 20727.09
A172: A1S0Y3L60 | B172: 3 | C172: 终身 | D172: 1 | E172: 0 | F172: 60 | G172: 0 | H172: 21448.9 | I172: 0 | J172: 0 | K172: 21448.9
A173: A1S0Y3L61 | B173: 3 | C173: 终身 | D173: 1 | E173: 0 | F173: 61 | G173: 0 | H173: 22195.5 | I173: 0 | J173: 0 | K173: 22195.5
A174: A1S0Y3L62 | B174: 3 | C174: 终身 | D174: 1 | E174: 0 | F174: 62 | G174: 0 | H174: 22967.67 | I174: 0 | J174: 0 | K174: 22967.67
A175: A1S0Y3L63 | B175: 3 | C175: 终身 | D175: 1 | E175: 0 | F175: 63 | G175: 0 | H175: 23766.19 | I175: 0 | J175: 0 | K175: 23766.19
A176: A1S0Y3L64 | B176: 3 | C176: 终身 | D176: 1 | E176: 0 | F176: 64 | G176: 0 | H176: 24591.87 | I176: 0 | J176: 0 | K176: 24591.87
A177: A1S0Y3L65 | B177: 3 | C177: 终身 | D177: 1 | E177: 0 | F177: 65 | G177: 0 | H177: 25445.53 | I177: 0 | J177: 0 | K177: 25445.53
A178: A1S0Y3L66 | B178: 3 | C178: 终身 | D178: 1 | E178: 0 | F178: 66 | G178: 0 | H178: 26327.98 | I178: 0 | J178: 0 | K178: 26327.98
A179: A1S0Y3L67 | B179: 3 | C179: 终身 | D179: 1 | E179: 0 | F179: 67 | G179: 0 | H179: 27240.05 | I179: 0 | J179: 0 | K179: 27240.05
A180: A1S0Y3L68 | B180: 3 | C180: 终身 | D180: 1 | E180: 0 | F180: 68 | G180: 0 | H180: 28182.55 | I180: 0 | J180: 0 | K180: 28182.55
A181: A1S0Y3L69 | B181: 3 | C181: 终身 | D181: 1 | E181: 0 | F181: 69 | G181: 0 | H181: 29156.28 | I181: 0 | J181: 0 | K181: 29156.28
A182: A1S0Y3L70 | B182: 3 | C182: 终身 | D182: 1 | E182: 0 | F182: 70 | G182: 0 | H182: 30162.05 | I182: 0 | J182: 0 | K182: 30162.05
A183: A1S0Y3L71 | B183: 3 | C183: 终身 | D183: 1 | E183: 0 | F183: 71 | G183: 0 | H183: 31200.63 | I183: 0 | J183: 0 | K183: 31200.63
A184: A1S0Y3L72 | B184: 3 | C184: 终身 | D184: 1 | E184: 0 | F184: 72 | G184: 0 | H184: 32272.8 | I184: 0 | J184: 0 | K184: 32272.8
A185: A1S0Y3L73 | B185: 3 | C185: 终身 | D185: 1 | E185: 0 | F185: 73 | G185: 0 | H185: 33379.35 | I185: 0 | J185: 0 | K185: 33379.35
A186: A1S0Y3L74 | B186: 3 | C186: 终身 | D186: 1 | E186: 0 | F186: 74 | G186: 0 | H186: 34521.03 | I186: 0 | J186: 0 | K186: 34521.03
A187: A1S0Y3L75 | B187: 3 | C187: 终身 | D187: 1 | E187: 0 | F187: 75 | G187: 0 | H187: 35698.59 | I187: 0 | J187: 0 | K187: 35698.59
A188: A1S0Y3L76 | B188: 3 | C188: 终身 | D188: 1 | E188: 0 | F188: 76 | G188: 0 | H188: 36912.74 | I188: 0 | J188: 0 | K188: 36912.74
A189: A1S0Y3L77 | B189: 3 | C189: 终身 | D189: 1 | E189: 0 | F189: 77 | G189: 0 | H189: 38164.17 | I189: 0 | J189: 0 | K189: 38164.17
A190: A1S0Y3L78 | B190: 3 | C190: 终身 | D190: 1 | E190: 0 | F190: 78 | G190: 0 | H190: 39453.49 | I190: 0 | J190: 0 | K190: 39453.49
A191: A1S0Y3L79 | B191: 3 | C191: 终身 | D191: 1 | E191: 0 | F191: 79 | G191: 0 | H191: 40781.29 | I191: 0 | J191: 0 | K191: 40781.29
A192: A1S0Y3L80 | B192: 3 | C192: 终身 | D192: 1 | E192: 0 | F192: 80 | G192: 0 | H192: 42148.06 | I192: 0 | J192: 0 | K192: 42148.06
A193: A1S0Y3L81 | B193: 3 | C193: 终身 | D193: 1 | E193: 0 | F193: 81 | G193: 0 | H193: 43554.24 | I193: 0 | J193: 0 | K193: 43554.24
A194: A1S0Y3L82 | B194: 3 | C194: 终身 | D194: 1 | E194: 0 | F194: 82 | G194: 0 | H194: 45000.19 | I194: 0 | J194: 0 | K194: 45000.19
A195: A1S0Y3L83 | B195: 3 | C195: 终身 | D195: 1 | E195: 0 | F195: 83 | G195: 0 | H195: 46486.18 | I195: 0 | J195: 0 | K195: 46486.18
A196: A1S0Y3L84 | B196: 3 | C196: 终身 | D196: 1 | E196: 0 | F196: 84 | G196: 0 | H196: 48012.4 | I196: 0 | J196: 0 | K196: 48012.4
A197: A1S0Y3L85 | B197: 3 | C197: 终身 | D197: 1 | E197: 0 | F197: 85 | G197: 0 | H197: 49578.91 | I197: 0 | J197: 0 | K197: 49578.91
A198: A1S0Y3L86 | B198: 3 | C198: 终身 | D198: 1 | E198: 0 | F198: 86 | G198: 0 | H198: 51185.65 | I198: 0 | J198: 0 | K198: 51185.65
A199: A1S0Y3L87 | B199: 3 | C199: 终身 | D199: 1 | E199: 0 | F199: 87 | G199: 0 | H199: 52832.36 | I199: 0 | J199: 0 | K199: 52832.36
A200: ="A"&D200&"S"&E200&"Y"&B200&"L"&F200 -> A1S0Y3L88 | B200: 3 | C200: 终身 | D200: 1 | E200: 0 | F200: 88 | G200: 0 | H200: 54518.58 | I200: 0 | J200: 0 | K200: 54518.58
A201: A1S0Y3L89 | B201: 3 | C201: 终身 | D201: 1 | E201: 0 | F201: 89 | G201: 0 | H201: 56243.6 | I201: 0 | J201: 0 | K201: 56243.6
A202: A1S0Y3L90 | B202: 3 | C202: 终身 | D202: 1 | E202: 0 | F202: 90 | G202: 0 | H202: 58006.42 | I202: 0 | J202: 0 | K202: 58006.42
... 4298 more rows
